Organisation Code,Organisation Label,Effective Date,Organisational Unit,Service Division Label,Category Internal Name,Purpose,Detailed Expenditure Code,Payment Date,Transaction Number,Irrecoverable VAT Amount,Amount,Capital Or Revenue,Beneficiary Name,Procurement Card
Http://opendatacommunities.org/id/metropolitan-district-council/leeds,Leeds City Council,31/01/2022,Adults and Health,Services For Older People Under 65 P/Dis,Agency Payments,Sheltered Accommodation,569,07/01/2022,2201-00001,0.00,5400.00,R,A & V TRANSITIONAL HOMES,No
Http://opendatacommunities.org/id/metropolitan-district-council/leeds,Leeds City Council,31/01/2022,Children and Families,Learning,Supplies and Services,Teaching Furniture & Equipment,207,17/01/2022,2201-00002,0.00,370.00,R,A Ash,No
Http://opendatacommunities.org/id/metropolitan-district-council/leeds,Leeds City Council,31/01/2022,Children and Families,Social Care,Agency Payments,Services Rendered By Other Organisations,511,05/01/2022,2201-00003,0.00,321.60,R,REDACTED PERSONAL DATA,No
Http://opendatacommunities.org/id/metropolitan-district-council/leeds,Leeds City Council,31/01/2022,Children and Families,Social Care,Agency Payments,Services Rendered By Other Organisations,511,07/01/2022,2201-00004,0.00,267.60,R,REDACTED PERSONAL DATA,No
Http://opendatacommunities.org/id/metropolitan-district-council/leeds,Leeds City Council,31/01/2022,Resources and Housing,HRA Housing Leeds,Capital,OTHER COSTS,7,27/01/2022,2201-00005,0.00,100.00,C,REDACTED PERSONAL DATA,No
Http://opendatacommunities.org/id/metropolitan-district-council/leeds,Leeds City Council,31/01/2022,City Development,Libraries Arts & Heritage,Supplies and Services,Operational Furniture And Equipment,203,19/01/2022,2201-00006,0.00,73.60,R,A C Entertainment Technologies Ltd,No
Http://opendatacommunities.org/id/metropolitan-district-council/leeds,Leeds City Council,31/01/2022,City Development,Libraries Arts & Heritage,Supplies and Services,Operational Furniture And Equipment,203,28/01/2022,2201-00007,0.00,126.15,R,A C Entertainment Technologies Ltd,No
Http://opendatacommunities.org/id/metropolitan-district-council/leeds,Leeds City Council,31/01/2022,City Development,Highways,Capital,OTHER COSTS,7,28/01/2022,2201-00008,0.00,1500.00,C,A C GILPIN,No
Http://opendatacommunities.org/id/metropolitan-district-council/leeds,Leeds City Council,31/01/2022,Children and Families,Social Care,Agency Payments,Services Rendered By Other Organisations,511,07/01/2022,2201-00009,0.00,267.60,R,REDACTED PERSONAL DATA,No
Http://opendatacommunities.org/id/metropolitan-district-council/leeds,Leeds City Council,31/01/2022,Resources and Housing,HRA Housing Leeds,Capital,CONSTRUCTION,3,13/01/2022,2201-00010,0.00,150000.00,C,A Connolly Limited,No
Http://opendatacommunities.org/id/metropolitan-district-council/leeds,Leeds City Council,31/01/2022,Resources and Housing,HRA Housing Leeds,Capital,CONSTRUCTION,3,13/01/2022,2201-00011,0.00,21859.39,C,A Connolly Limited,No
Http://opendatacommunities.org/id/metropolitan-district-council/leeds,Leeds City Council,31/01/2022,Resources and Housing,HRA Housing Leeds,Capital,CONSTRUCTION,3,13/01/2022,2201-00012,0.00,79392.21,C,A Connolly Limited,No
Http://opendatacommunities.org/id/metropolitan-district-council/leeds,Leeds City Council,31/01/2022,Resources and Housing,HRA Housing Leeds,Capital,CONSTRUCTION,3,13/01/2022,2201-00013,0.00,110767.77,C,A Connolly Limited,No
Http://opendatacommunities.org/id/metropolitan-district-council/leeds,Leeds City Council,31/01/2022,Resources and Housing,Leeds Building Services,Supplies and Services,Other Hired And Contracted Services,265,07/01/2022,2201-00014,0.00,23108.00,R,A Coole Electrical Ltd,No
Http://opendatacommunities.org/id/metropolitan-district-council/leeds,Leeds City Council,31/01/2022,Resources and Housing,Leeds Building Services,Supplies and Services,Other Hired And Contracted Services,265,13/01/2022,2201-00015,0.00,14668.00,R,A Coole Electrical Ltd,No
Http://opendatacommunities.org/id/metropolitan-district-council/leeds,Leeds City Council,31/01/2022,Resources and Housing,Leeds Building Services,Supplies and Services,Other Hired And Contracted Services,265,13/01/2022,2201-00016,0.00,10150.00,R,A Coole Electrical Ltd,No
Http://opendatacommunities.org/id/metropolitan-district-council/leeds,Leeds City Council,31/01/2022,Resources and Housing,Leeds Building Services,Supplies and Services,Other Hired And Contracted Services,265,20/01/2022,2201-00017,0.00,1005.15,R,A Coole Electrical Ltd,No
Http://opendatacommunities.org/id/metropolitan-district-council/leeds,Leeds City Council,31/01/2022,Resources and Housing,Leeds Building Services,Supplies and Services,Other Hired And Contracted Services,265,20/01/2022,2201-00018,0.00,2513.00,R,A Coole Electrical Ltd,No
Http://opendatacommunities.org/id/metropolitan-district-council/leeds,Leeds City Council,31/01/2022,Resources and Housing,Leeds Building Services,Supplies and Services,Other Hired And Contracted Services,265,21/01/2022,2201-00019,0.00,1420.00,R,A Coole Electrical Ltd,No
Http://opendatacommunities.org/id/metropolitan-district-council/leeds,Leeds City Council,31/01/2022,Communities and Environment,Customer Access,Supplies and Services,Bought In Professional Services,277,07/01/2022,2201-00020,0.00,9.00,R,A D Dumitru,No
Http://opendatacommunities.org/id/metropolitan-district-council/leeds,Leeds City Council,31/01/2022,Communities and Environment,Customer Access,Supplies and Services,Bought In Professional Services,277,12/01/2022,2201-00021,0.00,18.00,R,A D Dumitru,No
Http://opendatacommunities.org/id/metropolitan-district-council/leeds,Leeds City Council,31/01/2022,Communities and Environment,Customer Access,Supplies and Services,Bought In Professional Services,277,19/01/2022,2201-00022,0.00,27.00,R,A D Dumitru,No
Http://opendatacommunities.org/id/metropolitan-district-council/leeds,Leeds City Council,31/01/2022,Communities and Environment,Customer Access,Supplies and Services,Bought In Professional Services,277,19/01/2022,2201-00023,0.00,18.00,R,A D Dumitru,No
Http://opendatacommunities.org/id/metropolitan-district-council/leeds,Leeds City Council,31/01/2022,Communities and Environment,Customer Access,Supplies and Services,Bought In Professional Services,277,26/01/2022,2201-00024,0.00,18.00,R,A D Dumitru,No
Http://opendatacommunities.org/id/metropolitan-district-council/leeds,Leeds City Council,31/01/2022,Communities and Environment,Customer Access,Supplies and Services,Bought In Professional Services,277,26/01/2022,2201-00025,0.00,22.50,R,A D Dumitru,No
Http://opendatacommunities.org/id/metropolitan-district-council/leeds,Leeds City Council,31/01/2022,Children and Families,Social Care,Agency Payments,Services Rendered By Voluntary Sector,505,05/01/2022,2201-00026,0.00,1929.60,R,REDACTED PERSONAL DATA,No
Http://opendatacommunities.org/id/metropolitan-district-council/leeds,Leeds City Council,31/01/2022,Children and Families,Social Care,Agency Payments,Services Rendered By Voluntary Sector,505,07/01/2022,2201-00027,0.00,5084.40,R,REDACTED PERSONAL DATA,No
Http://opendatacommunities.org/id/metropolitan-district-council/leeds,Leeds City Council,31/01/2022,Children and Families,Social Care,Internal Recharges,Legal Disbursements,411,20/01/2022,2201-00028,0.00,172.80,R,A F F Ghaly,No
Http://opendatacommunities.org/id/metropolitan-district-council/leeds,Leeds City Council,31/01/2022,Resources and Housing,HRA Housing Leeds,Capital,OTHER COSTS,7,10/01/2022,2201-00029,0.00,100.00,C,REDACTED PERSONAL DATA,No
Http://opendatacommunities.org/id/metropolitan-district-council/leeds,Leeds City Council,31/01/2022,Children and Families,Social Care,Agency Payments,Section 17,551,05/01/2022,2201-00030,0.00,94.40,R,REDACTED PERSONAL DATA,No
Http://opendatacommunities.org/id/metropolitan-district-council/leeds,Leeds City Council,31/01/2022,Children and Families,Social Care,Agency Payments,Section 17,551,11/01/2022,2201-00031,0.00,124.80,R,REDACTED PERSONAL DATA,No
Http://opendatacommunities.org/id/metropolitan-district-council/leeds,Leeds City Council,31/01/2022,Children and Families,Social Care,Agency Payments,Section 17,551,17/01/2022,2201-00032,0.00,124.80,R,REDACTED PERSONAL DATA,No
Http://opendatacommunities.org/id/metropolitan-district-council/leeds,Leeds City Council,31/01/2022,Children and Families,Social Care,Agency Payments,Section 17,551,24/01/2022,2201-00033,0.00,124.80,R,REDACTED PERSONAL DATA,No
Http://opendatacommunities.org/id/metropolitan-district-council/leeds,Leeds City Council,31/01/2022,Children and Families,Social Care,Agency Payments,Section 17,551,31/01/2022,2201-00034,0.00,124.80,R,REDACTED PERSONAL DATA,No
Http://opendatacommunities.org/id/metropolitan-district-council/leeds,Leeds City Council,31/01/2022,Children and Families,Social Care,Agency Payments,Services Rendered By Other Organisations,511,07/01/2022,2201-00035,0.00,1489.64,R,REDACTED PERSONAL DATA,No
Http://opendatacommunities.org/id/metropolitan-district-council/leeds,Leeds City Council,31/01/2022,Adults and Health,Other Generic Services,Agency Payments,Fees To Carers,563,14/01/2022,2201-00036,0.00,509.22,R,REDACTED PERSONAL DATA,No
Http://opendatacommunities.org/id/metropolitan-district-council/leeds,Leeds City Council,31/01/2022,Adults and Health,Other Generic Services,Agency Payments,Fees To Carers,563,14/01/2022,2201-00037,0.00,56.70,R,REDACTED PERSONAL DATA,No
Http://opendatacommunities.org/id/metropolitan-district-council/leeds,Leeds City Council,31/01/2022,Adults and Health,Other Generic Services,Agency Payments,Fees To Carers,563,26/01/2022,2201-00038,0.00,56.58,R,REDACTED PERSONAL DATA,No
Http://opendatacommunities.org/id/metropolitan-district-council/leeds,Leeds City Council,31/01/2022,Adults and Health,Other Generic Services,Agency Payments,Fees To Carers,563,26/01/2022,2201-00039,0.00,6.30,R,REDACTED PERSONAL DATA,No
Http://opendatacommunities.org/id/metropolitan-district-council/leeds,Leeds City Council,31/01/2022,Resources and Housing,Leeds Building Services,Supplies and Services,Operational Materials,205,05/01/2022,2201-00040,0.00,1592.00,R,A J H  Pump Supply & Repair Ltd,No
Http://opendatacommunities.org/id/metropolitan-district-council/leeds,Leeds City Council,31/01/2022,Resources and Housing,Leeds Building Services,Supplies and Services,Operational Materials,205,07/01/2022,2201-00041,0.00,895.00,R,A J H  Pump Supply & Repair Ltd,No
Http://opendatacommunities.org/id/metropolitan-district-council/leeds,Leeds City Council,31/01/2022,Resources and Housing,Leeds Building Services,Supplies and Services,Operational Materials,205,17/01/2022,2201-00042,0.00,495.00,R,A J H  Pump Supply & Repair Ltd,No
Http://opendatacommunities.org/id/metropolitan-district-council/leeds,Leeds City Council,31/01/2022,Resources and Housing,Leeds Building Services,Supplies and Services,Operational Materials,205,17/01/2022,2201-00043,0.00,2143.00,R,A J H  Pump Supply & Repair Ltd,No
Http://opendatacommunities.org/id/metropolitan-district-council/leeds,Leeds City Council,31/01/2022,Resources and Housing,Leeds Building Services,Supplies and Services,Operational Materials,205,17/01/2022,2201-00044,0.00,840.00,R,A J H  Pump Supply & Repair Ltd,No
Http://opendatacommunities.org/id/metropolitan-district-council/leeds,Leeds City Council,31/01/2022,Resources and Housing,Leeds Building Services,Supplies and Services,Operational Materials,205,21/01/2022,2201-00045,0.00,1784.00,R,A J H  Pump Supply & Repair Ltd,No
Http://opendatacommunities.org/id/metropolitan-district-council/leeds,Leeds City Council,31/01/2022,Communities and Environment,Parks and Countryside,Supplies and Services,Resaleable Materials,204,07/01/2022,2201-00046,0.00,280.56,R,A J PROMOTIONS,No
Http://opendatacommunities.org/id/metropolitan-district-council/leeds,Leeds City Council,31/01/2022,Communities and Environment,Parks and Countryside,Supplies and Services,Resaleable Materials,204,14/01/2022,2201-00047,0.00,126.72,R,A J PROMOTIONS,No
Http://opendatacommunities.org/id/metropolitan-district-council/leeds,Leeds City Council,31/01/2022,Communities and Environment,Parks and Countryside,Supplies and Services,Resaleable Materials,204,19/01/2022,2201-00048,0.00,1391.04,R,A J PROMOTIONS,No
Http://opendatacommunities.org/id/metropolitan-district-council/leeds,Leeds City Council,31/01/2022,Communities and Environment,Parks and Countryside,Supplies and Services,Resaleable Materials,204,19/01/2022,2201-00049,0.00,617.50,R,A J PROMOTIONS,No
Http://opendatacommunities.org/id/metropolitan-district-council/leeds,Leeds City Council,31/01/2022,City Development,Libraries Arts & Heritage,Supplies and Services,Resaleable Materials,204,21/01/2022,2201-00050,0.00,10.33,R,A J PROMOTIONS,No
Http://opendatacommunities.org/id/metropolitan-district-council/leeds,Leeds City Council,31/01/2022,Children and Families,Social Care,Agency Payments,Services Rendered By Other Organisations,511,07/01/2022,2201-00051,0.00,2408.40,R,REDACTED PERSONAL DATA,No
Http://opendatacommunities.org/id/metropolitan-district-council/leeds,Leeds City Council,31/01/2022,Resources and Housing,HRA Housing Leeds,Capital,OTHER COSTS,7,10/01/2022,2201-00052,0.00,80.00,C,REDACTED PERSONAL DATA,No
Http://opendatacommunities.org/id/metropolitan-district-council/leeds,Leeds City Council,31/01/2022,Communities and Environment,Strategic Housing Partnership & Support,Supplies and Services,Other Hired And Contracted Services,265,07/01/2022,2201-00053,0.00,1950.00,R,A Kundra,No
Http://opendatacommunities.org/id/metropolitan-district-council/leeds,Leeds City Council,31/01/2022,Communities and Environment,Strategic Housing Partnership & Support,Supplies and Services,Other Hired And Contracted Services,265,07/01/2022,2201-00054,0.00,500.00,R,A Kundra,No
Http://opendatacommunities.org/id/metropolitan-district-council/leeds,Leeds City Council,31/01/2022,Communities and Environment,Customer Access,Supplies and Services,Bought In Professional Services,277,07/01/2022,2201-00055,0.00,18.00,R,A MOHAMMED,No
Http://opendatacommunities.org/id/metropolitan-district-council/leeds,Leeds City Council,31/01/2022,Communities and Environment,Customer Access,Supplies and Services,Bought In Professional Services,277,07/01/2022,2201-00056,0.00,27.00,R,A MOHAMMED,No
Http://opendatacommunities.org/id/metropolitan-district-council/leeds,Leeds City Council,31/01/2022,Communities and Environment,Customer Access,Supplies and Services,Bought In Professional Services,277,07/01/2022,2201-00057,0.00,18.00,R,A MOHAMMED,No
Http://opendatacommunities.org/id/metropolitan-district-council/leeds,Leeds City Council,31/01/2022,Communities and Environment,Customer Access,Supplies and Services,Bought In Professional Services,277,07/01/2022,2201-00058,0.00,18.00,R,A MOHAMMED,No
Http://opendatacommunities.org/id/metropolitan-district-council/leeds,Leeds City Council,31/01/2022,Communities and Environment,Customer Access,Supplies and Services,Bought In Professional Services,277,07/01/2022,2201-00059,0.00,18.00,R,A MOHAMMED,No
Http://opendatacommunities.org/id/metropolitan-district-council/leeds,Leeds City Council,31/01/2022,Communities and Environment,Customer Access,Supplies and Services,Bought In Professional Services,277,07/01/2022,2201-00060,0.00,18.00,R,A MOHAMMED,No
Http://opendatacommunities.org/id/metropolitan-district-council/leeds,Leeds City Council,31/01/2022,Communities and Environment,Customer Access,Supplies and Services,Bought In Professional Services,277,07/01/2022,2201-00061,0.00,18.00,R,A MOHAMMED,No
Http://opendatacommunities.org/id/metropolitan-district-council/leeds,Leeds City Council,31/01/2022,Communities and Environment,Customer Access,Supplies and Services,Bought In Professional Services,277,07/01/2022,2201-00062,0.00,18.00,R,A MOHAMMED,No
Http://opendatacommunities.org/id/metropolitan-district-council/leeds,Leeds City Council,31/01/2022,Communities and Environment,Customer Access,Supplies and Services,Bought In Professional Services,277,07/01/2022,2201-00063,0.00,22.50,R,A MOHAMMED,No
Http://opendatacommunities.org/id/metropolitan-district-council/leeds,Leeds City Council,31/01/2022,Communities and Environment,Customer Access,Supplies and Services,Bought In Professional Services,277,07/01/2022,2201-00064,0.00,18.00,R,A MOHAMMED,No
Http://opendatacommunities.org/id/metropolitan-district-council/leeds,Leeds City Council,31/01/2022,Communities and Environment,Customer Access,Supplies and Services,Bought In Professional Services,277,07/01/2022,2201-00065,0.00,18.00,R,A MOHAMMED,No
Http://opendatacommunities.org/id/metropolitan-district-council/leeds,Leeds City Council,31/01/2022,Communities and Environment,Customer Access,Supplies and Services,Bought In Professional Services,277,12/01/2022,2201-00066,0.00,18.00,R,A MOHAMMED,No
Http://opendatacommunities.org/id/metropolitan-district-council/leeds,Leeds City Council,31/01/2022,Communities and Environment,Customer Access,Supplies and Services,Bought In Professional Services,277,12/01/2022,2201-00067,0.00,18.00,R,A MOHAMMED,No
Http://opendatacommunities.org/id/metropolitan-district-council/leeds,Leeds City Council,31/01/2022,Communities and Environment,Customer Access,Supplies and Services,Bought In Professional Services,277,12/01/2022,2201-00068,0.00,13.50,R,A MOHAMMED,No
Http://opendatacommunities.org/id/metropolitan-district-council/leeds,Leeds City Council,31/01/2022,Communities and Environment,Customer Access,Supplies and Services,Bought In Professional Services,277,12/01/2022,2201-00069,0.00,18.00,R,A MOHAMMED,No
Http://opendatacommunities.org/id/metropolitan-district-council/leeds,Leeds City Council,31/01/2022,Communities and Environment,Customer Access,Supplies and Services,Bought In Professional Services,277,12/01/2022,2201-00070,0.00,18.00,R,A MOHAMMED,No
Http://opendatacommunities.org/id/metropolitan-district-council/leeds,Leeds City Council,31/01/2022,Communities and Environment,Customer Access,Supplies and Services,Bought In Professional Services,277,12/01/2022,2201-00071,0.00,18.00,R,A MOHAMMED,No
Http://opendatacommunities.org/id/metropolitan-district-council/leeds,Leeds City Council,31/01/2022,Communities and Environment,Customer Access,Supplies and Services,Bought In Professional Services,277,12/01/2022,2201-00072,0.00,18.00,R,A MOHAMMED,No
Http://opendatacommunities.org/id/metropolitan-district-council/leeds,Leeds City Council,31/01/2022,Communities and Environment,Customer Access,Supplies and Services,Bought In Professional Services,277,12/01/2022,2201-00073,0.00,13.50,R,A MOHAMMED,No
Http://opendatacommunities.org/id/metropolitan-district-council/leeds,Leeds City Council,31/01/2022,Communities and Environment,Customer Access,Supplies and Services,Bought In Professional Services,277,12/01/2022,2201-00074,0.00,18.00,R,A MOHAMMED,No
Http://opendatacommunities.org/id/metropolitan-district-council/leeds,Leeds City Council,31/01/2022,Communities and Environment,Customer Access,Supplies and Services,Bought In Professional Services,277,12/01/2022,2201-00075,0.00,22.50,R,A MOHAMMED,No
Http://opendatacommunities.org/id/metropolitan-district-council/leeds,Leeds City Council,31/01/2022,Communities and Environment,Customer Access,Supplies and Services,Bought In Professional Services,277,12/01/2022,2201-00076,0.00,18.00,R,A MOHAMMED,No
Http://opendatacommunities.org/id/metropolitan-district-council/leeds,Leeds City Council,31/01/2022,Communities and Environment,Customer Access,Supplies and Services,Bought In Professional Services,277,12/01/2022,2201-00077,0.00,18.00,R,A MOHAMMED,No
Http://opendatacommunities.org/id/metropolitan-district-council/leeds,Leeds City Council,31/01/2022,Communities and Environment,Customer Access,Supplies and Services,Bought In Professional Services,277,19/01/2022,2201-00078,0.00,9.00,R,A MOHAMMED,No
Http://opendatacommunities.org/id/metropolitan-district-council/leeds,Leeds City Council,31/01/2022,Communities and Environment,Customer Access,Supplies and Services,Bought In Professional Services,277,19/01/2022,2201-00079,0.00,22.50,R,A MOHAMMED,No
Http://opendatacommunities.org/id/metropolitan-district-council/leeds,Leeds City Council,31/01/2022,Communities and Environment,Customer Access,Supplies and Services,Bought In Professional Services,277,19/01/2022,2201-00080,0.00,36.00,R,A MOHAMMED,No
Http://opendatacommunities.org/id/metropolitan-district-council/leeds,Leeds City Council,31/01/2022,Communities and Environment,Customer Access,Supplies and Services,Bought In Professional Services,277,19/01/2022,2201-00081,0.00,27.00,R,A MOHAMMED,No
Http://opendatacommunities.org/id/metropolitan-district-council/leeds,Leeds City Council,31/01/2022,Communities and Environment,Customer Access,Supplies and Services,Bought In Professional Services,277,19/01/2022,2201-00082,0.00,18.00,R,A MOHAMMED,No
Http://opendatacommunities.org/id/metropolitan-district-council/leeds,Leeds City Council,31/01/2022,Communities and Environment,Customer Access,Supplies and Services,Bought In Professional Services,277,19/01/2022,2201-00083,0.00,18.00,R,A MOHAMMED,No
Http://opendatacommunities.org/id/metropolitan-district-council/leeds,Leeds City Council,31/01/2022,Communities and Environment,Customer Access,Supplies and Services,Bought In Professional Services,277,19/01/2022,2201-00084,0.00,22.50,R,A MOHAMMED,No
Http://opendatacommunities.org/id/metropolitan-district-council/leeds,Leeds City Council,31/01/2022,Communities and Environment,Customer Access,Supplies and Services,Bought In Professional Services,277,19/01/2022,2201-00085,0.00,18.00,R,A MOHAMMED,No
Http://opendatacommunities.org/id/metropolitan-district-council/leeds,Leeds City Council,31/01/2022,Communities and Environment,Customer Access,Supplies and Services,Bought In Professional Services,277,19/01/2022,2201-00086,0.00,54.00,R,A MOHAMMED,No
Http://opendatacommunities.org/id/metropolitan-district-council/leeds,Leeds City Council,31/01/2022,Communities and Environment,Customer Access,Supplies and Services,Bought In Professional Services,277,19/01/2022,2201-00087,0.00,18.00,R,A MOHAMMED,No
Http://opendatacommunities.org/id/metropolitan-district-council/leeds,Leeds City Council,31/01/2022,Communities and Environment,Customer Access,Supplies and Services,Bought In Professional Services,277,19/01/2022,2201-00088,0.00,22.50,R,A MOHAMMED,No
Http://opendatacommunities.org/id/metropolitan-district-council/leeds,Leeds City Council,31/01/2022,Communities and Environment,Customer Access,Supplies and Services,Bought In Professional Services,277,19/01/2022,2201-00089,0.00,18.00,R,A MOHAMMED,No
Http://opendatacommunities.org/id/metropolitan-district-council/leeds,Leeds City Council,31/01/2022,Communities and Environment,Customer Access,Supplies and Services,Bought In Professional Services,277,19/01/2022,2201-00090,0.00,18.00,R,A MOHAMMED,No
Http://opendatacommunities.org/id/metropolitan-district-council/leeds,Leeds City Council,31/01/2022,Communities and Environment,Customer Access,Supplies and Services,Bought In Professional Services,277,26/01/2022,2201-00091,0.00,5.00,R,A MOHAMMED,No
Http://opendatacommunities.org/id/metropolitan-district-council/leeds,Leeds City Council,31/01/2022,Communities and Environment,Customer Access,Supplies and Services,Bought In Professional Services,277,26/01/2022,2201-00092,0.00,76.50,R,A MOHAMMED,No
Http://opendatacommunities.org/id/metropolitan-district-council/leeds,Leeds City Council,31/01/2022,Communities and Environment,Customer Access,Supplies and Services,Bought In Professional Services,277,26/01/2022,2201-00093,0.00,18.00,R,A MOHAMMED,No
Http://opendatacommunities.org/id/metropolitan-district-council/leeds,Leeds City Council,31/01/2022,Communities and Environment,Customer Access,Supplies and Services,Bought In Professional Services,277,26/01/2022,2201-00094,0.00,72.00,R,A MOHAMMED,No
Http://opendatacommunities.org/id/metropolitan-district-council/leeds,Leeds City Council,31/01/2022,Communities and Environment,Customer Access,Supplies and Services,Bought In Professional Services,277,26/01/2022,2201-00095,0.00,13.50,R,A MOHAMMED,No
Http://opendatacommunities.org/id/metropolitan-district-council/leeds,Leeds City Council,31/01/2022,Communities and Environment,Customer Access,Supplies and Services,Bought In Professional Services,277,26/01/2022,2201-00096,0.00,22.50,R,A MOHAMMED,No
Http://opendatacommunities.org/id/metropolitan-district-council/leeds,Leeds City Council,31/01/2022,Communities and Environment,Customer Access,Supplies and Services,Bought In Professional Services,277,26/01/2022,2201-00097,0.00,40.50,R,A MOHAMMED,No
Http://opendatacommunities.org/id/metropolitan-district-council/leeds,Leeds City Council,31/01/2022,Communities and Environment,Customer Access,Supplies and Services,Bought In Professional Services,277,26/01/2022,2201-00098,0.00,18.00,R,A MOHAMMED,No
Http://opendatacommunities.org/id/metropolitan-district-council/leeds,Leeds City Council,31/01/2022,Children and Families,Social Care,Agency Payments,Services Rendered By Other Organisations,511,05/01/2022,2201-00099,0.00,1286.40,R,REDACTED PERSONAL DATA,No
Http://opendatacommunities.org/id/metropolitan-district-council/leeds,Leeds City Council,31/01/2022,Children and Families,Social Care,Agency Payments,Services Rendered By Other Organisations,511,07/01/2022,2201-00100,0.00,4281.60,R,REDACTED PERSONAL DATA,No
Http://opendatacommunities.org/id/metropolitan-district-council/leeds,Leeds City Council,31/01/2022,Communities and Environment,Customer Access,Supplies and Services,Bought In Professional Services,277,07/01/2022,2201-00101,0.00,72.00,R,A NAMAKI,No
Http://opendatacommunities.org/id/metropolitan-district-council/leeds,Leeds City Council,31/01/2022,Communities and Environment,Customer Access,Supplies and Services,Bought In Professional Services,277,07/01/2022,2201-00102,0.00,99.00,R,A NAMAKI,No
Http://opendatacommunities.org/id/metropolitan-district-council/leeds,Leeds City Council,31/01/2022,Communities and Environment,Customer Access,Supplies and Services,Bought In Professional Services,277,07/01/2022,2201-00103,0.00,72.00,R,A NAMAKI,No
Http://opendatacommunities.org/id/metropolitan-district-council/leeds,Leeds City Council,31/01/2022,Communities and Environment,Customer Access,Supplies and Services,Bought In Professional Services,277,07/01/2022,2201-00104,0.00,18.00,R,A NAMAKI,No
Http://opendatacommunities.org/id/metropolitan-district-council/leeds,Leeds City Council,31/01/2022,Communities and Environment,Customer Access,Supplies and Services,Bought In Professional Services,277,07/01/2022,2201-00105,0.00,22.50,R,A NAMAKI,No
Http://opendatacommunities.org/id/metropolitan-district-council/leeds,Leeds City Council,31/01/2022,Communities and Environment,Customer Access,Supplies and Services,Bought In Professional Services,277,12/01/2022,2201-00106,0.00,18.00,R,A NAMAKI,No
Http://opendatacommunities.org/id/metropolitan-district-council/leeds,Leeds City Council,31/01/2022,Communities and Environment,Customer Access,Supplies and Services,Bought In Professional Services,277,12/01/2022,2201-00107,0.00,18.00,R,A NAMAKI,No
Http://opendatacommunities.org/id/metropolitan-district-council/leeds,Leeds City Council,31/01/2022,Communities and Environment,Customer Access,Supplies and Services,Bought In Professional Services,277,12/01/2022,2201-00108,0.00,18.00,R,A NAMAKI,No
Http://opendatacommunities.org/id/metropolitan-district-council/leeds,Leeds City Council,31/01/2022,Communities and Environment,Customer Access,Supplies and Services,Bought In Professional Services,277,12/01/2022,2201-00109,0.00,27.00,R,A NAMAKI,No
Http://opendatacommunities.org/id/metropolitan-district-council/leeds,Leeds City Council,31/01/2022,Communities and Environment,Customer Access,Supplies and Services,Bought In Professional Services,277,19/01/2022,2201-00110,0.00,9.00,R,A NAMAKI,No
Http://opendatacommunities.org/id/metropolitan-district-council/leeds,Leeds City Council,31/01/2022,Communities and Environment,Customer Access,Supplies and Services,Bought In Professional Services,277,19/01/2022,2201-00111,0.00,18.00,R,A NAMAKI,No
Http://opendatacommunities.org/id/metropolitan-district-council/leeds,Leeds City Council,31/01/2022,Communities and Environment,Customer Access,Supplies and Services,Bought In Professional Services,277,19/01/2022,2201-00112,0.00,18.00,R,A NAMAKI,No
Http://opendatacommunities.org/id/metropolitan-district-council/leeds,Leeds City Council,31/01/2022,Communities and Environment,Customer Access,Supplies and Services,Bought In Professional Services,277,19/01/2022,2201-00113,0.00,18.00,R,A NAMAKI,No
Http://opendatacommunities.org/id/metropolitan-district-council/leeds,Leeds City Council,31/01/2022,Communities and Environment,Customer Access,Supplies and Services,Bought In Professional Services,277,19/01/2022,2201-00114,0.00,72.00,R,A NAMAKI,No
Http://opendatacommunities.org/id/metropolitan-district-council/leeds,Leeds City Council,31/01/2022,Communities and Environment,Customer Access,Supplies and Services,Bought In Professional Services,277,19/01/2022,2201-00115,0.00,18.00,R,A NAMAKI,No
Http://opendatacommunities.org/id/metropolitan-district-council/leeds,Leeds City Council,31/01/2022,Communities and Environment,Customer Access,Supplies and Services,Bought In Professional Services,277,26/01/2022,2201-00116,0.00,27.90,R,A NAMAKI,No
Http://opendatacommunities.org/id/metropolitan-district-council/leeds,Leeds City Council,31/01/2022,Communities and Environment,Customer Access,Supplies and Services,Bought In Professional Services,277,26/01/2022,2201-00117,0.00,18.00,R,A NAMAKI,No
Http://opendatacommunities.org/id/metropolitan-district-council/leeds,Leeds City Council,31/01/2022,Communities and Environment,Customer Access,Supplies and Services,Bought In Professional Services,277,26/01/2022,2201-00118,0.00,27.00,R,A NAMAKI,No
Http://opendatacommunities.org/id/metropolitan-district-council/leeds,Leeds City Council,31/01/2022,Communities and Environment,Customer Access,Supplies and Services,Bought In Professional Services,277,26/01/2022,2201-00119,0.00,18.00,R,A NAMAKI,No
Http://opendatacommunities.org/id/metropolitan-district-council/leeds,Leeds City Council,31/01/2022,Communities and Environment,Customer Access,Supplies and Services,Bought In Professional Services,277,26/01/2022,2201-00120,0.00,27.00,R,A NAMAKI,No
Http://opendatacommunities.org/id/metropolitan-district-council/leeds,Leeds City Council,31/01/2022,Communities and Environment,Customer Access,Supplies and Services,Bought In Professional Services,277,26/01/2022,2201-00121,0.00,18.00,R,A NAMAKI,No
Http://opendatacommunities.org/id/metropolitan-district-council/leeds,Leeds City Council,31/01/2022,Communities and Environment,Customer Access,Supplies and Services,Bought In Professional Services,277,26/01/2022,2201-00122,0.00,45.00,R,A NAMAKI,No
Http://opendatacommunities.org/id/metropolitan-district-council/leeds,Leeds City Council,31/01/2022,Communities and Environment,Customer Access,Supplies and Services,Bought In Professional Services,277,26/01/2022,2201-00123,0.00,27.00,R,A NAMAKI,No
Http://opendatacommunities.org/id/metropolitan-district-council/leeds,Leeds City Council,31/01/2022,Children and Families,Social Care,Agency Payments,Services Rendered By Other Organisations,511,07/01/2022,2201-00124,0.00,535.20,R,REDACTED PERSONAL DATA,No
Http://opendatacommunities.org/id/metropolitan-district-council/leeds,Leeds City Council,31/01/2022,Communities and Environment,Benefits Welfare and Poverty,Supplies and Services,Grant Related Expenditure,290,12/01/2022,2201-00125,0.00,500.00,R,REDACTED PERSONAL DATA,No
Http://opendatacommunities.org/id/metropolitan-district-council/leeds,Leeds City Council,31/01/2022,Resources and Housing,Commercial Services,Supplies and Services,Other Hired And Contracted Services,265,28/01/2022,2201-00126,0.00,96.80,R,REDACTED PERSONAL DATA,No
Http://opendatacommunities.org/id/metropolitan-district-council/leeds,Leeds City Council,31/01/2022,Resources and Housing,HRA Housing Leeds,Capital,OTHER COSTS,7,19/01/2022,2201-00127,0.00,100.00,C,REDACTED PERSONAL DATA,No
Http://opendatacommunities.org/id/metropolitan-district-council/leeds,Leeds City Council,31/01/2022,Communities and Environment,Waste Management,Employees,Training & Development,70,06/01/2022,2201-00128,0.00,236.80,R,A T Nerac Ltd,No
Http://opendatacommunities.org/id/metropolitan-district-council/leeds,Leeds City Council,31/01/2022,Children and Families,Social Care,Agency Payments,Independent Fostering Agencies,509,19/01/2022,2201-00129,0.00,1622.00,R,A Taxis,No
Http://opendatacommunities.org/id/metropolitan-district-council/leeds,Leeds City Council,31/01/2022,Communities and Environment,Benefits Welfare and Poverty,Supplies and Services,Grant Related Expenditure,298,19/01/2022,2201-00130,0.00,500.00,R,REDACTED PERSONAL DATA,No
Http://opendatacommunities.org/id/metropolitan-district-council/leeds,Leeds City Council,31/01/2022,Children and Families,Social Care,Agency Payments,Services Rendered By Other Organisations,511,07/01/2022,2201-00131,0.00,535.20,R,REDACTED PERSONAL DATA,No
Http://opendatacommunities.org/id/metropolitan-district-council/leeds,Leeds City Council,31/01/2022,Children and Families,Social Care,Agency Payments,Services Rendered By Other Organisations,511,07/01/2022,2201-00132,0.00,267.60,R,REDACTED PERSONAL DATA,No
Http://opendatacommunities.org/id/metropolitan-district-council/leeds,Leeds City Council,31/01/2022,Communities and Environment,Customer Access,Supplies and Services,Books & Audio-Visual Materials,206,07/12/2021,2201-00133,0.00,145.00,R,A Way With Media,Yes
Http://opendatacommunities.org/id/metropolitan-district-council/leeds,Leeds City Council,31/01/2022,Children and Families,Social Care,Agency Payments,General External Residential Placements,507,05/01/2022,2201-00134,0.00,29142.90,R,A Wilderness Way Ltd,No
Http://opendatacommunities.org/id/metropolitan-district-council/leeds,Leeds City Council,31/01/2022,City Development,Libraries Arts & Heritage,Supplies and Services,Other Hired And Contracted Services,265,25/01/2022,2201-00135,0.00,52.00,R,REDACTED PERSONAL DATA,No
Http://opendatacommunities.org/id/metropolitan-district-council/leeds,Leeds City Council,31/01/2022,Communities and Environment,Waste Management,Capital,FURNITURE AND EQUIPMENT,5,10/01/2022,2201-00136,0.00,12085.00,C,A&C Weber Uk Ltd,No
Http://opendatacommunities.org/id/metropolitan-district-council/leeds,Leeds City Council,31/01/2022,Communities and Environment,Waste Management,Supplies and Services,Office Consumables,210,14/01/2022,2201-00137,0.00,50.00,R,A&C Weber Uk Ltd,No
Http://opendatacommunities.org/id/metropolitan-district-council/leeds,Leeds City Council,31/01/2022,Resources and Housing,Leeds Building Services,Supplies and Services,Other Hired And Contracted Services,265,07/01/2022,2201-00138,0.00,222.00,R,A1 STAIR LIFT SERVICES,No
Http://opendatacommunities.org/id/metropolitan-district-council/leeds,Leeds City Council,31/01/2022,Resources and Housing,Leeds Building Services,Supplies and Services,Other Hired And Contracted Services,265,12/01/2022,2201-00139,0.00,1736.40,R,A1 STAIR LIFT SERVICES,No
Http://opendatacommunities.org/id/metropolitan-district-council/leeds,Leeds City Council,31/01/2022,City Development,Libraries Arts & Heritage,Supplies and Services,Other Hired And Contracted Services,265,14/01/2022,2201-00140,0.00,192.50,R,A1 STAIR LIFT SERVICES,No
Http://opendatacommunities.org/id/metropolitan-district-council/leeds,Leeds City Council,31/01/2022,Resources and Housing,Leeds Building Services,Supplies and Services,Other Hired And Contracted Services,265,21/01/2022,2201-00141,0.00,112.50,R,A1 STAIR LIFT SERVICES,No
Http://opendatacommunities.org/id/metropolitan-district-council/leeds,Leeds City Council,31/01/2022,Resources and Housing,Leeds Building Services,Supplies and Services,Other Hired And Contracted Services,265,31/01/2022,2201-00142,0.00,1215.00,R,A1 STAIR LIFT SERVICES,No
Http://opendatacommunities.org/id/metropolitan-district-council/leeds,Leeds City Council,31/01/2022,Communities and Environment,Parks and Countryside,Supplies and Services,Resaleable Materials,204,20/12/2021,2201-00143,0.00,130.82,R,Aagrah Foods,Yes
Http://opendatacommunities.org/id/metropolitan-district-council/leeds,Leeds City Council,31/01/2022,Resources and Housing,HRA Housing Leeds,Capital,CONSTRUCTION,3,13/01/2022,2201-00144,0.00,1355.00,C,AAL LTD,No
Http://opendatacommunities.org/id/metropolitan-district-council/leeds,Leeds City Council,31/01/2022,City Development,Recreation,External Income,Sporting & Other Recreational Fees,928,27/01/2022,2201-00145,0.00,19.50,R,REDACTED PERSONAL DATA,No
Http://opendatacommunities.org/id/metropolitan-district-council/leeds,Leeds City Council,31/01/2022,Adults and Health,Services For Older People - 65 And Over,Agency Payments,Residential Care Dementia,571,07/01/2022,2201-00146,0.00,1245.20,R,Aaron Court Care Home,No
Http://opendatacommunities.org/id/metropolitan-district-council/leeds,Leeds City Council,31/01/2022,Communities and Environment,Benefits Welfare and Poverty,Supplies and Services,Grant Related Expenditure,298,17/01/2022,2201-00147,0.00,500.00,R,REDACTED PERSONAL DATA,No
Http://opendatacommunities.org/id/metropolitan-district-council/leeds,Leeds City Council,31/01/2022,Communities and Environment,Benefits Welfare and Poverty,Supplies and Services,Grant Related Expenditure,298,28/01/2022,2201-00148,0.00,500.00,R,REDACTED PERSONAL DATA,No
Http://opendatacommunities.org/id/metropolitan-district-council/leeds,Leeds City Council,31/01/2022,Communities and Environment,Benefits Welfare and Poverty,Supplies and Services,Grant Related Expenditure,290,11/01/2022,2201-00149,0.00,500.00,R,REDACTED PERSONAL DATA,No
Http://opendatacommunities.org/id/metropolitan-district-council/leeds,Leeds City Council,31/01/2022,Children and Families,Social Care,Appropriations,Leaving Care Allowances,634,27/01/2022,2201-00150,0.00,250.00,R,AB Driving School,No
Http://opendatacommunities.org/id/metropolitan-district-council/leeds,Leeds City Council,31/01/2022,City Development,Libraries Arts & Heritage,Supplies and Services,Operational Furniture And Equipment,203,23/12/2021,2201-00151,0.00,81.28,R,Abaris International L,Yes
Http://opendatacommunities.org/id/metropolitan-district-council/leeds,Leeds City Council,31/01/2022,Communities and Environment,Benefits Welfare and Poverty,Supplies and Services,Grant Related Expenditure,290,28/01/2022,2201-00152,0.00,500.00,R,REDACTED PERSONAL DATA,No
Http://opendatacommunities.org/id/metropolitan-district-council/leeds,Leeds City Council,31/01/2022,Resources and Housing,Human Resources,Employees,Occupational Health,85,26/01/2022,2201-00153,0.00,25.00,R,Abbey Grange Medical Practice,No
Http://opendatacommunities.org/id/metropolitan-district-council/leeds,Leeds City Council,31/01/2022,Adults and Health,Public Health,Agency Payments,Public Health Commissioned Services,526,28/01/2022,2201-00154,0.00,2091.40,R,Abbey Grange Medical Practice,No
Http://opendatacommunities.org/id/metropolitan-district-council/leeds,Leeds City Council,31/01/2022,Children and Families,Social Care,Agency Payments,Contact,548,22/12/2021,2201-00155,0.00,3.38,R,Abbey House Museum,Yes
Http://opendatacommunities.org/id/metropolitan-district-council/leeds,Leeds City Council,31/01/2022,Children and Families,Learning,Supplies and Services,Food & Drink,231,07/01/2022,2201-00156,0.00,43.20,R,Abbey Multi Academy Trust,No
Http://opendatacommunities.org/id/metropolitan-district-council/leeds,Leeds City Council,31/01/2022,Children and Families,Learning,Supplies and Services,Food & Drink,231,07/01/2022,2201-00157,0.00,43.20,R,Abbey Multi Academy Trust,No
Http://opendatacommunities.org/id/metropolitan-district-council/leeds,Leeds City Council,31/01/2022,Communities and Environment,Benefits Welfare and Poverty,Supplies and Services,Grant Related Expenditure,298,07/01/2022,2201-00158,0.00,500.00,R,REDACTED PERSONAL DATA,No
Http://opendatacommunities.org/id/metropolitan-district-council/leeds,Leeds City Council,31/01/2022,Communities and Environment,Benefits Welfare and Poverty,Supplies and Services,Grant Related Expenditure,298,12/01/2022,2201-00159,0.00,500.00,R,REDACTED PERSONAL DATA,No
Http://opendatacommunities.org/id/metropolitan-district-council/leeds,Leeds City Council,31/01/2022,Communities and Environment,Benefits Welfare and Poverty,Supplies and Services,Grant Related Expenditure,298,13/01/2022,2201-00160,0.00,500.00,R,REDACTED PERSONAL DATA,No
Http://opendatacommunities.org/id/metropolitan-district-council/leeds,Leeds City Council,31/01/2022,Communities and Environment,Benefits Welfare and Poverty,Supplies and Services,Grant Related Expenditure,298,25/01/2022,2201-00161,0.00,500.00,R,REDACTED PERSONAL DATA,No
Http://opendatacommunities.org/id/metropolitan-district-council/leeds,Leeds City Council,31/01/2022,Communities and Environment,Benefits Welfare and Poverty,Supplies and Services,Grant Related Expenditure,298,28/01/2022,2201-00162,0.00,500.00,R,REDACTED PERSONAL DATA,No
Http://opendatacommunities.org/id/metropolitan-district-council/leeds,Leeds City Council,31/01/2022,Communities and Environment,Benefits Welfare and Poverty,Supplies and Services,Grant Related Expenditure,298,13/01/2022,2201-00163,0.00,500.00,R,REDACTED PERSONAL DATA,No
Http://opendatacommunities.org/id/metropolitan-district-council/leeds,Leeds City Council,31/01/2022,Communities and Environment,Parks and Countryside,Supplies and Services,Other Hired And Contracted Services,265,07/01/2022,2201-00164,0.00,2200.00,R,Abbotts Memorials,No
Http://opendatacommunities.org/id/metropolitan-district-council/leeds,Leeds City Council,31/01/2022,Communities and Environment,Parks and Countryside,Supplies and Services,Other Hired And Contracted Services,265,20/01/2022,2201-00165,0.00,6170.00,R,Abbotts Memorials,No
Http://opendatacommunities.org/id/metropolitan-district-council/leeds,Leeds City Council,31/01/2022,Communities and Environment,Parks and Countryside,Supplies and Services,Other Hired And Contracted Services,265,28/01/2022,2201-00166,0.00,550.00,R,Abbotts Memorials,No
Http://opendatacommunities.org/id/metropolitan-district-council/leeds,Leeds City Council,31/01/2022,Communities and Environment,Benefits Welfare and Poverty,Supplies and Services,Grant Related Expenditure,290,28/01/2022,2201-00167,0.00,500.00,R,REDACTED PERSONAL DATA,No
Http://opendatacommunities.org/id/metropolitan-district-council/leeds,Leeds City Council,31/01/2022,Children and Families,Social Care,Agency Payments,General External Residential Placements,507,05/01/2022,2201-00168,0.00,15942.99,R,ABC Care and Educationd LTD,No
Http://opendatacommunities.org/id/metropolitan-district-council/leeds,Leeds City Council,31/01/2022,Children and Families,Social Care,Agency Payments,General External Residential Placements,507,05/01/2022,2201-00169,0.00,5939.64,R,ABC Care and Educationd LTD,No
Http://opendatacommunities.org/id/metropolitan-district-council/leeds,Leeds City Council,31/01/2022,Children and Families,Social Care,Agency Payments,General External Residential Placements,507,31/01/2022,2201-00170,0.00,15942.99,R,ABC Care and Educationd LTD,No
Http://opendatacommunities.org/id/metropolitan-district-council/leeds,Leeds City Council,31/01/2022,Children and Families,Social Care,Agency Payments,Services Rendered By Other Organisations,511,05/01/2022,2201-00171,0.00,5788.80,R,ABC NURSERY AT LUFC,No
Http://opendatacommunities.org/id/metropolitan-district-council/leeds,Leeds City Council,31/01/2022,Children and Families,Social Care,Agency Payments,Services Rendered By Other Organisations,511,07/01/2022,2201-00172,0.00,11774.40,R,ABC NURSERY AT LUFC,No
Http://opendatacommunities.org/id/metropolitan-district-council/leeds,Leeds City Council,31/01/2022,Children and Families,Social Care,Agency Payments,Services Rendered By Other Organisations,511,05/01/2022,2201-00173,0.00,2653.20,R,Abc@D'S Childcare,No
Http://opendatacommunities.org/id/metropolitan-district-council/leeds,Leeds City Council,31/01/2022,Children and Families,Social Care,Agency Payments,Services Rendered By Other Organisations,511,07/01/2022,2201-00174,0.00,9366.00,R,Abc@D'S Childcare,No
Http://opendatacommunities.org/id/metropolitan-district-council/leeds,Leeds City Council,31/01/2022,City Development,Economic Development,Supplies and Services,Grant Related Expenditure,290,17/01/2022,2201-00175,0.00,3246.00,R,Abdalla Denay And Abdelrahim Ali,No
Http://opendatacommunities.org/id/metropolitan-district-council/leeds,Leeds City Council,31/01/2022,City Development,Economic Development,Supplies and Services,Grant Related Expenditure,290,12/01/2022,2201-00176,0.00,5140.00,R,Abdul Berhan,No
Http://opendatacommunities.org/id/metropolitan-district-council/leeds,Leeds City Council,31/01/2022,Communities and Environment,Customer Access,Supplies and Services,Bought In Professional Services,277,19/01/2022,2201-00177,0.00,36.00,R,Abdul Kalam,No
Http://opendatacommunities.org/id/metropolitan-district-council/leeds,Leeds City Council,31/01/2022,Communities and Environment,Customer Access,Supplies and Services,Bought In Professional Services,277,19/01/2022,2201-00178,0.00,9.00,R,Abdul Kalam,No
Http://opendatacommunities.org/id/metropolitan-district-council/leeds,Leeds City Council,31/01/2022,Communities and Environment,Customer Access,Supplies and Services,Bought In Professional Services,277,19/01/2022,2201-00179,0.00,18.00,R,Abdul Kalam,No
Http://opendatacommunities.org/id/metropolitan-district-council/leeds,Leeds City Council,31/01/2022,Communities and Environment,Customer Access,Supplies and Services,Bought In Professional Services,277,26/01/2022,2201-00180,0.00,18.00,R,Abdul Kalam,No
Http://opendatacommunities.org/id/metropolitan-district-council/leeds,Leeds City Council,31/01/2022,Communities and Environment,Customer Access,Supplies and Services,Bought In Professional Services,277,26/01/2022,2201-00181,0.00,18.00,R,Abdul Kalam,No
Http://opendatacommunities.org/id/metropolitan-district-council/leeds,Leeds City Council,31/01/2022,Communities and Environment,Customer Access,Supplies and Services,Bought In Professional Services,277,26/01/2022,2201-00182,0.00,18.00,R,Abdul Kalam,No
Http://opendatacommunities.org/id/metropolitan-district-council/leeds,Leeds City Council,31/01/2022,Communities and Environment,Customer Access,Supplies and Services,Bought In Professional Services,277,26/01/2022,2201-00183,0.00,18.00,R,Abdul Kalam,No
Http://opendatacommunities.org/id/metropolitan-district-council/leeds,Leeds City Council,31/01/2022,Communities and Environment,Customer Access,Supplies and Services,Bought In Professional Services,277,26/01/2022,2201-00184,0.00,33.00,R,Abdul Kalam,No
Http://opendatacommunities.org/id/metropolitan-district-council/leeds,Leeds City Council,31/01/2022,Communities and Environment,Customer Access,Supplies and Services,Bought In Professional Services,277,07/01/2022,2201-00185,0.00,9.00,R,Abdulahad Denha,No
Http://opendatacommunities.org/id/metropolitan-district-council/leeds,Leeds City Council,31/01/2022,Communities and Environment,Customer Access,Supplies and Services,Bought In Professional Services,277,12/01/2022,2201-00186,0.00,9.00,R,Abdulahad Denha,No
Http://opendatacommunities.org/id/metropolitan-district-council/leeds,Leeds City Council,31/01/2022,Communities and Environment,Customer Access,Supplies and Services,Bought In Professional Services,277,12/01/2022,2201-00187,0.00,18.00,R,Abdulahad Denha,No
Http://opendatacommunities.org/id/metropolitan-district-council/leeds,Leeds City Council,31/01/2022,Communities and Environment,Customer Access,Supplies and Services,Bought In Professional Services,277,12/01/2022,2201-00188,0.00,18.00,R,Abdulahad Denha,No
Http://opendatacommunities.org/id/metropolitan-district-council/leeds,Leeds City Council,31/01/2022,Communities and Environment,Customer Access,Supplies and Services,Bought In Professional Services,277,12/01/2022,2201-00189,0.00,22.50,R,Abdulahad Denha,No
Http://opendatacommunities.org/id/metropolitan-district-council/leeds,Leeds City Council,31/01/2022,Communities and Environment,Customer Access,Supplies and Services,Bought In Professional Services,277,26/01/2022,2201-00190,0.00,22.50,R,Abdulahad Denha,No
Http://opendatacommunities.org/id/metropolitan-district-council/leeds,Leeds City Council,31/01/2022,Communities and Environment,Customer Access,Supplies and Services,Bought In Professional Services,277,26/01/2022,2201-00191,0.00,13.50,R,Abdulahad Denha,No
Http://opendatacommunities.org/id/metropolitan-district-council/leeds,Leeds City Council,31/01/2022,Communities and Environment,Customer Access,Supplies and Services,Bought In Professional Services,277,07/01/2022,2201-00192,0.00,18.00,R,Abdulrahim Dastyar,No
Http://opendatacommunities.org/id/metropolitan-district-council/leeds,Leeds City Council,31/01/2022,Communities and Environment,Customer Access,Supplies and Services,Bought In Professional Services,277,07/01/2022,2201-00193,0.00,18.00,R,Abdulrahim Dastyar,No
Http://opendatacommunities.org/id/metropolitan-district-council/leeds,Leeds City Council,31/01/2022,Communities and Environment,Customer Access,Supplies and Services,Bought In Professional Services,277,12/01/2022,2201-00194,0.00,27.00,R,Abdulrahim Dastyar,No
Http://opendatacommunities.org/id/metropolitan-district-council/leeds,Leeds City Council,31/01/2022,Communities and Environment,Customer Access,Supplies and Services,Bought In Professional Services,277,12/01/2022,2201-00195,0.00,18.00,R,Abdulrahim Dastyar,No
Http://opendatacommunities.org/id/metropolitan-district-council/leeds,Leeds City Council,31/01/2022,Communities and Environment,Customer Access,Supplies and Services,Bought In Professional Services,277,12/01/2022,2201-00196,0.00,18.00,R,Abdulrahim Dastyar,No
Http://opendatacommunities.org/id/metropolitan-district-council/leeds,Leeds City Council,31/01/2022,Communities and Environment,Customer Access,Supplies and Services,Bought In Professional Services,277,12/01/2022,2201-00197,0.00,9.00,R,Abdulrahim Dastyar,No
Http://opendatacommunities.org/id/metropolitan-district-council/leeds,Leeds City Council,31/01/2022,Communities and Environment,Customer Access,Supplies and Services,Bought In Professional Services,277,19/01/2022,2201-00198,0.00,9.00,R,Abdulrahim Dastyar,No
Http://opendatacommunities.org/id/metropolitan-district-council/leeds,Leeds City Council,31/01/2022,Communities and Environment,Customer Access,Supplies and Services,Bought In Professional Services,277,19/01/2022,2201-00199,0.00,18.00,R,Abdulrahim Dastyar,No
Http://opendatacommunities.org/id/metropolitan-district-council/leeds,Leeds City Council,31/01/2022,Communities and Environment,Customer Access,Supplies and Services,Bought In Professional Services,277,19/01/2022,2201-00200,0.00,18.00,R,Abdulrahim Dastyar,No
Http://opendatacommunities.org/id/metropolitan-district-council/leeds,Leeds City Council,31/01/2022,Communities and Environment,Customer Access,Supplies and Services,Bought In Professional Services,277,19/01/2022,2201-00201,0.00,18.00,R,Abdulrahim Dastyar,No
Http://opendatacommunities.org/id/metropolitan-district-council/leeds,Leeds City Council,31/01/2022,Communities and Environment,Customer Access,Supplies and Services,Bought In Professional Services,277,26/01/2022,2201-00202,0.00,18.00,R,Abdulrahim Dastyar,No
Http://opendatacommunities.org/id/metropolitan-district-council/leeds,Leeds City Council,31/01/2022,Communities and Environment,Customer Access,Supplies and Services,Bought In Professional Services,277,26/01/2022,2201-00203,0.00,18.00,R,Abdulrahim Dastyar,No
Http://opendatacommunities.org/id/metropolitan-district-council/leeds,Leeds City Council,31/01/2022,Communities and Environment,Customer Access,Supplies and Services,Bought In Professional Services,277,26/01/2022,2201-00204,0.00,18.00,R,Abdulrahim Dastyar,No
Http://opendatacommunities.org/id/metropolitan-district-council/leeds,Leeds City Council,31/01/2022,Communities and Environment,Customer Access,Supplies and Services,Bought In Professional Services,277,26/01/2022,2201-00205,0.00,22.50,R,Abdulrahim Dastyar,No
Http://opendatacommunities.org/id/metropolitan-district-council/leeds,Leeds City Council,31/01/2022,Children and Families,Social Care,Appropriations,16 Plus Top Up Allowance,625,14/01/2022,2201-00206,0.00,30.00,R,REDACTED PERSONAL DATA,No
Http://opendatacommunities.org/id/metropolitan-district-council/leeds,Leeds City Council,31/01/2022,Children and Families,Social Care,Appropriations,16 Plus Top Up Allowance,625,21/01/2022,2201-00207,0.00,30.00,R,REDACTED PERSONAL DATA,No
Http://opendatacommunities.org/id/metropolitan-district-council/leeds,Leeds City Council,31/01/2022,Children and Families,Social Care,Appropriations,16 Plus Top Up Allowance,625,28/01/2022,2201-00208,0.00,30.00,R,REDACTED PERSONAL DATA,No
Http://opendatacommunities.org/id/metropolitan-district-council/leeds,Leeds City Council,31/01/2022,Children and Families,Social Care,Agency Payments,Placement Support,550,18/01/2022,2201-00209,0.00,150.00,R,Aberford Childcare Services,No
Http://opendatacommunities.org/id/metropolitan-district-council/leeds,Leeds City Council,31/01/2022,Children and Families,Social Care,Agency Payments,Placement Support,550,25/01/2022,2201-00210,0.00,150.00,R,Aberford Childcare Services,No
Http://opendatacommunities.org/id/metropolitan-district-council/leeds,Leeds City Council,31/01/2022,Adults and Health,Services For Older People - 65 And Over,Agency Payments,Nursing Home,570,07/01/2022,2201-00211,0.00,25519.72,R,Aberford Hall,No
Http://opendatacommunities.org/id/metropolitan-district-council/leeds,Leeds City Council,31/01/2022,Communities and Environment,Benefits Welfare and Poverty,Supplies and Services,Grant Related Expenditure,298,12/01/2022,2201-00212,0.00,500.00,R,REDACTED PERSONAL DATA,No
Http://opendatacommunities.org/id/metropolitan-district-council/leeds,Leeds City Council,31/01/2022,Resources and Housing,Leeds Building Services,Supplies and Services,Operational Materials,205,11/01/2022,2201-00213,0.00,340.00,R,ABI GARAGE DOORS LTD,No
Http://opendatacommunities.org/id/metropolitan-district-council/leeds,Leeds City Council,31/01/2022,Resources and Housing,Leeds Building Services,Supplies and Services,Operational Materials,205,11/01/2022,2201-00214,0.00,340.00,R,ABI GARAGE DOORS LTD,No
Http://opendatacommunities.org/id/metropolitan-district-council/leeds,Leeds City Council,31/01/2022,Resources and Housing,Leeds Building Services,Supplies and Services,Operational Materials,205,11/01/2022,2201-00215,0.00,340.00,R,ABI GARAGE DOORS LTD,No
Http://opendatacommunities.org/id/metropolitan-district-council/leeds,Leeds City Council,31/01/2022,Resources and Housing,Leeds Building Services,Supplies and Services,Operational Materials,205,11/01/2022,2201-00216,0.00,340.00,R,ABI GARAGE DOORS LTD,No
Http://opendatacommunities.org/id/metropolitan-district-council/leeds,Leeds City Council,31/01/2022,Resources and Housing,Leeds Building Services,Supplies and Services,Operational Materials,205,11/01/2022,2201-00217,0.00,336.81,R,ABI GARAGE DOORS LTD,No
Http://opendatacommunities.org/id/metropolitan-district-council/leeds,Leeds City Council,31/01/2022,Resources and Housing,Leeds Building Services,Supplies and Services,Operational Materials,205,17/01/2022,2201-00218,0.00,16.00,R,ABI GARAGE DOORS LTD,No
Http://opendatacommunities.org/id/metropolitan-district-council/leeds,Leeds City Council,31/01/2022,Resources and Housing,Leeds Building Services,Supplies and Services,Operational Materials,205,17/01/2022,2201-00219,0.00,340.00,R,ABI GARAGE DOORS LTD,No
Http://opendatacommunities.org/id/metropolitan-district-council/leeds,Leeds City Council,31/01/2022,Resources and Housing,Leeds Building Services,Supplies and Services,Operational Materials,205,17/01/2022,2201-00220,0.00,336.81,R,ABI GARAGE DOORS LTD,No
Http://opendatacommunities.org/id/metropolitan-district-council/leeds,Leeds City Council,31/01/2022,Resources and Housing,Leeds Building Services,Supplies and Services,Operational Materials,205,17/01/2022,2201-00221,0.00,336.81,R,ABI GARAGE DOORS LTD,No
Http://opendatacommunities.org/id/metropolitan-district-council/leeds,Leeds City Council,31/01/2022,Resources and Housing,Leeds Building Services,Supplies and Services,Operational Materials,205,21/01/2022,2201-00222,0.00,336.81,R,ABI GARAGE DOORS LTD,No
Http://opendatacommunities.org/id/metropolitan-district-council/leeds,Leeds City Council,31/01/2022,Resources and Housing,Leeds Building Services,Supplies and Services,Operational Materials,205,21/01/2022,2201-00223,0.00,376.16,R,ABI GARAGE DOORS LTD,No
Http://opendatacommunities.org/id/metropolitan-district-council/leeds,Leeds City Council,31/01/2022,Resources and Housing,Leeds Building Services,Supplies and Services,Operational Materials,205,21/01/2022,2201-00224,0.00,376.16,R,ABI GARAGE DOORS LTD,No
Http://opendatacommunities.org/id/metropolitan-district-council/leeds,Leeds City Council,31/01/2022,Resources and Housing,Leeds Building Services,Supplies and Services,Operational Materials,205,21/01/2022,2201-00225,0.00,336.81,R,ABI GARAGE DOORS LTD,No
Http://opendatacommunities.org/id/metropolitan-district-council/leeds,Leeds City Council,31/01/2022,Resources and Housing,Leeds Building Services,Supplies and Services,Operational Materials,205,21/01/2022,2201-00226,0.00,336.81,R,ABI GARAGE DOORS LTD,No
Http://opendatacommunities.org/id/metropolitan-district-council/leeds,Leeds City Council,31/01/2022,Resources and Housing,Leeds Building Services,Supplies and Services,Operational Materials,205,21/01/2022,2201-00227,0.00,8.75,R,ABI GARAGE DOORS LTD,No
Http://opendatacommunities.org/id/metropolitan-district-council/leeds,Leeds City Council,31/01/2022,Resources and Housing,Leeds Building Services,Supplies and Services,Operational Materials,205,21/01/2022,2201-00228,0.00,16.00,R,ABI GARAGE DOORS LTD,No
Http://opendatacommunities.org/id/metropolitan-district-council/leeds,Leeds City Council,31/01/2022,Resources and Housing,Leeds Building Services,Supplies and Services,Operational Materials,205,21/01/2022,2201-00229,0.00,16.00,R,ABI GARAGE DOORS LTD,No
Http://opendatacommunities.org/id/metropolitan-district-council/leeds,Leeds City Council,31/01/2022,Resources and Housing,Leeds Building Services,Supplies and Services,Operational Materials,205,25/01/2022,2201-00230,0.00,350.00,R,ABI GARAGE DOORS LTD,No
Http://opendatacommunities.org/id/metropolitan-district-council/leeds,Leeds City Council,31/01/2022,Communities and Environment,Customer Access,Supplies and Services,Bought In Professional Services,277,07/01/2022,2201-00231,0.00,10.20,R,Abida Begum,No
Http://opendatacommunities.org/id/metropolitan-district-council/leeds,Leeds City Council,31/01/2022,Children and Families,Social Care,Appropriations,Leaving Care Allowances,634,14/01/2022,2201-00232,0.00,40.00,R,REDACTED PERSONAL DATA,No
Http://opendatacommunities.org/id/metropolitan-district-council/leeds,Leeds City Council,31/01/2022,Children and Families,Social Care,Appropriations,Leaving Care Allowances,634,21/01/2022,2201-00233,0.00,40.00,R,REDACTED PERSONAL DATA,No
Http://opendatacommunities.org/id/metropolitan-district-council/leeds,Leeds City Council,31/01/2022,Insurance,Insurance,Supplies and Services,Insurance Claims,248,25/01/2022,2201-00234,0.00,1385.58,R,REDACTED PERSONAL DATA,No
Http://opendatacommunities.org/id/metropolitan-district-council/leeds,Leeds City Council,31/01/2022,Communities and Environment,Benefits Welfare and Poverty,Supplies and Services,Grant Related Expenditure,298,26/01/2022,2201-00235,0.00,500.00,R,REDACTED PERSONAL DATA,No
Http://opendatacommunities.org/id/metropolitan-district-council/leeds,Leeds City Council,31/01/2022,Communities and Environment,Benefits Welfare and Poverty,Supplies and Services,Grant Related Expenditure,290,21/01/2022,2201-00236,0.00,500.00,R,REDACTED PERSONAL DATA,No
Http://opendatacommunities.org/id/metropolitan-district-council/leeds,Leeds City Council,31/01/2022,Children and Families,Social Care,Agency Payments,Contact,548,19/01/2022,2201-00237,0.00,9.45,R,REDACTED PERSONAL DATA,No
Http://opendatacommunities.org/id/metropolitan-district-council/leeds,Leeds City Council,31/01/2022,Children and Families,Social Care,Appropriations,Leaving Care Allowances,634,19/01/2022,2201-00238,0.00,7.30,R,REDACTED PERSONAL DATA,No
Http://opendatacommunities.org/id/metropolitan-district-council/leeds,Leeds City Council,31/01/2022,Children and Families,Social Care,Agency Payments, Direct Work,549,21/01/2022,2201-00239,0.00,3.58,R,REDACTED PERSONAL DATA,No
Http://opendatacommunities.org/id/metropolitan-district-council/leeds,Leeds City Council,31/01/2022,Children and Families,Social Care,Appropriations,Leaving Care Allowances,634,26/01/2022,2201-00240,0.00,40.00,R,REDACTED PERSONAL DATA,No
Http://opendatacommunities.org/id/metropolitan-district-council/leeds,Leeds City Council,31/01/2022,Children and Families,Social Care,Appropriations,Leaving Care Allowances,634,31/01/2022,2201-00241,0.00,2.75,R,REDACTED PERSONAL DATA,No
Http://opendatacommunities.org/id/metropolitan-district-council/leeds,Leeds City Council,31/01/2022,Children and Families,Social Care,Agency Payments, Direct Work,549,31/01/2022,2201-00242,0.00,2.00,R,REDACTED PERSONAL DATA,No
Http://opendatacommunities.org/id/metropolitan-district-council/leeds,Leeds City Council,31/01/2022,Children and Families,Social Care,Agency Payments, Direct Work,549,31/01/2022,2201-00243,0.00,20.22,R,REDACTED PERSONAL DATA,No
Http://opendatacommunities.org/id/metropolitan-district-council/leeds,Leeds City Council,31/01/2022,Communities and Environment,Benefits Welfare and Poverty,Supplies and Services,Grant Related Expenditure,298,25/01/2022,2201-00244,0.00,500.00,R,REDACTED PERSONAL DATA,No
Http://opendatacommunities.org/id/metropolitan-district-council/leeds,Leeds City Council,31/01/2022,City Development,Economic Development,Supplies and Services,Grant Related Expenditure,290,07/01/2022,2201-00245,0.00,15000.00,R,Abraham Moon & Sons,No
Http://opendatacommunities.org/id/metropolitan-district-council/leeds,Leeds City Council,31/01/2022,Communities and Environment,Parks and Countryside,Premises,Maintenance Of Buildings,101,13/12/2021,2201-00246,0.00,579.60,R,Abram Pulman And Sons,Yes
Http://opendatacommunities.org/id/metropolitan-district-council/leeds,Leeds City Council,31/01/2022,City Development,Libraries Arts & Heritage,Supplies and Services,Other Hired And Contracted Services,265,02/12/2021,2201-00247,0.00,1540.11,R,Absoluteproduct.Co,Yes
Http://opendatacommunities.org/id/metropolitan-district-council/leeds,Leeds City Council,31/01/2022,Adults and Health,Services For Adults Under 65 Mental/Dis,Agency Payments,Fees - Level 4,520,07/01/2022,2201-00248,0.00,233.48,R,Abubaker Denja Mohammed,No
Http://opendatacommunities.org/id/metropolitan-district-council/leeds,Leeds City Council,31/01/2022,Adults and Health,Services For Adults Under 65 Mental/Dis,Agency Payments,Fees - Level 4,520,07/01/2022,2201-00249,0.00,232.62,R,Abubaker Denja Mohammed,No
Http://opendatacommunities.org/id/metropolitan-district-council/leeds,Leeds City Council,31/01/2022,Adults and Health,Services For Adults Under 65 Mental/Dis,Agency Payments,Fees - Level 4,520,07/01/2022,2201-00250,0.00,228.32,R,Abubaker Denja Mohammed,No
Http://opendatacommunities.org/id/metropolitan-district-council/leeds,Leeds City Council,31/01/2022,Communities and Environment,Strategic Housing Partnership & Support,Supplies and Services,Other Hired And Contracted Services,265,27/01/2022,2201-00251,0.00,447.28,R,Accent Foundation Ltd,No
Http://opendatacommunities.org/id/metropolitan-district-council/leeds,Leeds City Council,31/01/2022,Communities and Environment,Waste Management,Transport,Repair & Maintenance of  Plant,342,08/12/2021,2201-00252,0.00,57.25,R,Access Locksmiths,Yes
Http://opendatacommunities.org/id/metropolitan-district-council/leeds,Leeds City Council,31/01/2022,Communities and Environment,Waste Management,Transport,Repair & Maintenance of  Plant,342,14/12/2021,2201-00253,0.00,114.50,R,Access Locksmiths,Yes
Http://opendatacommunities.org/id/metropolitan-district-council/leeds,Leeds City Council,31/01/2022,Strategic Landlord,Housing Management,Supplies and Services,Resaleable Materials,204,05/01/2022,2201-00254,0.00,124.00,R,ACCESS LOCKSMITHS (LEEDS) LIMITED,No
Http://opendatacommunities.org/id/metropolitan-district-council/leeds,Leeds City Council,31/01/2022,Strategic Landlord,Property and Contracts,Premises,Maintenance Of Buildings,101,05/01/2022,2201-00255,0.00,15.40,R,ACCESS LOCKSMITHS (LEEDS) LIMITED,No
Http://opendatacommunities.org/id/metropolitan-district-council/leeds,Leeds City Council,31/01/2022,Resources and Housing,Leeds Building Services,Supplies and Services,Operational Materials,205,07/01/2022,2201-00256,0.00,314.28,R,ACCESS LOCKSMITHS (LEEDS) LIMITED,No
Http://opendatacommunities.org/id/metropolitan-district-council/leeds,Leeds City Council,31/01/2022,Resources and Housing,Leeds Building Services,Supplies and Services,Operational Materials,205,07/01/2022,2201-00257,0.00,31.12,R,ACCESS LOCKSMITHS (LEEDS) LIMITED,No
Http://opendatacommunities.org/id/metropolitan-district-council/leeds,Leeds City Council,31/01/2022,Resources and Housing,Leeds Building Services,Supplies and Services,Operational Materials,205,07/01/2022,2201-00258,0.00,38.50,R,ACCESS LOCKSMITHS (LEEDS) LIMITED,No
Http://opendatacommunities.org/id/metropolitan-district-council/leeds,Leeds City Council,31/01/2022,Resources and Housing,Leeds Building Services,Supplies and Services,Operational Materials,205,11/01/2022,2201-00259,0.00,53.47,R,ACCESS LOCKSMITHS (LEEDS) LIMITED,No
Http://opendatacommunities.org/id/metropolitan-district-council/leeds,Leeds City Council,31/01/2022,Resources and Housing,Leeds Building Services,Supplies and Services,Operational Materials,205,11/01/2022,2201-00260,0.00,121.35,R,ACCESS LOCKSMITHS (LEEDS) LIMITED,No
Http://opendatacommunities.org/id/metropolitan-district-council/leeds,Leeds City Council,31/01/2022,Resources and Housing,Leeds Building Services,Supplies and Services,Operational Materials,205,11/01/2022,2201-00261,0.00,174.50,R,ACCESS LOCKSMITHS (LEEDS) LIMITED,No
Http://opendatacommunities.org/id/metropolitan-district-council/leeds,Leeds City Council,31/01/2022,Resources and Housing,Leeds Building Services,Supplies and Services,Operational Materials,205,11/01/2022,2201-00262,0.00,167.09,R,ACCESS LOCKSMITHS (LEEDS) LIMITED,No
Http://opendatacommunities.org/id/metropolitan-district-council/leeds,Leeds City Council,31/01/2022,Resources and Housing,Leeds Building Services,Supplies and Services,Operational Materials,205,11/01/2022,2201-00263,0.00,26.96,R,ACCESS LOCKSMITHS (LEEDS) LIMITED,No
Http://opendatacommunities.org/id/metropolitan-district-council/leeds,Leeds City Council,31/01/2022,Resources and Housing,Leeds Building Services,Supplies and Services,Operational Materials,205,17/01/2022,2201-00264,0.00,18.32,R,ACCESS LOCKSMITHS (LEEDS) LIMITED,No
Http://opendatacommunities.org/id/metropolitan-district-council/leeds,Leeds City Council,31/01/2022,Resources and Housing,Leeds Building Services,Supplies and Services,Operational Materials,205,17/01/2022,2201-00265,0.00,5.85,R,ACCESS LOCKSMITHS (LEEDS) LIMITED,No
Http://opendatacommunities.org/id/metropolitan-district-council/leeds,Leeds City Council,31/01/2022,Resources and Housing,Leeds Building Services,Supplies and Services,Operational Materials,205,17/01/2022,2201-00266,0.00,16.21,R,ACCESS LOCKSMITHS (LEEDS) LIMITED,No
Http://opendatacommunities.org/id/metropolitan-district-council/leeds,Leeds City Council,31/01/2022,Resources and Housing,Leeds Building Services,Supplies and Services,Operational Materials,205,17/01/2022,2201-00267,0.00,154.52,R,ACCESS LOCKSMITHS (LEEDS) LIMITED,No
Http://opendatacommunities.org/id/metropolitan-district-council/leeds,Leeds City Council,31/01/2022,Resources and Housing,Leeds Building Services,Supplies and Services,Operational Materials,205,17/01/2022,2201-00268,0.00,7.00,R,ACCESS LOCKSMITHS (LEEDS) LIMITED,No
Http://opendatacommunities.org/id/metropolitan-district-council/leeds,Leeds City Council,31/01/2022,Resources and Housing,Leeds Building Services,Supplies and Services,Operational Materials,205,17/01/2022,2201-00269,0.00,7.00,R,ACCESS LOCKSMITHS (LEEDS) LIMITED,No
Http://opendatacommunities.org/id/metropolitan-district-council/leeds,Leeds City Council,31/01/2022,Resources and Housing,Leeds Building Services,Supplies and Services,Operational Materials,205,17/01/2022,2201-00270,0.00,309.04,R,ACCESS LOCKSMITHS (LEEDS) LIMITED,No
Http://opendatacommunities.org/id/metropolitan-district-council/leeds,Leeds City Council,31/01/2022,Resources and Housing,Leeds Building Services,Supplies and Services,Operational Materials,205,17/01/2022,2201-00271,0.00,154.52,R,ACCESS LOCKSMITHS (LEEDS) LIMITED,No
Http://opendatacommunities.org/id/metropolitan-district-council/leeds,Leeds City Council,31/01/2022,Resources and Housing,Leeds Building Services,Supplies and Services,Operational Materials,205,17/01/2022,2201-00272,0.00,154.52,R,ACCESS LOCKSMITHS (LEEDS) LIMITED,No
Http://opendatacommunities.org/id/metropolitan-district-council/leeds,Leeds City Council,31/01/2022,Resources and Housing,Leeds Building Services,Supplies and Services,Operational Materials,205,17/01/2022,2201-00273,0.00,154.52,R,ACCESS LOCKSMITHS (LEEDS) LIMITED,No
Http://opendatacommunities.org/id/metropolitan-district-council/leeds,Leeds City Council,31/01/2022,Resources and Housing,Leeds Building Services,Supplies and Services,Operational Materials,205,17/01/2022,2201-00274,0.00,154.52,R,ACCESS LOCKSMITHS (LEEDS) LIMITED,No
Http://opendatacommunities.org/id/metropolitan-district-council/leeds,Leeds City Council,31/01/2022,Resources and Housing,Leeds Building Services,Supplies and Services,Operational Materials,205,17/01/2022,2201-00275,0.00,154.52,R,ACCESS LOCKSMITHS (LEEDS) LIMITED,No
Http://opendatacommunities.org/id/metropolitan-district-council/leeds,Leeds City Council,31/01/2022,Strategic Landlord,Property and Contracts,Premises,General Maintenance,104,28/01/2022,2201-00276,0.00,45.83,R,ACCESS LOCKSMITHS (LEEDS) LIMITED,No
Http://opendatacommunities.org/id/metropolitan-district-council/leeds,Leeds City Council,31/01/2022,Strategic Landlord,Property and Contracts,Premises,General Maintenance,104,28/01/2022,2201-00277,0.00,193.41,R,ACCESS LOCKSMITHS (LEEDS) LIMITED,No
Http://opendatacommunities.org/id/metropolitan-district-council/leeds,Leeds City Council,31/01/2022,Resources and Housing,Facilities Management,Premises,Maintenance Of Buildings,101,28/01/2022,2201-00278,0.00,45.83,R,ACCESS LOCKSMITHS (LEEDS) LIMITED,No
Http://opendatacommunities.org/id/metropolitan-district-council/leeds,Leeds City Council,31/01/2022,Strategic Landlord,Housing Management,Supplies and Services,Resaleable Materials,204,28/01/2022,2201-00279,0.00,260.40,R,ACCESS LOCKSMITHS (LEEDS) LIMITED,No
Http://opendatacommunities.org/id/metropolitan-district-council/leeds,Leeds City Council,31/01/2022,Communities and Environment,Cleaner Neighbourhood Teams,Supplies and Services,Other Hired And Contracted Services,265,28/01/2022,2201-00280,0.00,27.50,R,ACCESS LOCKSMITHS (LEEDS) LIMITED,No
Http://opendatacommunities.org/id/metropolitan-district-council/leeds,Leeds City Council,31/01/2022,Strategic Landlord,Housing Management,Supplies and Services,Telephones,213,28/01/2022,2201-00281,0.00,12.40,R,ACCESS LOCKSMITHS (LEEDS) LIMITED,No
Http://opendatacommunities.org/id/metropolitan-district-council/leeds,Leeds City Council,31/01/2022,Strategic Landlord,Housing Management,Supplies and Services,Grant Related Expenditure,298,28/01/2022,2201-00282,0.00,62.00,R,ACCESS LOCKSMITHS (LEEDS) LIMITED,No
Http://opendatacommunities.org/id/metropolitan-district-council/leeds,Leeds City Council,31/01/2022,Resources and Housing,HRA Housing Leeds,Capital,OTHER COSTS,7,28/01/2022,2201-00283,0.00,174.51,C,ACCESS LOCKSMITHS (LEEDS) LIMITED,No
Http://opendatacommunities.org/id/metropolitan-district-council/leeds,Leeds City Council,31/01/2022,Adults and Health,Service Strategy,Supplies and Services,Other Hired And Contracted Services,265,26/01/2022,2201-00284,0.00,56855.00,R,Access Uk Ltd,No
Http://opendatacommunities.org/id/metropolitan-district-council/leeds,Leeds City Council,31/01/2022,City Development,Libraries Arts & Heritage,Supplies and Services,Consultancy Services,259,07/01/2022,2201-00285,0.00,125.00,R,Accessible By Design Ltd,No
Http://opendatacommunities.org/id/metropolitan-district-council/leeds,Leeds City Council,31/01/2022,City Development,Libraries Arts & Heritage,Supplies and Services,Consultancy Services,259,21/01/2022,2201-00286,0.00,2125.00,R,Accessible By Design Ltd,No
Http://opendatacommunities.org/id/metropolitan-district-council/leeds,Leeds City Council,31/01/2022,Insurance,Insurance,Supplies and Services,Insurance Claims,248,06/01/2022,2201-00287,0.00,3128.57,R,Accountant General Of The Senior Courts,No
Http://opendatacommunities.org/id/metropolitan-district-council/leeds,Leeds City Council,31/01/2022,Insurance,Insurance,Supplies and Services,Insurance Claims,248,06/01/2022,2201-00288,0.00,3128.57,R,Accountant General Of The Senior Courts,No
Http://opendatacommunities.org/id/metropolitan-district-council/leeds,Leeds City Council,31/01/2022,City Development,Markets & City Centre Management,Premises,Plant and Machinery,102,03/12/2021,2201-00289,0.00,27.75,R,Accu.Co.Uk,Yes
Http://opendatacommunities.org/id/metropolitan-district-council/leeds,Leeds City Council,31/01/2022,City Development,Recreation,Transport,External Hire -Occasional,304,28/01/2022,2201-00290,0.00,128.65,R,ACE CONTAINER SERVICES LIMITED,No
Http://opendatacommunities.org/id/metropolitan-district-council/leeds,Leeds City Council,31/01/2022,Resources and Housing,Leeds Building Services,Supplies and Services,Operational Materials,205,31/01/2022,2201-00291,0.00,123.44,R,Acme Facilities Group Ltd,No
Http://opendatacommunities.org/id/metropolitan-district-council/leeds,Leeds City Council,31/01/2022,Children and Families,Social Care,Agency Payments,General External Residential Placements,507,07/01/2022,2201-00292,0.00,606.83,R,Acorn Care & Education Ltd (Sales),No
Http://opendatacommunities.org/id/metropolitan-district-council/leeds,Leeds City Council,31/01/2022,Children and Families,Social Care,Agency Payments,General External Residential Placements,507,07/01/2022,2201-00293,0.00,512.65,R,Acorn Care & Education Ltd (Sales),No
Http://opendatacommunities.org/id/metropolitan-district-council/leeds,Leeds City Council,31/01/2022,Children and Families,Social Care,Agency Payments,General External Residential Placements,507,07/01/2022,2201-00294,0.00,627.05,R,Acorn Care & Education Ltd (Sales),No
Http://opendatacommunities.org/id/metropolitan-district-council/leeds,Leeds City Council,31/01/2022,Children and Families,Social Care,Agency Payments,General External Residential Placements,507,07/01/2022,2201-00295,0.00,24117.42,R,Acorn Care & Education Ltd (Sales),No
Http://opendatacommunities.org/id/metropolitan-district-council/leeds,Leeds City Council,31/01/2022,Children and Families,Social Care,Agency Payments,General External Residential Placements,507,07/01/2022,2201-00296,0.00,20374.46,R,Acorn Care & Education Ltd (Sales),No
Http://opendatacommunities.org/id/metropolitan-district-council/leeds,Leeds City Council,31/01/2022,Children and Families,Social Care,Agency Payments,General External Residential Placements,507,07/01/2022,2201-00297,0.00,529.74,R,Acorn Care & Education Ltd (Sales),No
Http://opendatacommunities.org/id/metropolitan-district-council/leeds,Leeds City Council,31/01/2022,Children and Families,Learning,Agency Payments,SEN Placements,566,14/01/2022,2201-00298,0.00,17877.10,R,Acorn Care & Education Ltd (Sales),No
Http://opendatacommunities.org/id/metropolitan-district-council/leeds,Leeds City Council,31/01/2022,Children and Families,Learning,Agency Payments,SEN Placements,566,18/01/2022,2201-00299,0.00,19213.34,R,Acorn Care & Education Ltd (Sales),No
Http://opendatacommunities.org/id/metropolitan-district-council/leeds,Leeds City Council,31/01/2022,Children and Families,Learning,Agency Payments,SEN Placements,566,18/01/2022,2201-00300,0.00,15903.00,R,Acorn Care & Education Ltd (Sales),No
Http://opendatacommunities.org/id/metropolitan-district-council/leeds,Leeds City Council,31/01/2022,Children and Families,Learning,Agency Payments,SEN Placements,566,18/01/2022,2201-00301,0.00,19762.66,R,Acorn Care & Education Ltd (Sales),No
Http://opendatacommunities.org/id/metropolitan-district-council/leeds,Leeds City Council,31/01/2022,Children and Families,Learning,Agency Payments,SEN Placements,566,18/01/2022,2201-00302,0.00,19762.66,R,Acorn Care & Education Ltd (Sales),No
Http://opendatacommunities.org/id/metropolitan-district-council/leeds,Leeds City Council,31/01/2022,Children and Families,Learning,Agency Payments,SEN Placements,566,26/01/2022,2201-00303,0.00,328.00,R,Acorn Care & Education Ltd (Sales),No
Http://opendatacommunities.org/id/metropolitan-district-council/leeds,Leeds City Council,31/01/2022,Communities and Environment,Strategic Housing Partnership & Support,Supplies and Services,Other Hired And Contracted Services,265,07/01/2022,2201-00304,0.00,2500.00,R,Acorn Housing,No
Http://opendatacommunities.org/id/metropolitan-district-council/leeds,Leeds City Council,31/01/2022,Communities and Environment,Strategic Housing Partnership & Support,Supplies and Services,Other Hired And Contracted Services,265,26/01/2022,2201-00305,0.00,2500.00,R,Acorn Housing,No
Http://opendatacommunities.org/id/metropolitan-district-council/leeds,Leeds City Council,31/01/2022,Communities and Environment,Strategic Housing Partnership & Support,Supplies and Services,Other Hired And Contracted Services,265,31/01/2022,2201-00306,0.00,2500.00,R,Acorn Housing,No
Http://opendatacommunities.org/id/metropolitan-district-council/leeds,Leeds City Council,31/01/2022,Communities and Environment,Strategic Housing Partnership & Support,Supplies and Services,Other Hired And Contracted Services,265,31/01/2022,2201-00307,0.00,2500.00,R,Acorn Housing,No
Http://opendatacommunities.org/id/metropolitan-district-council/leeds,Leeds City Council,31/01/2022,Children and Families,Social Care,Agency Payments,Services Rendered By Other Organisations,511,05/01/2022,2201-00308,0.00,1608.00,R,ACORNS NURSERY,No
Http://opendatacommunities.org/id/metropolitan-district-council/leeds,Leeds City Council,31/01/2022,Children and Families,Social Care,Agency Payments,Services Rendered By Other Organisations,511,07/01/2022,2201-00309,0.00,8836.75,R,ACORNS NURSERY,No
Http://opendatacommunities.org/id/metropolitan-district-council/leeds,Leeds City Council,31/01/2022,Adults and Health,Services For Older People - 65 And Over,Agency Payments,Nursing Home,570,07/01/2022,2201-00310,0.00,-755.23,R,Acre Green,No
Http://opendatacommunities.org/id/metropolitan-district-council/leeds,Leeds City Council,31/01/2022,Adults and Health,Services For Older People - 65 And Over,Agency Payments,Residential,580,07/01/2022,2201-00311,0.00,3927.20,R,Acre Green,No
Http://opendatacommunities.org/id/metropolitan-district-council/leeds,Leeds City Council,31/01/2022,Adults and Health,Services For Older People Under 65 P/Dis,Agency Payments,Nursing Home,570,07/01/2022,2201-00312,0.00,1970.40,R,Acre Green,No
Http://opendatacommunities.org/id/metropolitan-district-council/leeds,Leeds City Council,31/01/2022,Adults and Health,Services For Older People Under 65 P/Dis,Agency Payments,Residential,580,07/01/2022,2201-00313,0.00,1767.20,R,Acre Green,No
Http://opendatacommunities.org/id/metropolitan-district-council/leeds,Leeds City Council,31/01/2022,Children and Families,Social Care,Agency Payments,Services Rendered By Other Organisations,511,05/01/2022,2201-00314,0.00,4180.80,R,Acre Wood Day Nursery,No
Http://opendatacommunities.org/id/metropolitan-district-council/leeds,Leeds City Council,31/01/2022,Children and Families,Social Care,Agency Payments,Services Rendered By Other Organisations,511,07/01/2022,2201-00315,0.00,11774.40,R,Acre Wood Day Nursery,No
Http://opendatacommunities.org/id/metropolitan-district-council/leeds,Leeds City Council,31/01/2022,Children and Families,Social Care,Agency Payments,Services Rendered By Other Organisations,511,05/01/2022,2201-00316,0.00,1286.40,R,ACTIVE KIDS YEADON LLP,No
Http://opendatacommunities.org/id/metropolitan-district-council/leeds,Leeds City Council,31/01/2022,Children and Families,Social Care,Agency Payments,Services Rendered By Other Organisations,511,07/01/2022,2201-00317,0.00,6912.12,R,ACTIVE KIDS YEADON LLP,No
Http://opendatacommunities.org/id/metropolitan-district-council/leeds,Leeds City Council,31/01/2022,Adults and Health,Services For Adults Under 65 Mental/Dis,Agency Payments,Sheltered Accommodation,569,07/01/2022,2201-00318,0.00,11385.21,R,Active Pathways,No
Http://opendatacommunities.org/id/metropolitan-district-council/leeds,Leeds City Council as Accountable Body,31/01/2022,Social Services Pooled Budgets,Jcs For People With Learning Disabilitie,Agency Payments,Sheltered Accommodation,569,07/01/2022,2201-00319,0.00,12452.52,R,Active Pathways,No
Http://opendatacommunities.org/id/metropolitan-district-council/leeds,Leeds City Council,31/01/2022,Communities and Environment,Cleaner Neighbourhood Teams,Supplies and Services,Other Hired And Contracted Services,265,05/01/2022,2201-00320,0.00,4815.00,R,Acumen Waste Services Ltd,No
Http://opendatacommunities.org/id/metropolitan-district-council/leeds,Leeds City Council,31/01/2022,Communities and Environment,Waste Management,Supplies and Services,Waste Disposal Charges,236,05/01/2022,2201-00321,0.00,250.00,R,Acumen Waste Services Ltd,No
Http://opendatacommunities.org/id/metropolitan-district-council/leeds,Leeds City Council,31/01/2022,Communities and Environment,Waste Management,Supplies and Services,Waste Disposal Charges,236,05/01/2022,2201-00322,0.00,920.15,R,Acumen Waste Services Ltd,No
Http://opendatacommunities.org/id/metropolitan-district-council/leeds,Leeds City Council,31/01/2022,Communities and Environment,Waste Management,Supplies and Services,Recycling & Reuse Charges,234,06/01/2022,2201-00323,0.00,961.92,R,Acumen Waste Services Ltd,No
Http://opendatacommunities.org/id/metropolitan-district-council/leeds,Leeds City Council,31/01/2022,Communities and Environment,Waste Management,Supplies and Services,Recycling & Reuse Charges,234,06/01/2022,2201-00324,0.00,702.72,R,Acumen Waste Services Ltd,No
Http://opendatacommunities.org/id/metropolitan-district-council/leeds,Leeds City Council,31/01/2022,Communities and Environment,Waste Management,Supplies and Services,Recycling & Reuse Charges,234,06/01/2022,2201-00325,0.00,774.00,R,Acumen Waste Services Ltd,No
Http://opendatacommunities.org/id/metropolitan-district-council/leeds,Leeds City Council,31/01/2022,Communities and Environment,Waste Management,Supplies and Services,Recycling & Reuse Charges,234,07/01/2022,2201-00326,0.00,851.04,R,Acumen Waste Services Ltd,No
Http://opendatacommunities.org/id/metropolitan-district-council/leeds,Leeds City Council,31/01/2022,Communities and Environment,Waste Management,Supplies and Services,Recycling & Reuse Charges,234,07/01/2022,2201-00327,0.00,862.56,R,Acumen Waste Services Ltd,No
Http://opendatacommunities.org/id/metropolitan-district-council/leeds,Leeds City Council,31/01/2022,Communities and Environment,Waste Management,Supplies and Services,Recycling & Reuse Charges,234,07/01/2022,2201-00328,0.00,862.56,R,Acumen Waste Services Ltd,No
Http://opendatacommunities.org/id/metropolitan-district-council/leeds,Leeds City Council,31/01/2022,Communities and Environment,Waste Management,Supplies and Services,Recycling & Reuse Charges,234,07/01/2022,2201-00329,0.00,858.96,R,Acumen Waste Services Ltd,No
Http://opendatacommunities.org/id/metropolitan-district-council/leeds,Leeds City Council,31/01/2022,Communities and Environment,Waste Management,Supplies and Services,Recycling & Reuse Charges,234,13/01/2022,2201-00330,0.00,1010.88,R,Acumen Waste Services Ltd,No
Http://opendatacommunities.org/id/metropolitan-district-council/leeds,Leeds City Council,31/01/2022,Communities and Environment,Waste Management,Supplies and Services,Recycling & Reuse Charges,234,13/01/2022,2201-00331,0.00,833.76,R,Acumen Waste Services Ltd,No
Http://opendatacommunities.org/id/metropolitan-district-council/leeds,Leeds City Council,31/01/2022,Communities and Environment,Waste Management,Supplies and Services,Recycling & Reuse Charges,234,13/01/2022,2201-00332,0.00,818.64,R,Acumen Waste Services Ltd,No
Http://opendatacommunities.org/id/metropolitan-district-council/leeds,Leeds City Council,31/01/2022,Communities and Environment,Waste Management,Supplies and Services,Recycling & Reuse Charges,234,13/01/2022,2201-00333,0.00,746.64,R,Acumen Waste Services Ltd,No
Http://opendatacommunities.org/id/metropolitan-district-council/leeds,Leeds City Council,31/01/2022,Communities and Environment,Waste Management,Supplies and Services,Waste Disposal Charges,236,13/01/2022,2201-00334,0.00,650.20,R,Acumen Waste Services Ltd,No
Http://opendatacommunities.org/id/metropolitan-district-council/leeds,Leeds City Council,31/01/2022,Communities and Environment,Waste Management,Supplies and Services,Recycling & Reuse Charges,234,14/01/2022,2201-00335,0.00,781.92,R,Acumen Waste Services Ltd,No
Http://opendatacommunities.org/id/metropolitan-district-council/leeds,Leeds City Council,31/01/2022,Communities and Environment,Waste Management,Supplies and Services,Recycling & Reuse Charges,234,14/01/2022,2201-00336,0.00,936.00,R,Acumen Waste Services Ltd,No
Http://opendatacommunities.org/id/metropolitan-district-council/leeds,Leeds City Council,31/01/2022,Communities and Environment,Waste Management,Supplies and Services,Recycling & Reuse Charges,234,14/01/2022,2201-00337,0.00,830.16,R,Acumen Waste Services Ltd,No
Http://opendatacommunities.org/id/metropolitan-district-council/leeds,Leeds City Council,31/01/2022,Communities and Environment,Waste Management,Supplies and Services,Recycling & Reuse Charges,234,14/01/2022,2201-00338,0.00,980.64,R,Acumen Waste Services Ltd,No
Http://opendatacommunities.org/id/metropolitan-district-council/leeds,Leeds City Council,31/01/2022,Communities and Environment,Waste Management,Supplies and Services,Recycling & Reuse Charges,234,17/01/2022,2201-00339,0.00,741.60,R,Acumen Waste Services Ltd,No
Http://opendatacommunities.org/id/metropolitan-district-council/leeds,Leeds City Council,31/01/2022,Communities and Environment,Waste Management,Supplies and Services,Recycling & Reuse Charges,234,17/01/2022,2201-00340,0.00,938.88,R,Acumen Waste Services Ltd,No
Http://opendatacommunities.org/id/metropolitan-district-council/leeds,Leeds City Council,31/01/2022,Communities and Environment,Waste Management,Supplies and Services,Recycling & Reuse Charges,234,17/01/2022,2201-00341,0.00,912.24,R,Acumen Waste Services Ltd,No
Http://opendatacommunities.org/id/metropolitan-district-council/leeds,Leeds City Council,31/01/2022,Communities and Environment,Waste Management,Supplies and Services,Recycling & Reuse Charges,234,17/01/2022,2201-00342,0.00,841.68,R,Acumen Waste Services Ltd,No
Http://opendatacommunities.org/id/metropolitan-district-council/leeds,Leeds City Council,31/01/2022,Communities and Environment,Waste Management,Supplies and Services,Recycling & Reuse Charges,234,17/01/2022,2201-00343,0.00,953.28,R,Acumen Waste Services Ltd,No
Http://opendatacommunities.org/id/metropolitan-district-council/leeds,Leeds City Council,31/01/2022,Communities and Environment,Waste Management,Supplies and Services,Recycling & Reuse Charges,234,20/01/2022,2201-00344,0.00,978.48,R,Acumen Waste Services Ltd,No
Http://opendatacommunities.org/id/metropolitan-district-council/leeds,Leeds City Council,31/01/2022,Communities and Environment,Waste Management,Supplies and Services,Waste Disposal Charges,236,20/01/2022,2201-00345,0.00,674.75,R,Acumen Waste Services Ltd,No
Http://opendatacommunities.org/id/metropolitan-district-council/leeds,Leeds City Council,31/01/2022,Communities and Environment,Waste Management,Supplies and Services,Recycling & Reuse Charges,234,21/01/2022,2201-00346,0.00,992.88,R,Acumen Waste Services Ltd,No
Http://opendatacommunities.org/id/metropolitan-district-council/leeds,Leeds City Council,31/01/2022,Communities and Environment,Waste Management,Supplies and Services,Recycling & Reuse Charges,234,21/01/2022,2201-00347,0.00,931.68,R,Acumen Waste Services Ltd,No
Http://opendatacommunities.org/id/metropolitan-district-council/leeds,Leeds City Council,31/01/2022,Communities and Environment,Waste Management,Supplies and Services,Recycling & Reuse Charges,234,21/01/2022,2201-00348,0.00,1005.84,R,Acumen Waste Services Ltd,No
Http://opendatacommunities.org/id/metropolitan-district-council/leeds,Leeds City Council,31/01/2022,Communities and Environment,Waste Management,Supplies and Services,Recycling & Reuse Charges,234,21/01/2022,2201-00349,0.00,1005.84,R,Acumen Waste Services Ltd,No
Http://opendatacommunities.org/id/metropolitan-district-council/leeds,Leeds City Council,31/01/2022,Communities and Environment,Waste Management,Supplies and Services,Recycling & Reuse Charges,234,21/01/2022,2201-00350,0.00,991.44,R,Acumen Waste Services Ltd,No
Http://opendatacommunities.org/id/metropolitan-district-council/leeds,Leeds City Council,31/01/2022,Communities and Environment,Waste Management,Supplies and Services,Recycling & Reuse Charges,234,21/01/2022,2201-00351,0.00,928.08,R,Acumen Waste Services Ltd,No
Http://opendatacommunities.org/id/metropolitan-district-council/leeds,Leeds City Council,31/01/2022,Communities and Environment,Waste Management,Supplies and Services,Recycling & Reuse Charges,234,28/01/2022,2201-00352,0.00,992.16,R,Acumen Waste Services Ltd,No
Http://opendatacommunities.org/id/metropolitan-district-council/leeds,Leeds City Council,31/01/2022,Communities and Environment,Waste Management,Supplies and Services,Recycling & Reuse Charges,234,28/01/2022,2201-00353,0.00,997.20,R,Acumen Waste Services Ltd,No
Http://opendatacommunities.org/id/metropolitan-district-council/leeds,Leeds City Council,31/01/2022,Communities and Environment,Waste Management,Supplies and Services,Recycling & Reuse Charges,234,28/01/2022,2201-00354,0.00,947.52,R,Acumen Waste Services Ltd,No
Http://opendatacommunities.org/id/metropolitan-district-council/leeds,Leeds City Council,31/01/2022,Communities and Environment,Waste Management,Supplies and Services,Recycling & Reuse Charges,234,28/01/2022,2201-00355,0.00,952.56,R,Acumen Waste Services Ltd,No
Http://opendatacommunities.org/id/metropolitan-district-council/leeds,Leeds City Council,31/01/2022,Communities and Environment,Waste Management,Supplies and Services,Recycling & Reuse Charges,234,28/01/2022,2201-00356,0.00,1115.28,R,Acumen Waste Services Ltd,No
Http://opendatacommunities.org/id/metropolitan-district-council/leeds,Leeds City Council,31/01/2022,Resources and Housing,Shared Services,Supplies and Services,Other Hired And Contracted Services,265,12/01/2022,2201-00357,0.00,253.13,R,AD3 Envelope Printers Limited,No
Http://opendatacommunities.org/id/metropolitan-district-council/leeds,Leeds City Council,31/01/2022,Resources and Housing,Shared Services,Supplies and Services,Other Hired And Contracted Services,265,28/01/2022,2201-00358,0.00,164.47,R,AD3 Envelope Printers Limited,No
Http://opendatacommunities.org/id/metropolitan-district-council/leeds,Leeds City Council,31/01/2022,Communities and Environment,Strategic Housing Partnership & Support,Supplies and Services,Other Hired And Contracted Services,265,24/01/2022,2201-00359,0.00,1049.98,R,Adair Paxton LLP,No
Http://opendatacommunities.org/id/metropolitan-district-council/leeds,Leeds City Council,31/01/2022,Communities and Environment,Strategic Housing Partnership & Support,Supplies and Services,Other Hired And Contracted Services,265,28/01/2022,2201-00360,0.00,1365.17,R,Adair Paxton LLP,No
Http://opendatacommunities.org/id/metropolitan-district-council/leeds,Leeds City Council,31/01/2022,Communities and Environment,Benefits Welfare and Poverty,Supplies and Services,Grant Related Expenditure,298,20/01/2022,2201-00361,0.00,500.00,R,REDACTED PERSONAL DATA,No
Http://opendatacommunities.org/id/metropolitan-district-council/leeds,Leeds City Council,31/01/2022,Communities and Environment,Benefits Welfare and Poverty,Supplies and Services,Grant Related Expenditure,290,12/01/2022,2201-00362,0.00,500.00,R,REDACTED PERSONAL DATA,No
Http://opendatacommunities.org/id/metropolitan-district-council/leeds,Leeds City Council,31/01/2022,Children and Families,Social Care,Agency Payments,Section 17,551,17/01/2022,2201-00363,0.00,150.00,R,REDACTED PERSONAL DATA,No
Http://opendatacommunities.org/id/metropolitan-district-council/leeds,Leeds City Council,31/01/2022,Communities and Environment,Benefits Welfare and Poverty,Supplies and Services,Grant Related Expenditure,298,26/01/2022,2201-00364,0.00,500.00,R,REDACTED PERSONAL DATA,No
Http://opendatacommunities.org/id/metropolitan-district-council/leeds,Leeds City Council,31/01/2022,Communities and Environment,Benefits Welfare and Poverty,Supplies and Services,Grant Related Expenditure,298,28/01/2022,2201-00365,0.00,500.00,R,REDACTED PERSONAL DATA,No
Http://opendatacommunities.org/id/metropolitan-district-council/leeds,Leeds City Council,31/01/2022,Communities and Environment,Benefits Welfare and Poverty,Supplies and Services,Grant Related Expenditure,298,26/01/2022,2201-00366,0.00,500.00,R,REDACTED PERSONAL DATA,No
Http://opendatacommunities.org/id/metropolitan-district-council/leeds,Leeds City Council,31/01/2022,Communities and Environment,Benefits Welfare and Poverty,Supplies and Services,Grant Related Expenditure,298,25/01/2022,2201-00367,0.00,500.00,R,REDACTED PERSONAL DATA,No
Http://opendatacommunities.org/id/metropolitan-district-council/leeds,Leeds City Council,31/01/2022,Children and Families,Social Care,Appropriations,Leaving Care Allowances,634,14/01/2022,2201-00368,0.00,50.00,R,REDACTED PERSONAL DATA,No
Http://opendatacommunities.org/id/metropolitan-district-council/leeds,Leeds City Council,31/01/2022,Children and Families,Social Care,Appropriations,Leaving Care Allowances,634,21/01/2022,2201-00369,0.00,50.00,R,REDACTED PERSONAL DATA,No
Http://opendatacommunities.org/id/metropolitan-district-council/leeds,Leeds City Council,31/01/2022,Children and Families,Social Care,Appropriations,Leaving Care Allowances,634,28/01/2022,2201-00370,0.00,50.00,R,REDACTED PERSONAL DATA,No
Http://opendatacommunities.org/id/metropolitan-district-council/leeds,Leeds City Council,31/01/2022,Communities and Environment,Benefits Welfare and Poverty,Supplies and Services,Grant Related Expenditure,298,12/01/2022,2201-00371,0.00,500.00,R,REDACTED PERSONAL DATA,No
Http://opendatacommunities.org/id/metropolitan-district-council/leeds,Leeds City Council,31/01/2022,Communities and Environment,Benefits Welfare and Poverty,Supplies and Services,Grant Related Expenditure,298,27/01/2022,2201-00372,0.00,500.00,R,REDACTED PERSONAL DATA,No
Http://opendatacommunities.org/id/metropolitan-district-council/leeds,Leeds City Council,31/01/2022,Communities and Environment,Benefits Welfare and Poverty,Supplies and Services,Grant Related Expenditure,298,27/01/2022,2201-00373,0.00,500.00,R,REDACTED PERSONAL DATA,No
Http://opendatacommunities.org/id/metropolitan-district-council/leeds,Leeds City Council,31/01/2022,Communities and Environment,Benefits Welfare and Poverty,Supplies and Services,Grant Related Expenditure,298,18/01/2022,2201-00374,0.00,500.00,R,REDACTED PERSONAL DATA,No
Http://opendatacommunities.org/id/metropolitan-district-council/leeds,Leeds City Council,31/01/2022,Communities and Environment,Benefits Welfare and Poverty,Supplies and Services,Grant Related Expenditure,298,12/01/2022,2201-00375,0.00,500.00,R,REDACTED PERSONAL DATA,No
Http://opendatacommunities.org/id/metropolitan-district-council/leeds,Leeds City Council,31/01/2022,Communities and Environment,Benefits Welfare and Poverty,Supplies and Services,Grant Related Expenditure,298,31/01/2022,2201-00376,0.00,500.00,R,REDACTED PERSONAL DATA,No
Http://opendatacommunities.org/id/metropolitan-district-council/leeds,Leeds City Council,31/01/2022,Communities and Environment,Benefits Welfare and Poverty,Supplies and Services,Grant Related Expenditure,298,26/01/2022,2201-00377,0.00,500.00,R,REDACTED PERSONAL DATA,No
Http://opendatacommunities.org/id/metropolitan-district-council/leeds,Leeds City Council,31/01/2022,City Development,Economic Development,Supplies and Services,Grant Related Expenditure,290,20/01/2022,2201-00378,0.00,15000.00,R,Adamson Retail (Manchester) Ltd,No
Http://opendatacommunities.org/id/metropolitan-district-council/leeds,Leeds City Council,31/01/2022,Adults and Health,Services For Older People - 65 And Over,Agency Payments,Nursing Home,570,07/01/2022,2201-00379,0.00,2648.00,R,Adbolton Hall,No
Http://opendatacommunities.org/id/metropolitan-district-council/leeds,Leeds City Council,31/01/2022,Adults and Health,Public Health,Agency Payments,Public Health Commissioned Services,526,28/01/2022,2201-00380,0.00,2558.12,R,Addlestone & Partners,No
Http://opendatacommunities.org/id/metropolitan-district-council/leeds,Leeds City Council,31/01/2022,Resources and Housing,Technology,Employees,Agency Staff,8,02/12/2021,2201-00381,0.00,5194.40,R,Adecco Alfred Marks,Yes
Http://opendatacommunities.org/id/metropolitan-district-council/leeds,Leeds City Council,31/01/2022,Children and Families,Social Care,Agency Payments,Services Rendered By Voluntary Sector,505,05/01/2022,2201-00382,0.00,2251.20,R,ADEL PRE SCHOOL,No
Http://opendatacommunities.org/id/metropolitan-district-council/leeds,Leeds City Council,31/01/2022,Children and Families,Social Care,Agency Payments,Services Rendered By Voluntary Sector,505,07/01/2022,2201-00383,0.00,6743.52,R,ADEL PRE SCHOOL,No
Http://opendatacommunities.org/id/metropolitan-district-council/leeds,Leeds City Council,31/01/2022,Children and Families,Social Care,Agency Payments,Contact,548,13/01/2022,2201-00384,0.00,22.30,R,REDACTED PERSONAL DATA,No
Http://opendatacommunities.org/id/metropolitan-district-council/leeds,Leeds City Council,31/01/2022,Children and Families,Social Care,Agency Payments,Contact,548,27/01/2022,2201-00385,0.00,5.30,R,REDACTED PERSONAL DATA,No
Http://opendatacommunities.org/id/metropolitan-district-council/leeds,Leeds City Council,31/01/2022,City Development,Recreation,Supplies and Services,Bought In Professional Services,277,17/01/2022,2201-00386,0.00,40.00,R,Adele Battersby,No
Http://opendatacommunities.org/id/metropolitan-district-council/leeds,Leeds City Council,31/01/2022,City Development,Recreation,Supplies and Services,Bought In Professional Services,277,20/01/2022,2201-00387,0.00,110.00,R,Adele Battersby,No
Http://opendatacommunities.org/id/metropolitan-district-council/leeds,Leeds City Council,31/01/2022,City Development,Recreation,External Income,Swimming Bath Charges,923,17/01/2022,2201-00388,0.00,26.50,R,REDACTED PERSONAL DATA,No
Http://opendatacommunities.org/id/metropolitan-district-council/leeds,Leeds City Council,31/01/2022,City Development,Recreation,External Income,Sporting & Other Recreational Fees,928,17/01/2022,2201-00389,0.00,24.95,R,REDACTED PERSONAL DATA,No
Http://opendatacommunities.org/id/metropolitan-district-council/leeds,Leeds City Council,31/01/2022,Children and Families,Social Care,Agency Payments,Services Rendered By Other Organisations,511,05/01/2022,2201-00390,0.00,643.20,R,REDACTED PERSONAL DATA,No
Http://opendatacommunities.org/id/metropolitan-district-council/leeds,Leeds City Council,31/01/2022,Children and Families,Social Care,Agency Payments,Services Rendered By Other Organisations,511,07/01/2022,2201-00391,0.00,2408.40,R,REDACTED PERSONAL DATA,No
Http://opendatacommunities.org/id/metropolitan-district-council/leeds,Leeds City Council,31/01/2022,Children and Families,Social Care,Agency Payments,Contact,548,11/01/2022,2201-00392,0.00,24.90,R,REDACTED PERSONAL DATA,No
Http://opendatacommunities.org/id/metropolitan-district-council/leeds,Leeds City Council,31/01/2022,Children and Families,Social Care,Agency Payments,Contact,548,17/01/2022,2201-00393,0.00,24.90,R,REDACTED PERSONAL DATA,No
Http://opendatacommunities.org/id/metropolitan-district-council/leeds,Leeds City Council,31/01/2022,Children and Families,Social Care,Agency Payments,Contact,548,21/01/2022,2201-00394,0.00,24.90,R,REDACTED PERSONAL DATA,No
Http://opendatacommunities.org/id/metropolitan-district-council/leeds,Leeds City Council,31/01/2022,Children and Families,Social Care,Agency Payments,Contact,548,28/01/2022,2201-00395,0.00,24.90,R,REDACTED PERSONAL DATA,No
Http://opendatacommunities.org/id/metropolitan-district-council/leeds,Leeds City Council,31/01/2022,Children and Families,Social Care,Agency Payments,Section 17,551,14/01/2022,2201-00396,0.00,79.20,R,REDACTED PERSONAL DATA,No
Http://opendatacommunities.org/id/metropolitan-district-council/leeds,Leeds City Council,31/01/2022,Children and Families,Social Care,Agency Payments,Section 17,551,21/01/2022,2201-00397,0.00,79.20,R,REDACTED PERSONAL DATA,No
Http://opendatacommunities.org/id/metropolitan-district-council/leeds,Leeds City Council,31/01/2022,Children and Families,Social Care,Agency Payments,Section 17,551,28/01/2022,2201-00398,0.00,79.20,R,REDACTED PERSONAL DATA,No
Http://opendatacommunities.org/id/metropolitan-district-council/leeds,Leeds City Council,31/01/2022,Resources and Housing,Leeds Building Services,Supplies and Services,Operational Materials,205,05/01/2022,2201-00399,0.00,11.19,R,ADI Global,No
Http://opendatacommunities.org/id/metropolitan-district-council/leeds,Leeds City Council,31/01/2022,Resources and Housing,Leeds Building Services,Supplies and Services,Operational Materials,205,05/01/2022,2201-00400,0.00,11.19,R,ADI Global,No
Http://opendatacommunities.org/id/metropolitan-district-council/leeds,Leeds City Council,31/01/2022,Resources and Housing,Leeds Building Services,Supplies and Services,Operational Materials,205,06/01/2022,2201-00401,0.00,155.99,R,ADI Global,No
Http://opendatacommunities.org/id/metropolitan-district-council/leeds,Leeds City Council,31/01/2022,Resources and Housing,Leeds Building Services,Supplies and Services,Operational Materials,205,12/01/2022,2201-00402,0.00,267.98,R,ADI Global,No
Http://opendatacommunities.org/id/metropolitan-district-council/leeds,Leeds City Council,31/01/2022,Resources and Housing,Leeds Building Services,Supplies and Services,Operational Materials,205,19/01/2022,2201-00403,0.00,623.96,R,ADI Global,No
Http://opendatacommunities.org/id/metropolitan-district-council/leeds,Leeds City Council,31/01/2022,Resources and Housing,Leeds Building Services,Supplies and Services,Operational Materials,205,19/01/2022,2201-00404,0.00,155.99,R,ADI Global,No
Http://opendatacommunities.org/id/metropolitan-district-council/leeds,Leeds City Council,31/01/2022,Resources and Housing,Leeds Building Services,Supplies and Services,Operational Materials,205,19/01/2022,2201-00405,0.00,311.98,R,ADI Global,No
Http://opendatacommunities.org/id/metropolitan-district-council/leeds,Leeds City Council,31/01/2022,Resources and Housing,Leeds Building Services,Supplies and Services,Operational Materials,205,19/01/2022,2201-00406,0.00,137.38,R,ADI Global,No
Http://opendatacommunities.org/id/metropolitan-district-council/leeds,Leeds City Council,31/01/2022,Resources and Housing,Leeds Building Services,Supplies and Services,STORES - CENTRAL AND OTHER DEPOTS,005,21/01/2022,2201-00407,0.00,1166.40,R,ADI Global,No
Http://opendatacommunities.org/id/metropolitan-district-council/leeds,Leeds City Council,31/01/2022,Communities and Environment,Benefits Welfare and Poverty,Supplies and Services,Grant Related Expenditure,298,26/01/2022,2201-00408,0.00,500.00,R,REDACTED PERSONAL DATA,No
Http://opendatacommunities.org/id/metropolitan-district-council/leeds,Leeds City Council,31/01/2022,City Development,Libraries Arts & Heritage,Supplies and Services,Computer Software & Equipment,214,03/12/2021,2201-00409,0.00,41.62,R,Adobe Creative Cloud,Yes
Http://opendatacommunities.org/id/metropolitan-district-council/leeds,Leeds City Council,31/01/2022,City Development,Libraries Arts & Heritage,Supplies and Services,Computer Software & Equipment,214,29/12/2021,2201-00410,0.00,8.32,R,Adobe Photogphy Plan,Yes
Http://opendatacommunities.org/id/metropolitan-district-council/leeds,Leeds City Council,31/01/2022,Children and Families,Social Care,Agency Payments,Independent Fostering Agencies,509,28/01/2022,2201-00411,0.00,3565.00,R,Adolescent And Childrens Trust,No
Http://opendatacommunities.org/id/metropolitan-district-council/leeds,Leeds City Council,31/01/2022,Adults and Health,Services For Adults Under 65 Mental/Dis,Agency Payments,Home Care,568,11/01/2022,2201-00412,0.00,132.00,R,Adopt Healthcare,No
Http://opendatacommunities.org/id/metropolitan-district-council/leeds,Leeds City Council,31/01/2022,Adults and Health,Services For Adults Under 65 Mental/Dis,Agency Payments,Home Care,568,11/01/2022,2201-00413,0.00,189.00,R,Adopt Healthcare,No
Http://opendatacommunities.org/id/metropolitan-district-council/leeds,Leeds City Council,31/01/2022,Adults and Health,Services For Adults Under 65 Mental/Dis,Agency Payments,Home Care,568,11/01/2022,2201-00414,0.00,287.25,R,Adopt Healthcare,No
Http://opendatacommunities.org/id/metropolitan-district-council/leeds,Leeds City Council,31/01/2022,Adults and Health,Services For Adults Under 65 Mental/Dis,Agency Payments,Home Care,568,12/01/2022,2201-00415,0.00,189.00,R,Adopt Healthcare,No
Http://opendatacommunities.org/id/metropolitan-district-council/leeds,Leeds City Council,31/01/2022,Adults and Health,Services For Adults Under 65 Mental/Dis,Agency Payments,Home Care,568,12/01/2022,2201-00416,0.00,132.00,R,Adopt Healthcare,No
Http://opendatacommunities.org/id/metropolitan-district-council/leeds,Leeds City Council,31/01/2022,Adults and Health,Other Adult Services,Agency Payments,HCAIT Community Support,575,12/01/2022,2201-00417,0.00,355.70,R,Adopt Healthcare,No
Http://opendatacommunities.org/id/metropolitan-district-council/leeds,Leeds City Council,31/01/2022,Adults and Health,Services For Adults Under 65 Mental/Dis,Agency Payments,Home Care,568,19/01/2022,2201-00418,0.00,181.50,R,Adopt Healthcare,No
Http://opendatacommunities.org/id/metropolitan-district-council/leeds,Leeds City Council,31/01/2022,Adults and Health,Services For Adults Under 65 Mental/Dis,Agency Payments,Home Care,568,19/01/2022,2201-00419,0.00,189.00,R,Adopt Healthcare,No
Http://opendatacommunities.org/id/metropolitan-district-council/leeds,Leeds City Council,31/01/2022,Adults and Health,Services For Adults Under 65 Mental/Dis,Agency Payments,Home Care,568,19/01/2022,2201-00420,0.00,287.25,R,Adopt Healthcare,No
Http://opendatacommunities.org/id/metropolitan-district-council/leeds,Leeds City Council,31/01/2022,Adults and Health,Services For Adults Under 65 Mental/Dis,Agency Payments,Home Care,568,26/01/2022,2201-00421,0.00,181.50,R,Adopt Healthcare,No
Http://opendatacommunities.org/id/metropolitan-district-council/leeds,Leeds City Council,31/01/2022,Adults and Health,Services For Adults Under 65 Mental/Dis,Agency Payments,Home Care,568,26/01/2022,2201-00422,0.00,192.50,R,Adopt Healthcare,No
Http://opendatacommunities.org/id/metropolitan-district-council/leeds,Leeds City Council,31/01/2022,Adults and Health,Services For Adults Under 65 Mental/Dis,Agency Payments,Home Care,568,26/01/2022,2201-00423,0.00,294.25,R,Adopt Healthcare,No
Http://opendatacommunities.org/id/metropolitan-district-council/leeds,Leeds City Council as Accountable Body,31/01/2022,Social Services Pooled Budgets,Jcs For People With Learning Disabilitie,Agency Payments,Residential,580,05/01/2022,2201-00424,0.00,2609.36,R,ADRIAN HOUSE,No
Http://opendatacommunities.org/id/metropolitan-district-council/leeds,Leeds City Council,31/01/2022,Communities and Environment,Benefits Welfare and Poverty,Supplies and Services,Grant Related Expenditure,298,25/01/2022,2201-00425,0.00,500.00,R,REDACTED PERSONAL DATA,No
Http://opendatacommunities.org/id/metropolitan-district-council/leeds,Leeds City Council,31/01/2022,Communities and Environment,Benefits Welfare and Poverty,Supplies and Services,Grant Related Expenditure,298,31/01/2022,2201-00426,0.00,500.00,R,REDACTED PERSONAL DATA,No
Http://opendatacommunities.org/id/metropolitan-district-council/leeds,Leeds City Council,31/01/2022,City Development,Libraries Arts & Heritage,Supplies and Services,External Audit Fees,261,19/01/2022,2201-00427,0.00,90.00,R,ADVANCE STOCKS LTD,No
Http://opendatacommunities.org/id/metropolitan-district-council/leeds,Leeds City Council,31/01/2022,City Development,Recreation,Supplies and Services,Other Hired And Contracted Services,265,25/01/2022,2201-00428,0.00,135.00,R,ADVANCE STOCKS LTD,No
Http://opendatacommunities.org/id/metropolitan-district-council/leeds,Leeds City Council,31/01/2022,Children and Families,Social Care,Internal Recharges,Legal Disbursements,411,07/01/2022,2201-00429,0.00,692.20,R,ADVANCED CHILD CARE ASSESSMENTS LTD,No
Http://opendatacommunities.org/id/metropolitan-district-council/leeds,Leeds City Council,31/01/2022,Children and Families,Social Care,Internal Recharges,Legal Disbursements,411,07/01/2022,2201-00430,0.00,692.20,R,ADVANCED CHILD CARE ASSESSMENTS LTD,No
Http://opendatacommunities.org/id/metropolitan-district-council/leeds,Leeds City Council,31/01/2022,Children and Families,Social Care,Internal Recharges,Legal Disbursements,411,10/01/2022,2201-00431,0.00,484.80,R,ADVANCED CHILD CARE ASSESSMENTS LTD,No
Http://opendatacommunities.org/id/metropolitan-district-council/leeds,Leeds City Council,31/01/2022,Children and Families,Social Care,Internal Recharges,Legal Disbursements,411,12/01/2022,2201-00432,0.00,82.50,R,ADVANCED CHILD CARE ASSESSMENTS LTD,No
Http://opendatacommunities.org/id/metropolitan-district-council/leeds,Leeds City Council,31/01/2022,Children and Families,Social Care,Internal Recharges,Legal Disbursements,411,14/01/2022,2201-00433,0.00,692.20,R,ADVANCED CHILD CARE ASSESSMENTS LTD,No
Http://opendatacommunities.org/id/metropolitan-district-council/leeds,Leeds City Council,31/01/2022,Children and Families,Social Care,Internal Recharges,Legal Disbursements,411,14/01/2022,2201-00434,0.00,692.20,R,ADVANCED CHILD CARE ASSESSMENTS LTD,No
Http://opendatacommunities.org/id/metropolitan-district-council/leeds,Leeds City Council,31/01/2022,Children and Families,Social Care,Internal Recharges,Legal Disbursements,411,14/01/2022,2201-00435,0.00,297.88,R,ADVANCED CHILD CARE ASSESSMENTS LTD,No
Http://opendatacommunities.org/id/metropolitan-district-council/leeds,Leeds City Council,31/01/2022,Children and Families,Social Care,Internal Recharges,Legal Disbursements,411,17/01/2022,2201-00436,0.00,291.40,R,ADVANCED CHILD CARE ASSESSMENTS LTD,No
Http://opendatacommunities.org/id/metropolitan-district-council/leeds,Leeds City Council,31/01/2022,Children and Families,Social Care,Internal Recharges,Legal Disbursements,411,21/01/2022,2201-00437,0.00,692.20,R,ADVANCED CHILD CARE ASSESSMENTS LTD,No
Http://opendatacommunities.org/id/metropolitan-district-council/leeds,Leeds City Council,31/01/2022,Adults and Health,Services For Older People - 65 And Over,Agency Payments,Home Care,568,07/01/2022,2201-00438,0.00,495.04,R,Advanced Medcare Ltd,No
Http://opendatacommunities.org/id/metropolitan-district-council/leeds,Leeds City Council,31/01/2022,Adults and Health,Services For Older People - 65 And Over,Agency Payments,Home Care,568,07/01/2022,2201-00439,0.00,769.08,R,Advanced Medcare Ltd,No
Http://opendatacommunities.org/id/metropolitan-district-council/leeds,Leeds City Council,31/01/2022,Adults and Health,Services For Older People - 65 And Over,Agency Payments,Home Care,568,26/01/2022,2201-00440,0.00,1175.72,R,Advanced Medcare Ltd,No
Http://opendatacommunities.org/id/metropolitan-district-council/leeds,Leeds City Council,31/01/2022,Adults and Health,Services For Older People - 65 And Over,Agency Payments,Home Care,568,26/01/2022,2201-00441,0.00,2793.44,R,Advanced Medcare Ltd,No
Http://opendatacommunities.org/id/metropolitan-district-council/leeds,Leeds City Council,31/01/2022,Adults and Health,Services For Older People - 65 And Over,Agency Payments,Home Care,568,26/01/2022,2201-00442,0.00,2793.44,R,Advanced Medcare Ltd,No
Http://opendatacommunities.org/id/metropolitan-district-council/leeds,Leeds City Council,31/01/2022,Adults and Health,Services For Older People - 65 And Over,Agency Payments,Home Care,568,26/01/2022,2201-00443,0.00,2793.44,R,Advanced Medcare Ltd,No
Http://opendatacommunities.org/id/metropolitan-district-council/leeds,Leeds City Council,31/01/2022,Adults and Health,Services For Older People - 65 And Over,Agency Payments,Home Care,568,26/01/2022,2201-00444,0.00,848.64,R,Advanced Medcare Ltd,No
Http://opendatacommunities.org/id/metropolitan-district-council/leeds,Leeds City Council as Accountable Body,31/01/2022,Social Services Pooled Budgets,Jcs For People With Learning Disabilitie,Agency Payments,Home Care,568,05/01/2022,2201-00445,0.00,1943.50,R,Advantage Healthcare Ltd,No
Http://opendatacommunities.org/id/metropolitan-district-council/leeds,Leeds City Council as Accountable Body,31/01/2022,Social Services Pooled Budgets,Jcs For People With Learning Disabilitie,Agency Payments,Home Care,568,07/01/2022,2201-00446,0.00,1278.40,R,Advantage Healthcare Ltd,No
Http://opendatacommunities.org/id/metropolitan-district-council/leeds,Leeds City Council as Accountable Body,31/01/2022,Social Services Pooled Budgets,Jcs For People With Learning Disabilitie,Agency Payments,Home Care,568,07/01/2022,2201-00447,0.00,1960.00,R,Advantage Healthcare Ltd,No
Http://opendatacommunities.org/id/metropolitan-district-council/leeds,Leeds City Council as Accountable Body,31/01/2022,Social Services Pooled Budgets,Jcs For People With Learning Disabilitie,Agency Payments,Home Care,568,17/01/2022,2201-00448,0.00,3299.60,R,Advantage Healthcare Ltd,No
Http://opendatacommunities.org/id/metropolitan-district-council/leeds,Leeds City Council as Accountable Body,31/01/2022,Social Services Pooled Budgets,Jcs For People With Learning Disabilitie,Agency Payments,Home Care,568,17/01/2022,2201-00449,0.00,1312.50,R,Advantage Healthcare Ltd,No
Http://opendatacommunities.org/id/metropolitan-district-council/leeds,Leeds City Council as Accountable Body,31/01/2022,Social Services Pooled Budgets,Jcs For People With Learning Disabilitie,Agency Payments,Home Care,568,21/01/2022,2201-00450,0.00,1969.40,R,Advantage Healthcare Ltd,No
Http://opendatacommunities.org/id/metropolitan-district-council/leeds,Leeds City Council as Accountable Body,31/01/2022,Social Services Pooled Budgets,Jcs For People With Learning Disabilitie,Agency Payments,Home Care,568,21/01/2022,2201-00451,0.00,612.50,R,Advantage Healthcare Ltd,No
Http://opendatacommunities.org/id/metropolitan-district-council/leeds,Leeds City Council as Accountable Body,31/01/2022,Social Services Pooled Budgets,Jcs For People With Learning Disabilitie,Agency Payments,Home Care,568,27/01/2022,2201-00452,0.00,2415.00,R,Advantage Healthcare Ltd,No
Http://opendatacommunities.org/id/metropolitan-district-council/leeds,Leeds City Council as Accountable Body,31/01/2022,Social Services Pooled Budgets,Jcs For People With Learning Disabilitie,Agency Payments,Home Care,568,28/01/2022,2201-00453,0.00,2237.20,R,Advantage Healthcare Ltd,No
Http://opendatacommunities.org/id/metropolitan-district-council/leeds,Leeds City Council,31/01/2022,Children and Families,Social Care,Supplies and Services,Operational Materials,205,20/12/2021,2201-00454,0.00,521.14,R,Adventure Climb Rescue,Yes
Http://opendatacommunities.org/id/metropolitan-district-council/leeds,Leeds City Council,31/01/2022,Adults and Health,Services For Adults Under 65 Mental/Dis,Agency Payments,Fees - Level 4,520,14/01/2022,2201-00455,0.00,224.51,R,AE BIA Assessments Limited,No
Http://opendatacommunities.org/id/metropolitan-district-council/leeds,Leeds City Council,31/01/2022,Adults and Health,Services For Adults Under 65 Mental/Dis,Agency Payments,Fees - Level 4,520,14/01/2022,2201-00456,0.00,224.51,R,AE BIA Assessments Limited,No
Http://opendatacommunities.org/id/metropolitan-district-council/leeds,Leeds City Council,31/01/2022,Adults and Health,Services For Adults Under 65 Mental/Dis,Agency Payments,Fees - Level 4,520,27/01/2022,2201-00457,0.00,198.00,R,AE BIA Assessments Limited,No
Http://opendatacommunities.org/id/metropolitan-district-council/leeds,Leeds City Council,31/01/2022,Adults and Health,Services For Adults Under 65 Mental/Dis,Agency Payments,Fees - Level 4,520,28/01/2022,2201-00458,0.00,198.00,R,AE BIA Assessments Limited,No
Http://opendatacommunities.org/id/metropolitan-district-council/leeds,Leeds City Council,31/01/2022,City Development,Highways,Capital,OTHER COSTS,7,07/01/2022,2201-00459,0.00,8486.67,C,Aecom Limited,No
Http://opendatacommunities.org/id/metropolitan-district-council/leeds,Leeds City Council,31/01/2022,City Development,Highways,Capital,OTHER COSTS,7,13/01/2022,2201-00460,0.00,397982.68,C,Aecom Limited,No
Http://opendatacommunities.org/id/metropolitan-district-council/leeds,Leeds City Council,31/01/2022,City Development,Highways,Capital,OTHER COSTS,7,13/01/2022,2201-00461,0.00,129921.14,C,Aecom Limited,No
Http://opendatacommunities.org/id/metropolitan-district-council/leeds,Leeds City Council,31/01/2022,City Development,Highways,Capital,OTHER COSTS,7,13/01/2022,2201-00462,0.00,83158.88,C,Aecom Limited,No
Http://opendatacommunities.org/id/metropolitan-district-council/leeds,Leeds City Council,31/01/2022,City Development,Highways,Supplies and Services,Bought In Professional Services,277,21/01/2022,2201-00463,0.00,5171.04,R,Aecom Limited,No
Http://opendatacommunities.org/id/metropolitan-district-council/leeds,Leeds City Council,31/01/2022,City Development,Highways,Capital,OTHER COSTS,7,24/01/2022,2201-00464,0.00,126651.57,C,Aecom Limited,No
Http://opendatacommunities.org/id/metropolitan-district-council/leeds,Leeds City Council,31/01/2022,City Development,Highways,Supplies and Services,Other Hired And Contracted Services,265,27/01/2022,2201-00465,0.00,1070.00,R,Aecom Limited,No
Http://opendatacommunities.org/id/metropolitan-district-council/leeds,Leeds City Council,31/01/2022,Adults and Health,Services For Adults Under 65 Mental/Dis,Agency Payments,Home Care,568,14/01/2022,2201-00466,0.00,296.00,R,Aegis Care Solutions Ltd,No
Http://opendatacommunities.org/id/metropolitan-district-council/leeds,Leeds City Council,31/01/2022,Adults and Health,Services For Adults Under 65 Mental/Dis,Agency Payments,Home Care,568,14/01/2022,2201-00467,0.00,288.00,R,Aegis Care Solutions Ltd,No
Http://opendatacommunities.org/id/metropolitan-district-council/leeds,Leeds City Council,31/01/2022,Adults and Health,Services For Adults Under 65 Mental/Dis,Agency Payments,Home Care,568,14/01/2022,2201-00468,0.00,311.94,R,Aegis Care Solutions Ltd,No
Http://opendatacommunities.org/id/metropolitan-district-council/leeds,Leeds City Council,31/01/2022,Adults and Health,Services For Adults Under 65 Mental/Dis,Agency Payments,Home Care,568,14/01/2022,2201-00469,0.00,304.00,R,Aegis Care Solutions Ltd,No
Http://opendatacommunities.org/id/metropolitan-district-council/leeds,Leeds City Council,31/01/2022,Adults and Health,Services For Adults Under 65 Mental/Dis,Agency Payments,Home Care,568,14/01/2022,2201-00470,0.00,290.50,R,Aegis Care Solutions Ltd,No
Http://opendatacommunities.org/id/metropolitan-district-council/leeds,Leeds City Council,31/01/2022,Adults and Health,Services For Adults Under 65 Mental/Dis,Agency Payments,Home Care,568,14/01/2022,2201-00471,0.00,298.00,R,Aegis Care Solutions Ltd,No
Http://opendatacommunities.org/id/metropolitan-district-council/leeds,Leeds City Council,31/01/2022,Adults and Health,Services For Adults Under 65 Mental/Dis,Agency Payments,Home Care,568,14/01/2022,2201-00472,0.00,332.00,R,Aegis Care Solutions Ltd,No
Http://opendatacommunities.org/id/metropolitan-district-council/leeds,Leeds City Council,31/01/2022,Adults and Health,Services For Adults Under 65 Mental/Dis,Agency Payments,Home Care,568,14/01/2022,2201-00473,0.00,1100.00,R,Aegis Care Solutions Ltd,No
Http://opendatacommunities.org/id/metropolitan-district-council/leeds,Leeds City Council,31/01/2022,Adults and Health,Services For Older People - 65 And Over,Agency Payments,Home Care,568,26/01/2022,2201-00474,0.00,32934.26,R,Aegis Care Solutions Ltd,No
Http://opendatacommunities.org/id/metropolitan-district-council/leeds,Leeds City Council,31/01/2022,Adults and Health,Services For Older People - 65 And Over,Agency Payments,HCAIT Other,577,26/01/2022,2201-00475,0.00,388.80,R,Aegis Care Solutions Ltd,No
Http://opendatacommunities.org/id/metropolitan-district-council/leeds,Leeds City Council,31/01/2022,Adults and Health,Services For Older People Under 65 P/Dis,Agency Payments,Home Care,568,26/01/2022,2201-00476,0.00,10848.66,R,Aegis Care Solutions Ltd,No
Http://opendatacommunities.org/id/metropolitan-district-council/leeds,Leeds City Council as Accountable Body,31/01/2022,Social Services Pooled Budgets,Jcs For People With Learning Disabilitie,Agency Payments,Home Care,568,26/01/2022,2201-00477,0.00,1977.92,R,Aegis Care Solutions Ltd,No
Http://opendatacommunities.org/id/metropolitan-district-council/leeds,Leeds City Council,31/01/2022,Adults and Health,Assessment And Care Management,Agency Payments,Home Care,568,19/01/2022,2201-00478,0.00,133.92,R,Affinity Trust,No
Http://opendatacommunities.org/id/metropolitan-district-council/leeds,Leeds City Council,31/01/2022,Adults and Health,Services For Adults Under 65 Mental/Dis,Agency Payments,Home Care,568,19/01/2022,2201-00479,0.00,535.68,R,Affinity Trust,No
Http://opendatacommunities.org/id/metropolitan-district-council/leeds,Leeds City Council,31/01/2022,Adults and Health,Services For Adults Under 65 Mental/Dis,Agency Payments,HCAIT Community Support,575,19/01/2022,2201-00480,0.00,334.80,R,Affinity Trust,No
Http://opendatacommunities.org/id/metropolitan-district-council/leeds,Leeds City Council,31/01/2022,Adults and Health,Services For Older People - 65 And Over,Agency Payments,HCAIT Community Support,575,19/01/2022,2201-00481,0.00,602.64,R,Affinity Trust,No
Http://opendatacommunities.org/id/metropolitan-district-council/leeds,Leeds City Council,31/01/2022,Adults and Health,Services For Older People Under 65 P/Dis,Agency Payments,Home Care,568,19/01/2022,2201-00482,0.00,803.52,R,Affinity Trust,No
Http://opendatacommunities.org/id/metropolitan-district-council/leeds,Leeds City Council,31/01/2022,Adults and Health,Services For Older People Under 65 P/Dis,Agency Payments,HCAIT Community Support,575,19/01/2022,2201-00483,0.00,736.56,R,Affinity Trust,No
Http://opendatacommunities.org/id/metropolitan-district-council/leeds,Leeds City Council as Accountable Body,31/01/2022,Social Services Pooled Budgets,Jcs For People With Learning Disabilitie,Agency Payments,Home Care,568,19/01/2022,2201-00484,0.00,334.80,R,Affinity Trust,No
Http://opendatacommunities.org/id/metropolitan-district-council/leeds,Leeds City Council as Accountable Body,31/01/2022,Social Services Pooled Budgets,Jcs For People With Learning Disabilitie,Agency Payments,Day Centre,564,19/01/2022,2201-00485,0.00,-2376.54,R,Affinity Trust,No
Http://opendatacommunities.org/id/metropolitan-district-council/leeds,Leeds City Council as Accountable Body,31/01/2022,Social Services Pooled Budgets,Jcs For People With Learning Disabilitie,Agency Payments,Day Centre,564,21/01/2022,2201-00486,0.00,25406.22,R,Affinity Trust,No
Http://opendatacommunities.org/id/metropolitan-district-council/leeds,Leeds City Council as Accountable Body,31/01/2022,Social Services Pooled Budgets,Jcs For People With Learning Disabilitie,Agency Payments,Day Centre,564,21/01/2022,2201-00487,0.00,15266.88,R,Affinity Trust,No
Http://opendatacommunities.org/id/metropolitan-district-council/leeds,Leeds City Council,31/01/2022,Adults and Health,Services For Older People - 65 And Over,Agency Payments,Home Care,568,21/01/2022,2201-00488,0.00,535.68,R,Affinity Trust,No
Http://opendatacommunities.org/id/metropolitan-district-council/leeds,Leeds City Council,31/01/2022,Adults and Health,Services For Adults Under 65 Mental/Dis,Agency Payments,Home Care,568,21/01/2022,2201-00489,0.00,1071.36,R,Affinity Trust,No
Http://opendatacommunities.org/id/metropolitan-district-council/leeds,Leeds City Council,31/01/2022,Adults and Health,Assessment And Care Management,Agency Payments,Home Care,568,21/01/2022,2201-00490,0.00,669.60,R,Affinity Trust,No
Http://opendatacommunities.org/id/metropolitan-district-council/leeds,Leeds City Council as Accountable Body,31/01/2022,Social Services Pooled Budgets,Jcs For People With Learning Disabilitie,Agency Payments,Sheltered Accommodation,569,07/01/2022,2201-00491,0.00,118152.16,R,Affinity Trust North Divisional Office,No
Http://opendatacommunities.org/id/metropolitan-district-council/leeds,Leeds City Council,31/01/2022,Communities and Environment,Parks and Countryside,Transport,Hire Of Movable Plant & Machinery,315,24/12/2021,2201-00492,0.00,2850.00,R,Afi Uplift,Yes
Http://opendatacommunities.org/id/metropolitan-district-council/leeds,Leeds City Council,31/01/2022,Communities and Environment,Benefits Welfare and Poverty,Supplies and Services,Grant Related Expenditure,290,25/01/2022,2201-00493,0.00,500.00,R,REDACTED PERSONAL DATA,No
Http://opendatacommunities.org/id/metropolitan-district-council/leeds,Leeds City Council,31/01/2022,Resources and Housing,Commercial Services,Supplies and Services,Compensation Claims,200,12/01/2022,2201-00494,0.00,613.60,R,REDACTED PERSONAL DATA,No
Http://opendatacommunities.org/id/metropolitan-district-council/leeds,Leeds City Council,31/01/2022,Communities and Environment,Benefits Welfare and Poverty,Supplies and Services,Grant Related Expenditure,290,24/01/2022,2201-00495,0.00,500.00,R,REDACTED PERSONAL DATA,No
Http://opendatacommunities.org/id/metropolitan-district-council/leeds,Leeds City Council,31/01/2022,Communities and Environment,Benefits Welfare and Poverty,Supplies and Services,Grant Related Expenditure,298,12/01/2022,2201-00496,0.00,500.00,R,REDACTED PERSONAL DATA,No
Http://opendatacommunities.org/id/metropolitan-district-council/leeds,Leeds City Council,31/01/2022,Communities and Environment,Benefits Welfare and Poverty,Supplies and Services,Grant Related Expenditure,298,14/01/2022,2201-00497,0.00,500.00,R,REDACTED PERSONAL DATA,No
Http://opendatacommunities.org/id/metropolitan-district-council/leeds,Leeds City Council,31/01/2022,City Development,Recreation,External Income,Sporting & Other Recreational Fees,928,13/01/2022,2201-00498,0.00,71.90,R,REDACTED PERSONAL DATA,No
Http://opendatacommunities.org/id/metropolitan-district-council/leeds,Leeds City Council,31/01/2022,Communities and Environment,Benefits Welfare and Poverty,Supplies and Services,Grant Related Expenditure,290,27/01/2022,2201-00499,0.00,500.00,R,REDACTED PERSONAL DATA,No
Http://opendatacommunities.org/id/metropolitan-district-council/leeds,Leeds City Council,31/01/2022,Communities and Environment,Benefits Welfare and Poverty,Supplies and Services,Grant Related Expenditure,290,13/01/2022,2201-00500,0.00,500.00,R,REDACTED PERSONAL DATA,No
Http://opendatacommunities.org/id/metropolitan-district-council/leeds,Leeds City Council,31/01/2022,Communities and Environment,Customer Access,Supplies and Services,Bought In Professional Services,277,19/01/2022,2201-00501,0.00,18.00,R,Ahmed Moustafa Moustafa Mousa,No
Http://opendatacommunities.org/id/metropolitan-district-council/leeds,Leeds City Council,31/01/2022,Communities and Environment,Customer Access,Supplies and Services,Bought In Professional Services,277,19/01/2022,2201-00502,0.00,18.00,R,Ahmed Moustafa Moustafa Mousa,No
Http://opendatacommunities.org/id/metropolitan-district-council/leeds,Leeds City Council,31/01/2022,Communities and Environment,Customer Access,Supplies and Services,Bought In Professional Services,277,19/01/2022,2201-00503,0.00,18.00,R,Ahmed Moustafa Moustafa Mousa,No
Http://opendatacommunities.org/id/metropolitan-district-council/leeds,Leeds City Council,31/01/2022,City Development,Economic Development,Supplies and Services,Grant Related Expenditure,290,26/01/2022,2201-00504,0.00,7126.00,R,Ahura Hair Studio,No
Http://opendatacommunities.org/id/metropolitan-district-council/leeds,Leeds City Council,31/01/2022,City Development,Libraries Arts & Heritage,Supplies and Services,Operational Furniture And Equipment,203,16/12/2021,2201-00505,0.00,185.68,R,Ai Plastics,Yes
Http://opendatacommunities.org/id/metropolitan-district-council/leeds,Leeds City Council,31/01/2022,Children and Families,Learning,Supplies and Services,Teaching Materials,202,14/01/2022,2201-00506,0.00,12.00,R,Aid Training & Operations Ltd,No
Http://opendatacommunities.org/id/metropolitan-district-council/leeds,Leeds City Council,31/01/2022,Communities and Environment,Benefits Welfare and Poverty,Supplies and Services,Grant Related Expenditure,298,20/01/2022,2201-00507,0.00,500.00,R,REDACTED PERSONAL DATA,No
Http://opendatacommunities.org/id/metropolitan-district-council/leeds,Leeds City Council as Accountable Body,31/01/2022,Social Services Pooled Budgets,Leeds Community Equip Store Pooled Budgt,Supplies and Services,Other Equipment,203,05/01/2022,2201-00508,0.00,19600.00,R,AIDAPT BATHROOMS LTD,No
Http://opendatacommunities.org/id/metropolitan-district-council/leeds,Leeds City Council as Accountable Body,31/01/2022,Social Services Pooled Budgets,Leeds Community Equip Store Pooled Budgt,Supplies and Services,Other Equipment,203,05/01/2022,2201-00509,0.00,50.75,R,AIDAPT BATHROOMS LTD,No
Http://opendatacommunities.org/id/metropolitan-district-council/leeds,Leeds City Council as Accountable Body,31/01/2022,Social Services Pooled Budgets,Leeds Community Equip Store Pooled Budgt,Supplies and Services,Other Equipment,203,05/01/2022,2201-00510,0.00,622.16,R,AIDAPT BATHROOMS LTD,No
Http://opendatacommunities.org/id/metropolitan-district-council/leeds,Leeds City Council as Accountable Body,31/01/2022,Social Services Pooled Budgets,Leeds Community Equip Store Pooled Budgt,Supplies and Services,Other Equipment,203,11/01/2022,2201-00511,0.00,4900.00,R,AIDAPT BATHROOMS LTD,No
Http://opendatacommunities.org/id/metropolitan-district-council/leeds,Leeds City Council as Accountable Body,31/01/2022,Social Services Pooled Budgets,Leeds Community Equip Store Pooled Budgt,Supplies and Services,Other Equipment,203,13/01/2022,2201-00512,0.00,1365.60,R,AIDAPT BATHROOMS LTD,No
Http://opendatacommunities.org/id/metropolitan-district-council/leeds,Leeds City Council as Accountable Body,31/01/2022,Social Services Pooled Budgets,Leeds Community Equip Store Pooled Budgt,Supplies and Services,Other Equipment,203,13/01/2022,2201-00513,0.00,300.00,R,AIDAPT BATHROOMS LTD,No
Http://opendatacommunities.org/id/metropolitan-district-council/leeds,Leeds City Council as Accountable Body,31/01/2022,Social Services Pooled Budgets,Leeds Community Equip Store Pooled Budgt,Supplies and Services,Other Equipment,203,21/01/2022,2201-00514,0.00,1343.75,R,AIDAPT BATHROOMS LTD,No
Http://opendatacommunities.org/id/metropolitan-district-council/leeds,Leeds City Council as Accountable Body,31/01/2022,Social Services Pooled Budgets,Leeds Community Equip Store Pooled Budgt,Supplies and Services,Other Equipment,203,21/01/2022,2201-00515,0.00,3150.00,R,AIDAPT BATHROOMS LTD,No
Http://opendatacommunities.org/id/metropolitan-district-council/leeds,Leeds City Council as Accountable Body,31/01/2022,Social Services Pooled Budgets,Leeds Community Equip Store Pooled Budgt,Supplies and Services,Other Equipment,203,28/01/2022,2201-00516,0.00,1350.00,R,AIDAPT BATHROOMS LTD,No
Http://opendatacommunities.org/id/metropolitan-district-council/leeds,Leeds City Council as Accountable Body,31/01/2022,Social Services Pooled Budgets,Leeds Community Equip Store Pooled Budgt,Supplies and Services,Other Equipment,203,28/01/2022,2201-00517,0.00,413.25,R,AIDAPT BATHROOMS LTD,No
Http://opendatacommunities.org/id/metropolitan-district-council/leeds,Leeds City Council as Accountable Body,31/01/2022,Social Services Pooled Budgets,Leeds Community Equip Store Pooled Budgt,Supplies and Services,Other Equipment,203,28/01/2022,2201-00518,0.00,1000.00,R,AIDAPT BATHROOMS LTD,No
Http://opendatacommunities.org/id/metropolitan-district-council/leeds,Leeds City Council,31/01/2022,Communities and Environment,Benefits Welfare and Poverty,Supplies and Services,Grant Related Expenditure,298,12/01/2022,2201-00519,0.00,500.00,R,REDACTED PERSONAL DATA,No
Http://opendatacommunities.org/id/metropolitan-district-council/leeds,Leeds City Council,31/01/2022,City Development,Recreation,External Income,Instructor Lead Sporting Fees (coaching),927,07/01/2022,2201-00520,0.00,15.95,R,REDACTED PERSONAL DATA,No
Http://opendatacommunities.org/id/metropolitan-district-council/leeds,Leeds City Council,31/01/2022,Communities and Environment,Benefits Welfare and Poverty,Supplies and Services,Grant Related Expenditure,290,26/01/2022,2201-00521,0.00,500.00,R,REDACTED PERSONAL DATA,No
Http://opendatacommunities.org/id/metropolitan-district-council/leeds,Leeds City Council,31/01/2022,Communities and Environment,Benefits Welfare and Poverty,Supplies and Services,Grant Related Expenditure,298,14/01/2022,2201-00522,0.00,500.00,R,REDACTED PERSONAL DATA,No
Http://opendatacommunities.org/id/metropolitan-district-council/leeds,Leeds City Council,31/01/2022,Children and Families,Social Care,Supplies and Services,Conference Meetings,253,28/01/2022,2201-00523,0.00,325.00,R,AIM PROJECT,No
Http://opendatacommunities.org/id/metropolitan-district-council/leeds,Leeds City Council,31/01/2022,Resources and Housing,Commercial Services,Supplies and Services,Other Hired And Contracted Services,265,19/01/2022,2201-00524,0.00,129.50,R,REDACTED PERSONAL DATA,No
Http://opendatacommunities.org/id/metropolitan-district-council/leeds,Leeds City Council,31/01/2022,Children and Families,Social Care,Agency Payments,Contact,548,13/01/2022,2201-00525,0.00,5.20,R,REDACTED PERSONAL DATA,No
Http://opendatacommunities.org/id/metropolitan-district-council/leeds,Leeds City Council,31/01/2022,Children and Families,Social Care,Agency Payments,Contact,548,25/01/2022,2201-00526,0.00,5.00,R,REDACTED PERSONAL DATA,No
Http://opendatacommunities.org/id/metropolitan-district-council/leeds,Leeds City Council,31/01/2022,Resources and Housing,Commercial Services,Supplies and Services,Operational Materials,205,01/12/2021,2201-00527,0.00,99.00,R,Air Force Pneumatics And,Yes
Http://opendatacommunities.org/id/metropolitan-district-council/leeds,Leeds City Council,31/01/2022,Communities and Environment,Environmental Health,Supplies and Services,Other Hired And Contracted Services,265,07/01/2022,2201-00528,0.00,11.25,R,AIR LIQUIDE UK,No
Http://opendatacommunities.org/id/metropolitan-district-council/leeds,Leeds City Council,31/01/2022,Communities and Environment,Environmental Health,Supplies and Services,Other Hired And Contracted Services,265,28/01/2022,2201-00529,0.00,11.25,R,AIR LIQUIDE UK,No
Http://opendatacommunities.org/id/metropolitan-district-council/leeds,Leeds City Council,31/01/2022,Communities and Environment,Environmental Health,Supplies and Services,Other Hired And Contracted Services,265,28/01/2022,2201-00530,0.00,11.25,R,AIR LIQUIDE UK,No
Http://opendatacommunities.org/id/metropolitan-district-council/leeds,Leeds City Council,31/01/2022,Communities and Environment,Environmental Health,Supplies and Services,Other Hired And Contracted Services,265,28/01/2022,2201-00531,0.00,17.38,R,AIR LIQUIDE UK,No
Http://opendatacommunities.org/id/metropolitan-district-council/leeds,Leeds City Council,31/01/2022,Communities and Environment,Environmental Health,Supplies and Services,Other Hired And Contracted Services,265,28/01/2022,2201-00532,0.00,78.75,R,AIR LIQUIDE UK,No
Http://opendatacommunities.org/id/metropolitan-district-council/leeds,Leeds City Council,31/01/2022,City Development,Libraries Arts & Heritage,Supplies and Services,Subsistence,256,17/12/2021,2201-00533,0.00,1044.47,R,Airbnb * Hm58adyn3e,Yes
Http://opendatacommunities.org/id/metropolitan-district-council/leeds,Leeds City Council,31/01/2022,Strategic Landlord,Property and Contracts,Supplies and Services,Subsistence,256,30/12/2021,2201-00534,0.00,1183.78,R,Airbnb * Hme3cenrs3,Yes
Http://opendatacommunities.org/id/metropolitan-district-council/leeds,Leeds City Council,31/01/2022,Children and Families,Social Care,Appropriations,Leaving Care Allowances,634,03/12/2021,2201-00535,0.00,227.10,R,Airbnb * Hmzs2a94rc,Yes
Http://opendatacommunities.org/id/metropolitan-district-council/leeds,Leeds City Council,31/01/2022,Children and Families,Social Care,Appropriations,Leaving Care Allowances,634,07/12/2021,2201-00536,0.00,20.11,R,Airbnb * Hmzs2a94rc,Yes
Http://opendatacommunities.org/id/metropolitan-district-council/leeds,Leeds City Council,31/01/2022,Children and Families,Social Care,Appropriations,Leaving Care Allowances,634,09/12/2021,2201-00537,0.00,-151.08,R,Airbnb * Hmzs2a94rc,Yes
Http://opendatacommunities.org/id/metropolitan-district-council/leeds,Leeds City Council,31/01/2022,Children and Families,Social Care,Appropriations,Leaving Care Allowances,634,09/12/2021,2201-00538,0.00,-20.11,R,Airbnb * Hmzs2a94rc,Yes
Http://opendatacommunities.org/id/metropolitan-district-council/leeds,Leeds City Council,31/01/2022,Resources and Housing,Leeds Building Services,Employees,Training & Development,70,17/01/2022,2201-00539,0.00,780.00,R,Airborne Environmental Consultants Ltd,No
Http://opendatacommunities.org/id/metropolitan-district-council/leeds,Leeds City Council,31/01/2022,Communities and Environment,Waste Management,Supplies and Services,Bought In Professional Services,277,12/01/2022,2201-00540,0.00,24866.66,R,Aire Logic Ltd,No
Http://opendatacommunities.org/id/metropolitan-district-council/leeds,Leeds City Council,31/01/2022,Communities and Environment,Communities,Supplies and Services,'Well Being' Large Grants Projects,230,31/01/2022,2201-00541,0.00,2456.00,R,Aire Rivers Trust,No
Http://opendatacommunities.org/id/metropolitan-district-council/leeds,Leeds City Council,31/01/2022,Adults and Health,Public Health,Agency Payments,Public Health Commissioned Services,526,28/01/2022,2201-00542,0.00,2881.24,R,Aire Valley Surgery,No
Http://opendatacommunities.org/id/metropolitan-district-council/leeds,Leeds City Council,31/01/2022,Communities and Environment,Parks and Countryside,Supplies and Services,Other Hired And Contracted Services,265,06/01/2022,2201-00543,0.00,285.00,R,Aire Valley Tree Services Ltd,No
Http://opendatacommunities.org/id/metropolitan-district-council/leeds,Leeds City Council,31/01/2022,Communities and Environment,Parks and Countryside,Supplies and Services,Other Hired And Contracted Services,265,13/01/2022,2201-00544,0.00,495.00,R,Aire Valley Tree Services Ltd,No
Http://opendatacommunities.org/id/metropolitan-district-council/leeds,Leeds City Council,31/01/2022,Communities and Environment,Parks and Countryside,Supplies and Services,Other Hired And Contracted Services,265,13/01/2022,2201-00545,0.00,922.00,R,Aire Valley Tree Services Ltd,No
Http://opendatacommunities.org/id/metropolitan-district-council/leeds,Leeds City Council,31/01/2022,Communities and Environment,Parks and Countryside,Supplies and Services,Other Hired And Contracted Services,265,18/01/2022,2201-00546,0.00,517.00,R,Aire Valley Tree Services Ltd,No
Http://opendatacommunities.org/id/metropolitan-district-council/leeds,Leeds City Council,31/01/2022,Communities and Environment,Parks and Countryside,Supplies and Services,Other Hired And Contracted Services,265,18/01/2022,2201-00547,0.00,225.00,R,Aire Valley Tree Services Ltd,No
Http://opendatacommunities.org/id/metropolitan-district-council/leeds,Leeds City Council,31/01/2022,Communities and Environment,Parks and Countryside,Supplies and Services,Other Hired And Contracted Services,265,21/01/2022,2201-00548,0.00,125.00,R,Aire Valley Tree Services Ltd,No
Http://opendatacommunities.org/id/metropolitan-district-council/leeds,Leeds City Council,31/01/2022,Communities and Environment,Parks and Countryside,Supplies and Services,Other Hired And Contracted Services,265,21/01/2022,2201-00549,0.00,495.00,R,Aire Valley Tree Services Ltd,No
Http://opendatacommunities.org/id/metropolitan-district-council/leeds,Leeds City Council,31/01/2022,Adults and Health,Services For Older People - 65 And Over,Agency Payments,Residential Care Dementia,571,07/01/2022,2201-00550,0.00,37619.04,R,Aire View Residential Home,No
Http://opendatacommunities.org/id/metropolitan-district-council/leeds,Leeds City Council,31/01/2022,Adults and Health,Services For Older People - 65 And Over,Agency Payments,Residential,580,07/01/2022,2201-00551,0.00,995.36,R,Aire View Residential Home,No
Http://opendatacommunities.org/id/metropolitan-district-council/leeds,Leeds City Council,31/01/2022,Adults and Health,Public Health,Agency Payments,Public Health Commissioned Services,526,28/01/2022,2201-00552,0.00,1359.84,R,Aireborough Family Practice,No
Http://opendatacommunities.org/id/metropolitan-district-council/leeds,Leeds City Council,31/01/2022,City Development,Recreation,Supplies and Services,Non-Recurring Grants,227,10/01/2022,2201-00553,0.00,180.00,R,Aireborough Rifle Club,No
Http://opendatacommunities.org/id/metropolitan-district-council/leeds,Leeds City Council,31/01/2022,Resources and Housing,Commercial Services,Supplies and Services,Operational Furniture And Equipment,203,12/01/2022,2201-00554,0.00,1238.00,R,AIREDALE CATERING EQUIPMENT LTD,No
Http://opendatacommunities.org/id/metropolitan-district-council/leeds,Leeds City Council as Accountable Body,31/01/2022,Social Services Pooled Budgets,Jcs For People With Learning Disabilitie,Agency Payments,Day Centre,564,31/01/2022,2201-00555,0.00,60.92,R,Airedale Nhs Foundation Trust,No
Http://opendatacommunities.org/id/metropolitan-district-council/leeds,Leeds City Council,31/01/2022,Adults and Health,Services For Older People - 65 And Over,Agency Payments,Residential Care Dementia,571,07/01/2022,2201-00556,0.00,2174.55,R,Airedale Residential Home,No
Http://opendatacommunities.org/id/metropolitan-district-council/leeds,Leeds City Council,31/01/2022,Adults and Health,Services For Older People - 65 And Over,Agency Payments,Residential,580,07/01/2022,2201-00557,0.00,27324.15,R,Airedale Residential Home,No
Http://opendatacommunities.org/id/metropolitan-district-council/leeds,Leeds City Council,31/01/2022,Adults and Health,Services For Older People Under 65 P/Dis,Agency Payments,Residential,580,07/01/2022,2201-00558,0.00,3374.70,R,Airedale Residential Home,No
Http://opendatacommunities.org/id/metropolitan-district-council/leeds,Leeds City Council,31/01/2022,City Development,Employment & Skills,Agency Payments,Contributions To Partnerships,544,07/01/2022,2201-00559,0.00,5000.00,R,Airnow Cybersecurity Limited,No
Http://opendatacommunities.org/id/metropolitan-district-council/leeds,Leeds City Council,31/01/2022,City Development,Employment & Skills,Agency Payments,Contributions To Partnerships,544,18/01/2022,2201-00560,0.00,5855.73,R,Airnow Cybersecurity Limited,No
Http://opendatacommunities.org/id/metropolitan-district-council/leeds,Leeds City Council,31/01/2022,Children and Families,Social Care,Transport,Public Transport Expenses,310,06/12/2021,2201-00561,0.00,12.15,R,Airpay 39933499-Amber Car,Yes
Http://opendatacommunities.org/id/metropolitan-district-council/leeds,Leeds City Council,31/01/2022,Children and Families,Social Care,Transport,Public Transport Expenses,310,06/12/2021,2201-00562,0.00,14.71,R,Airpay 39940097-Amber Car,Yes
Http://opendatacommunities.org/id/metropolitan-district-council/leeds,Leeds City Council,31/01/2022,Children and Families,Social Care,Appropriations,Leaving Care Allowances,634,17/12/2021,2201-00563,0.00,6.55,R,Airpay 40123264-Amber Car,Yes
Http://opendatacommunities.org/id/metropolitan-district-council/leeds,Leeds City Council,31/01/2022,Communities and Environment,Customer Access,Transport,Public Transport Expenses,310,24/12/2021,2201-00564,0.00,9.85,R,Airpay 40210727-Amber Car,Yes
Http://opendatacommunities.org/id/metropolitan-district-council/leeds,Leeds City Council,31/01/2022,Adults and Health,Services For Adults Under 65 Mental/Dis,Agency Payments,Fees - Level 4,520,07/01/2022,2201-00565,0.00,267.00,R,AIT Mitra Limited,No
Http://opendatacommunities.org/id/metropolitan-district-council/leeds,Leeds City Council,31/01/2022,Adults and Health,Services For Adults Under 65 Mental/Dis,Agency Payments,Fees - Level 4,520,07/01/2022,2201-00566,0.00,175.00,R,AIT Mitra Limited,No
Http://opendatacommunities.org/id/metropolitan-district-council/leeds,Leeds City Council,31/01/2022,Adults and Health,Services For Adults Under 65 Mental/Dis,Agency Payments,Fees - Level 4,520,07/01/2022,2201-00567,0.00,175.00,R,AIT Mitra Limited,No
Http://opendatacommunities.org/id/metropolitan-district-council/leeds,Leeds City Council,31/01/2022,Adults and Health,Services For Adults Under 65 Mental/Dis,Agency Payments,Fees - Level 4,520,07/01/2022,2201-00568,0.00,175.00,R,AIT Mitra Limited,No
Http://opendatacommunities.org/id/metropolitan-district-council/leeds,Leeds City Council,31/01/2022,Adults and Health,Services For Adults Under 65 Mental/Dis,Agency Payments,Fees - Level 4,520,07/01/2022,2201-00569,0.00,175.00,R,AIT Mitra Limited,No
Http://opendatacommunities.org/id/metropolitan-district-council/leeds,Leeds City Council,31/01/2022,Adults and Health,Services For Adults Under 65 Mental/Dis,Agency Payments,Fees - Level 4,520,12/01/2022,2201-00570,0.00,175.00,R,AIT Mitra Limited,No
Http://opendatacommunities.org/id/metropolitan-district-council/leeds,Leeds City Council,31/01/2022,Adults and Health,Services For Adults Under 65 Mental/Dis,Agency Payments,Fees - Level 4,520,19/01/2022,2201-00571,0.00,252.40,R,AIT Mitra Limited,No
Http://opendatacommunities.org/id/metropolitan-district-council/leeds,Leeds City Council,31/01/2022,Adults and Health,Services For Adults Under 65 Mental/Dis,Agency Payments,Fees - Level 4,520,19/01/2022,2201-00572,0.00,175.00,R,AIT Mitra Limited,No
Http://opendatacommunities.org/id/metropolitan-district-council/leeds,Leeds City Council,31/01/2022,Adults and Health,Services For Adults Under 65 Mental/Dis,Agency Payments,Fees - Level 4,520,19/01/2022,2201-00573,0.00,248.80,R,AIT Mitra Limited,No
Http://opendatacommunities.org/id/metropolitan-district-council/leeds,Leeds City Council,31/01/2022,Adults and Health,Services For Adults Under 65 Mental/Dis,Agency Payments,Fees - Level 4,520,19/01/2022,2201-00574,0.00,248.80,R,AIT Mitra Limited,No
Http://opendatacommunities.org/id/metropolitan-district-council/leeds,Leeds City Council as Accountable Body,31/01/2022,Social Services Pooled Budgets,Jcs For People With Learning Disabilitie,Agency Payments,Residential,580,07/01/2022,2201-00575,0.00,6778.44,R,AITCH care homes,No
Http://opendatacommunities.org/id/metropolitan-district-council/leeds,Leeds City Council,31/01/2022,Communities and Environment,Parks and Countryside,Supplies and Services,Operational Furniture And Equipment,203,05/01/2022,2201-00576,0.00,380.00,R,Aitkens Sportsturf Ltd,No
Http://opendatacommunities.org/id/metropolitan-district-council/leeds,Leeds City Council,31/01/2022,Communities and Environment,Parks and Countryside,Supplies and Services,Operational Furniture And Equipment,203,21/01/2022,2201-00577,0.00,61.95,R,Aitkens Sportsturf Ltd,No
Http://opendatacommunities.org/id/metropolitan-district-council/leeds,Leeds City Council,31/01/2022,Resources and Housing,Leeds Building Services,Supplies and Services,Operational Furniture And Equipment,203,21/01/2022,2201-00578,0.00,555.75,R,AJM FIXINGS & POWER TOOLS LTD,No
Http://opendatacommunities.org/id/metropolitan-district-council/leeds,Leeds City Council,31/01/2022,Resources and Housing,Leeds Building Services,Premises,Cleaning Maintenance & Toiletries,127,21/01/2022,2201-00579,0.00,111.45,R,AJM FIXINGS & POWER TOOLS LTD,No
Http://opendatacommunities.org/id/metropolitan-district-council/leeds,Leeds City Council,31/01/2022,Resources and Housing,Leeds Building Services,Premises,Cleaning Maintenance & Toiletries,127,21/01/2022,2201-00580,0.00,267.39,R,AJM FIXINGS & POWER TOOLS LTD,No
Http://opendatacommunities.org/id/metropolitan-district-council/leeds,Leeds City Council,31/01/2022,Resources and Housing,Leeds Building Services,Supplies and Services,STORES - CENTRAL AND OTHER DEPOTS,005,31/01/2022,2201-00581,0.00,254.00,R,AJM FIXINGS & POWER TOOLS LTD,No
Http://opendatacommunities.org/id/metropolitan-district-council/leeds,Leeds City Council,31/01/2022,Resources and Housing,Leeds Building Services,Supplies and Services,Operational Furniture And Equipment,203,31/01/2022,2201-00582,0.00,2712.96,R,AJM FIXINGS & POWER TOOLS LTD,No
Http://opendatacommunities.org/id/metropolitan-district-council/leeds,Leeds City Council,31/01/2022,Resources and Housing,Leeds Building Services,Premises,Cleaning Maintenance & Toiletries,127,31/01/2022,2201-00583,0.00,55.00,R,AJM FIXINGS & POWER TOOLS LTD,No
Http://opendatacommunities.org/id/metropolitan-district-council/leeds,Leeds City Council,31/01/2022,Resources and Housing,Leeds Building Services,Supplies and Services,Operational Furniture And Equipment,203,31/01/2022,2201-00584,0.00,46.60,R,AJM FIXINGS & POWER TOOLS LTD,No
Http://opendatacommunities.org/id/metropolitan-district-council/leeds,Leeds City Council,31/01/2022,Resources and Housing,Leeds Building Services,Supplies and Services,Operational Furniture And Equipment,203,31/01/2022,2201-00585,0.00,259.00,R,AJM FIXINGS & POWER TOOLS LTD,No
Http://opendatacommunities.org/id/metropolitan-district-council/leeds,Leeds City Council,31/01/2022,Resources and Housing,Leeds Building Services,Supplies and Services,Operational Furniture And Equipment,203,31/01/2022,2201-00586,0.00,99.00,R,AJM FIXINGS & POWER TOOLS LTD,No
Http://opendatacommunities.org/id/metropolitan-district-council/leeds,Leeds City Council,31/01/2022,Resources and Housing,Leeds Building Services,Supplies and Services,Operational Furniture And Equipment,203,31/01/2022,2201-00587,0.00,95.00,R,AJM FIXINGS & POWER TOOLS LTD,No
Http://opendatacommunities.org/id/metropolitan-district-council/leeds,Leeds City Council,31/01/2022,Resources and Housing,Leeds Building Services,Supplies and Services,Operational Furniture And Equipment,203,31/01/2022,2201-00588,0.00,510.00,R,AJM FIXINGS & POWER TOOLS LTD,No
Http://opendatacommunities.org/id/metropolitan-district-council/leeds,Leeds City Council,31/01/2022,Resources and Housing,Leeds Building Services,Supplies and Services,Operational Furniture And Equipment,203,31/01/2022,2201-00589,0.00,94.50,R,AJM FIXINGS & POWER TOOLS LTD,No
Http://opendatacommunities.org/id/metropolitan-district-council/leeds,Leeds City Council,31/01/2022,Resources and Housing,Leeds Building Services,Supplies and Services,Operational Furniture And Equipment,203,31/01/2022,2201-00590,0.00,110.00,R,AJM FIXINGS & POWER TOOLS LTD,No
Http://opendatacommunities.org/id/metropolitan-district-council/leeds,Leeds City Council,31/01/2022,Resources and Housing,Leeds Building Services,Supplies and Services,Operational Furniture And Equipment,203,31/01/2022,2201-00591,0.00,265.83,R,AJM FIXINGS & POWER TOOLS LTD,No
Http://opendatacommunities.org/id/metropolitan-district-council/leeds,Leeds City Council,31/01/2022,Resources and Housing,Leeds Building Services,Supplies and Services,Operational Furniture And Equipment,203,31/01/2022,2201-00592,0.00,259.00,R,AJM FIXINGS & POWER TOOLS LTD,No
Http://opendatacommunities.org/id/metropolitan-district-council/leeds,Leeds City Council,31/01/2022,Resources and Housing,Leeds Building Services,Supplies and Services,Operational Furniture And Equipment,203,31/01/2022,2201-00593,0.00,510.00,R,AJM FIXINGS & POWER TOOLS LTD,No
Http://opendatacommunities.org/id/metropolitan-district-council/leeds,Leeds City Council,31/01/2022,Resources and Housing,Leeds Building Services,Supplies and Services,Operational Furniture And Equipment,203,31/01/2022,2201-00594,0.00,13.51,R,AJM FIXINGS & POWER TOOLS LTD,No
Http://opendatacommunities.org/id/metropolitan-district-council/leeds,Leeds City Council,31/01/2022,Resources and Housing,Leeds Building Services,Supplies and Services,Operational Furniture And Equipment,203,31/01/2022,2201-00595,0.00,146.26,R,AJM FIXINGS & POWER TOOLS LTD,No
Http://opendatacommunities.org/id/metropolitan-district-council/leeds,Leeds City Council,31/01/2022,Resources and Housing,Leeds Building Services,Supplies and Services,Operational Furniture And Equipment,203,31/01/2022,2201-00596,0.00,179.50,R,AJM FIXINGS & POWER TOOLS LTD,No
Http://opendatacommunities.org/id/metropolitan-district-council/leeds,Leeds City Council,31/01/2022,Resources and Housing,Leeds Building Services,Premises,Cleaning Maintenance & Toiletries,127,31/01/2022,2201-00597,0.00,359.00,R,AJM FIXINGS & POWER TOOLS LTD,No
Http://opendatacommunities.org/id/metropolitan-district-council/leeds,Leeds City Council,31/01/2022,Resources and Housing,Leeds Building Services,Supplies and Services,Operational Materials,205,31/01/2022,2201-00598,0.00,125.00,R,AJM FIXINGS & POWER TOOLS LTD,No
Http://opendatacommunities.org/id/metropolitan-district-council/leeds,Leeds City Council,31/01/2022,Resources and Housing,Leeds Building Services,Supplies and Services,Operational Furniture And Equipment,203,31/01/2022,2201-00599,0.00,99.00,R,AJM FIXINGS & POWER TOOLS LTD,No
Http://opendatacommunities.org/id/metropolitan-district-council/leeds,Leeds City Council,31/01/2022,Resources and Housing,Leeds Building Services,Supplies and Services,Operational Furniture And Equipment,203,31/01/2022,2201-00600,0.00,99.00,R,AJM FIXINGS & POWER TOOLS LTD,No
Http://opendatacommunities.org/id/metropolitan-district-council/leeds,Leeds City Council,31/01/2022,Resources and Housing,Leeds Building Services,Premises,Cleaning Maintenance & Toiletries,127,31/01/2022,2201-00601,0.00,99.00,R,AJM FIXINGS & POWER TOOLS LTD,No
Http://opendatacommunities.org/id/metropolitan-district-council/leeds,Leeds City Council,31/01/2022,Resources and Housing,Leeds Building Services,Supplies and Services,Operational Furniture And Equipment,203,31/01/2022,2201-00602,0.00,99.00,R,AJM FIXINGS & POWER TOOLS LTD,No
Http://opendatacommunities.org/id/metropolitan-district-council/leeds,Leeds City Council,31/01/2022,Resources and Housing,Leeds Building Services,Supplies and Services,Operational Furniture And Equipment,203,31/01/2022,2201-00603,0.00,94.50,R,AJM FIXINGS & POWER TOOLS LTD,No
Http://opendatacommunities.org/id/metropolitan-district-council/leeds,Leeds City Council,31/01/2022,Resources and Housing,Leeds Building Services,Supplies and Services,Operational Furniture And Equipment,203,31/01/2022,2201-00604,0.00,94.50,R,AJM FIXINGS & POWER TOOLS LTD,No
Http://opendatacommunities.org/id/metropolitan-district-council/leeds,Leeds City Council,31/01/2022,Resources and Housing,Leeds Building Services,Supplies and Services,Operational Furniture And Equipment,203,31/01/2022,2201-00605,0.00,94.50,R,AJM FIXINGS & POWER TOOLS LTD,No
Http://opendatacommunities.org/id/metropolitan-district-council/leeds,Leeds City Council,31/01/2022,Resources and Housing,Leeds Building Services,Supplies and Services,Operational Furniture And Equipment,203,31/01/2022,2201-00606,0.00,69.99,R,AJM FIXINGS & POWER TOOLS LTD,No
Http://opendatacommunities.org/id/metropolitan-district-council/leeds,Leeds City Council,31/01/2022,Resources and Housing,Leeds Building Services,Supplies and Services,Operational Furniture And Equipment,203,31/01/2022,2201-00607,0.00,259.00,R,AJM FIXINGS & POWER TOOLS LTD,No
Http://opendatacommunities.org/id/metropolitan-district-council/leeds,Leeds City Council,31/01/2022,Resources and Housing,Leeds Building Services,Supplies and Services,Operational Furniture And Equipment,203,31/01/2022,2201-00608,0.00,259.00,R,AJM FIXINGS & POWER TOOLS LTD,No
Http://opendatacommunities.org/id/metropolitan-district-council/leeds,Leeds City Council,31/01/2022,Resources and Housing,Leeds Building Services,Supplies and Services,Operational Furniture And Equipment,203,31/01/2022,2201-00609,0.00,259.00,R,AJM FIXINGS & POWER TOOLS LTD,No
Http://opendatacommunities.org/id/metropolitan-district-council/leeds,Leeds City Council,31/01/2022,Resources and Housing,Leeds Building Services,Supplies and Services,Operational Furniture And Equipment,203,31/01/2022,2201-00610,0.00,259.00,R,AJM FIXINGS & POWER TOOLS LTD,No
Http://opendatacommunities.org/id/metropolitan-district-council/leeds,Leeds City Council,31/01/2022,Resources and Housing,Leeds Building Services,Supplies and Services,Operational Furniture And Equipment,203,31/01/2022,2201-00611,0.00,259.00,R,AJM FIXINGS & POWER TOOLS LTD,No
Http://opendatacommunities.org/id/metropolitan-district-council/leeds,Leeds City Council,31/01/2022,Resources and Housing,Leeds Building Services,Supplies and Services,Operational Furniture And Equipment,203,31/01/2022,2201-00612,0.00,259.00,R,AJM FIXINGS & POWER TOOLS LTD,No
Http://opendatacommunities.org/id/metropolitan-district-council/leeds,Leeds City Council,31/01/2022,Resources and Housing,Leeds Building Services,Supplies and Services,Operational Furniture And Equipment,203,31/01/2022,2201-00613,0.00,99.00,R,AJM FIXINGS & POWER TOOLS LTD,No
Http://opendatacommunities.org/id/metropolitan-district-council/leeds,Leeds City Council,31/01/2022,Resources and Housing,Leeds Building Services,Supplies and Services,Operational Furniture And Equipment,203,31/01/2022,2201-00614,0.00,99.00,R,AJM FIXINGS & POWER TOOLS LTD,No
Http://opendatacommunities.org/id/metropolitan-district-council/leeds,Leeds City Council,31/01/2022,Resources and Housing,Leeds Building Services,Supplies and Services,Operational Furniture And Equipment,203,31/01/2022,2201-00615,0.00,99.00,R,AJM FIXINGS & POWER TOOLS LTD,No
Http://opendatacommunities.org/id/metropolitan-district-council/leeds,Leeds City Council,31/01/2022,Resources and Housing,Leeds Building Services,Supplies and Services,Operational Furniture And Equipment,203,31/01/2022,2201-00616,0.00,99.00,R,AJM FIXINGS & POWER TOOLS LTD,No
Http://opendatacommunities.org/id/metropolitan-district-council/leeds,Leeds City Council,31/01/2022,Resources and Housing,Leeds Building Services,Supplies and Services,Operational Furniture And Equipment,203,31/01/2022,2201-00617,0.00,99.00,R,AJM FIXINGS & POWER TOOLS LTD,No
Http://opendatacommunities.org/id/metropolitan-district-council/leeds,Leeds City Council,31/01/2022,Resources and Housing,Leeds Building Services,Supplies and Services,Operational Furniture And Equipment,203,31/01/2022,2201-00618,0.00,99.00,R,AJM FIXINGS & POWER TOOLS LTD,No
Http://opendatacommunities.org/id/metropolitan-district-council/leeds,Leeds City Council,31/01/2022,Resources and Housing,Leeds Building Services,Supplies and Services,Operational Furniture And Equipment,203,31/01/2022,2201-00619,0.00,265.83,R,AJM FIXINGS & POWER TOOLS LTD,No
Http://opendatacommunities.org/id/metropolitan-district-council/leeds,Leeds City Council,31/01/2022,Resources and Housing,Leeds Building Services,Supplies and Services,Operational Furniture And Equipment,203,31/01/2022,2201-00620,0.00,265.83,R,AJM FIXINGS & POWER TOOLS LTD,No
Http://opendatacommunities.org/id/metropolitan-district-council/leeds,Leeds City Council,31/01/2022,Resources and Housing,Leeds Building Services,Premises,Cleaning Maintenance & Toiletries,127,31/01/2022,2201-00621,0.00,110.00,R,AJM FIXINGS & POWER TOOLS LTD,No
Http://opendatacommunities.org/id/metropolitan-district-council/leeds,Leeds City Council,31/01/2022,Resources and Housing,Leeds Building Services,Supplies and Services,Operational Furniture And Equipment,203,31/01/2022,2201-00622,0.00,110.00,R,AJM FIXINGS & POWER TOOLS LTD,No
Http://opendatacommunities.org/id/metropolitan-district-council/leeds,Leeds City Council,31/01/2022,Resources and Housing,Leeds Building Services,Premises,Cleaning Maintenance & Toiletries,127,31/01/2022,2201-00623,0.00,151.00,R,AJM FIXINGS & POWER TOOLS LTD,No
Http://opendatacommunities.org/id/metropolitan-district-council/leeds,Leeds City Council,31/01/2022,Resources and Housing,Leeds Building Services,Supplies and Services,Operational Furniture And Equipment,203,31/01/2022,2201-00624,0.00,134.16,R,AJM FIXINGS & POWER TOOLS LTD,No
Http://opendatacommunities.org/id/metropolitan-district-council/leeds,Leeds City Council,31/01/2022,Resources and Housing,Leeds Building Services,Supplies and Services,Operational Furniture And Equipment,203,31/01/2022,2201-00625,0.00,134.16,R,AJM FIXINGS & POWER TOOLS LTD,No
Http://opendatacommunities.org/id/metropolitan-district-council/leeds,Leeds City Council,31/01/2022,Resources and Housing,Leeds Building Services,Supplies and Services,Operational Furniture And Equipment,203,31/01/2022,2201-00626,0.00,146.26,R,AJM FIXINGS & POWER TOOLS LTD,No
Http://opendatacommunities.org/id/metropolitan-district-council/leeds,Leeds City Council,31/01/2022,Resources and Housing,Leeds Building Services,Supplies and Services,Operational Furniture And Equipment,203,31/01/2022,2201-00627,0.00,99.00,R,AJM FIXINGS & POWER TOOLS LTD,No
Http://opendatacommunities.org/id/metropolitan-district-council/leeds,Leeds City Council,31/01/2022,Resources and Housing,Leeds Building Services,Supplies and Services,Operational Furniture And Equipment,203,31/01/2022,2201-00628,0.00,110.00,R,AJM FIXINGS & POWER TOOLS LTD,No
Http://opendatacommunities.org/id/metropolitan-district-council/leeds,Leeds City Council,31/01/2022,Resources and Housing,Leeds Building Services,Supplies and Services,Operational Materials,205,31/01/2022,2201-00629,0.00,289.60,R,AJM FIXINGS & POWER TOOLS LTD,No
Http://opendatacommunities.org/id/metropolitan-district-council/leeds,Leeds City Council,31/01/2022,Resources and Housing,Leeds Building Services,Supplies and Services,Operational Furniture And Equipment,203,31/01/2022,2201-00630,0.00,782.40,R,AJM FIXINGS & POWER TOOLS LTD,No
Http://opendatacommunities.org/id/metropolitan-district-council/leeds,Leeds City Council,31/01/2022,Resources and Housing,Leeds Building Services,Premises,Cleaning Maintenance & Toiletries,127,31/01/2022,2201-00631,0.00,191.66,R,AJM FIXINGS & POWER TOOLS LTD,No
Http://opendatacommunities.org/id/metropolitan-district-council/leeds,Leeds City Council,31/01/2022,Resources and Housing,Leeds Building Services,Supplies and Services,STORES - CENTRAL AND OTHER DEPOTS,005,31/01/2022,2201-00632,0.00,144.80,R,AJM FIXINGS & POWER TOOLS LTD,No
Http://opendatacommunities.org/id/metropolitan-district-council/leeds,Leeds City Council,31/01/2022,Resources and Housing,Leeds Building Services,Supplies and Services,Operational Furniture And Equipment,203,31/01/2022,2201-00633,0.00,359.16,R,AJM FIXINGS & POWER TOOLS LTD,No
Http://opendatacommunities.org/id/metropolitan-district-council/leeds,Leeds City Council,31/01/2022,Resources and Housing,Leeds Building Services,Supplies and Services,Operational Furniture And Equipment,203,31/01/2022,2201-00634,0.00,99.00,R,AJM FIXINGS & POWER TOOLS LTD,No
Http://opendatacommunities.org/id/metropolitan-district-council/leeds,Leeds City Council,31/01/2022,Resources and Housing,Leeds Building Services,Supplies and Services,Operational Furniture And Equipment,203,31/01/2022,2201-00635,0.00,359.16,R,AJM FIXINGS & POWER TOOLS LTD,No
Http://opendatacommunities.org/id/metropolitan-district-council/leeds,Leeds City Council,31/01/2022,Resources and Housing,Leeds Building Services,Supplies and Services,Operational Furniture And Equipment,203,31/01/2022,2201-00636,0.00,259.00,R,AJM FIXINGS & POWER TOOLS LTD,No
Http://opendatacommunities.org/id/metropolitan-district-council/leeds,Leeds City Council,31/01/2022,Resources and Housing,Leeds Building Services,Supplies and Services,Operational Furniture And Equipment,203,31/01/2022,2201-00637,0.00,359.16,R,AJM FIXINGS & POWER TOOLS LTD,No
Http://opendatacommunities.org/id/metropolitan-district-council/leeds,Leeds City Council,31/01/2022,Resources and Housing,Leeds Building Services,Supplies and Services,Operational Furniture And Equipment,203,31/01/2022,2201-00638,0.00,103.90,R,AJM FIXINGS & POWER TOOLS LTD,No
Http://opendatacommunities.org/id/metropolitan-district-council/leeds,Leeds City Council,31/01/2022,Communities and Environment,Elections Licensing and Registration,External Income,Admissions Booking Fees & Ticket Sales,933,25/01/2022,2201-00639,0.00,260.00,R,REDACTED PERSONAL DATA,No
Http://opendatacommunities.org/id/metropolitan-district-council/leeds,Leeds City Council,31/01/2022,City Development,Economic Development,Supplies and Services,Grant Related Expenditure,290,11/01/2022,2201-00640,0.00,5122.00,R,Akmals Tandoori Bistro,No
Http://opendatacommunities.org/id/metropolitan-district-council/leeds,Leeds City Council,31/01/2022,Resources and Housing,Strategic Housing Partnerships,Capital,CONSTRUCTION,3,13/01/2022,2201-00641,0.00,3000.00,C,AKR Construction Ltd,No
Http://opendatacommunities.org/id/metropolitan-district-council/leeds,Leeds City Council,31/01/2022,Communities and Environment,Elections Licensing and Registration,External Income,Admissions Booking Fees & Ticket Sales,933,25/01/2022,2201-00642,0.00,130.00,R,REDACTED PERSONAL DATA,No
Http://opendatacommunities.org/id/metropolitan-district-council/leeds,Leeds City Council,31/01/2022,Communities and Environment,Benefits Welfare and Poverty,Supplies and Services,Grant Related Expenditure,298,11/01/2022,2201-00643,0.00,500.00,R,REDACTED PERSONAL DATA,No
Http://opendatacommunities.org/id/metropolitan-district-council/leeds,Leeds City Council,31/01/2022,Children and Families,Social Care,Appropriations,Leaving Care Grants,635,02/12/2021,2201-00644,0.00,63.88,R,Al Murad,Yes
Http://opendatacommunities.org/id/metropolitan-district-council/leeds,Leeds City Council,31/01/2022,City Development,Recreation,External Income,Sporting & Other Recreational Fees,928,17/01/2022,2201-00645,0.00,13.00,R,REDACTED PERSONAL DATA,No
Http://opendatacommunities.org/id/metropolitan-district-council/leeds,Leeds City Council,31/01/2022,Communities and Environment,Benefits Welfare and Poverty,Supplies and Services,Grant Related Expenditure,298,31/01/2022,2201-00646,0.00,500.00,R,REDACTED PERSONAL DATA,No
Http://opendatacommunities.org/id/metropolitan-district-council/leeds,Leeds City Council,31/01/2022,Children and Families,Social Care,Agency Payments,Services Rendered By Other Organisations,511,07/01/2022,2201-00647,0.00,535.20,R,REDACTED PERSONAL DATA,No
Http://opendatacommunities.org/id/metropolitan-district-council/leeds,Leeds City Council,31/01/2022,Resources and Housing,Finance,Supplies and Services,Memberships,226,31/01/2022,2201-00648,0.00,738.00,R,ALARM,No
Http://opendatacommunities.org/id/metropolitan-district-council/leeds,Leeds City Council,31/01/2022,Communities and Environment,Benefits Welfare and Poverty,Supplies and Services,Grant Related Expenditure,298,26/01/2022,2201-00649,0.00,500.00,R,REDACTED PERSONAL DATA,No
Http://opendatacommunities.org/id/metropolitan-district-council/leeds,Leeds City Council,31/01/2022,City Development,Recreation,External Income,Swimming Bath Charges,923,31/01/2022,2201-00650,0.00,40.00,R,REDACTED PERSONAL DATA,No
Http://opendatacommunities.org/id/metropolitan-district-council/leeds,Leeds City Council,31/01/2022,Communities and Environment,Benefits Welfare and Poverty,Supplies and Services,Grant Related Expenditure,298,17/01/2022,2201-00651,0.00,500.00,R,REDACTED PERSONAL DATA,No
Http://opendatacommunities.org/id/metropolitan-district-council/leeds,Leeds City Council,31/01/2022,Communities and Environment,Benefits Welfare and Poverty,Supplies and Services,Grant Related Expenditure,298,21/01/2022,2201-00652,0.00,500.00,R,REDACTED PERSONAL DATA,No
Http://opendatacommunities.org/id/metropolitan-district-council/leeds,Leeds City Council,31/01/2022,City Development,Employment & Skills,Agency Payments,Contributions To Partnerships,544,07/01/2022,2201-00653,0.00,716.39,R,Al-Bashir Academy Limited,No
Http://opendatacommunities.org/id/metropolitan-district-council/leeds,Leeds City Council,31/01/2022,City Development,Employment & Skills,Agency Payments,Contributions To Partnerships,544,26/01/2022,2201-00654,0.00,716.39,R,Al-Bashir Academy Limited,No
Http://opendatacommunities.org/id/metropolitan-district-council/leeds,Leeds City Council as Accountable Body,31/01/2022,Social Services Pooled Budgets,Leeds Community Equip Store Pooled Budgt,Supplies and Services,Other Equipment,203,14/01/2022,2201-00655,0.00,1305.00,R,ALBION ELECTRIC STORES LTD,No
Http://opendatacommunities.org/id/metropolitan-district-council/leeds,Leeds City Council,31/01/2022,Communities and Environment,Communities,Supplies and Services,Computer Software & Equipment,214,14/01/2022,2201-00656,0.00,1228.33,R,Alcium Software Ltd,No
Http://opendatacommunities.org/id/metropolitan-district-council/leeds,Leeds City Council,31/01/2022,City Development,Recreation,Supplies and Services,Food & Drink,231,14/12/2021,2201-00657,0.00,16.84,R,Aldi,Yes
Http://opendatacommunities.org/id/metropolitan-district-council/leeds,Leeds City Council,31/01/2022,Communities and Environment,Customer Access,Supplies and Services,Grant Related Expenditure,290,22/12/2021,2201-00658,0.00,4.93,R,Aldi,Yes
Http://opendatacommunities.org/id/metropolitan-district-council/leeds,Leeds City Council,31/01/2022,Children and Families,Social Care,Supplies and Services,Food & Drink,231,01/12/2021,2201-00659,0.00,41.43,R,Aldi 103 779,Yes
Http://opendatacommunities.org/id/metropolitan-district-council/leeds,Leeds City Council,31/01/2022,Children and Families,Social Care,Supplies and Services,Operational Materials,205,07/12/2021,2201-00660,0.00,30.57,R,Aldi 103 779,Yes
Http://opendatacommunities.org/id/metropolitan-district-council/leeds,Leeds City Council,31/01/2022,Communities and Environment,Customer Access,Supplies and Services,Grant Related Expenditure,290,20/12/2021,2201-00661,0.00,52.02,R,Aldi 40 779,Yes
Http://opendatacommunities.org/id/metropolitan-district-council/leeds,Leeds City Council,31/01/2022,Communities and Environment,Customer Access,Supplies and Services,Food & Drink,231,06/12/2021,2201-00662,0.00,39.60,R,Aldi 71 779,Yes
Http://opendatacommunities.org/id/metropolitan-district-council/leeds,Leeds City Council,31/01/2022,Children and Families,Social Care,Agency Payments,Placement Support,550,29/12/2021,2201-00663,0.00,14.46,R,Aldi 71 779,Yes
Http://opendatacommunities.org/id/metropolitan-district-council/leeds,Leeds City Council,31/01/2022,Communities and Environment,Customer Access,Supplies and Services,Grant Related Expenditure,290,06/12/2021,2201-00664,0.00,7.93,R,Aldi 779117,Yes
Http://opendatacommunities.org/id/metropolitan-district-council/leeds,Leeds City Council,31/01/2022,Children and Families,Social Care,Agency Payments,Section 17,551,01/12/2021,2201-00665,0.00,35.29,R,Aldi 85 779,Yes
Http://opendatacommunities.org/id/metropolitan-district-council/leeds,Leeds City Council,31/01/2022,Children and Families,Social Care,Agency Payments,Section 17,551,10/12/2021,2201-00666,0.00,34.55,R,Aldi 85 779,Yes
Http://opendatacommunities.org/id/metropolitan-district-council/leeds,Leeds City Council,31/01/2022,Children and Families,Social Care,Supplies and Services,Food & Drink,231,15/12/2021,2201-00667,0.00,14.49,R,Aldi 85 779,Yes
Http://opendatacommunities.org/id/metropolitan-district-council/leeds,Leeds City Council,31/01/2022,Children and Families,Social Care,Supplies and Services,Food & Drink,231,16/12/2021,2201-00668,0.00,18.83,R,Aldi 85 779,Yes
Http://opendatacommunities.org/id/metropolitan-district-council/leeds,Leeds City Council,31/01/2022,Children and Families,Social Care,Supplies and Services,Food & Drink,231,13/12/2021,2201-00669,0.00,20.83,R,Aldi 88 779,Yes
Http://opendatacommunities.org/id/metropolitan-district-council/leeds,Leeds City Council,31/01/2022,Children and Families,Social Care,Supplies and Services,Food & Drink,231,07/12/2021,2201-00670,0.00,78.94,R,Aldi 89 779,Yes
Http://opendatacommunities.org/id/metropolitan-district-council/leeds,Leeds City Council,31/01/2022,Children and Families,Social Care,Supplies and Services,Food & Drink,231,14/12/2021,2201-00671,0.00,73.86,R,Aldi 89 779,Yes
Http://opendatacommunities.org/id/metropolitan-district-council/leeds,Leeds City Council,31/01/2022,Children and Families,Social Care,Supplies and Services,Food & Drink,231,21/12/2021,2201-00672,0.00,22.61,R,Aldi 89 779,Yes
Http://opendatacommunities.org/id/metropolitan-district-council/leeds,Leeds City Council,31/01/2022,Children and Families,Social Care,Supplies and Services,Food & Drink,231,31/12/2021,2201-00673,0.00,125.00,R,Aldi 89 779,Yes
Http://opendatacommunities.org/id/metropolitan-district-council/leeds,Leeds City Council,31/01/2022,Children and Families,Social Care,Supplies and Services,Food & Drink,231,31/12/2021,2201-00674,0.00,11.90,R,Aldi 89 779,Yes
Http://opendatacommunities.org/id/metropolitan-district-council/leeds,Leeds City Council,31/01/2022,Communities and Environment,Customer Access,Supplies and Services,Office Consumables,210,08/12/2021,2201-00675,0.00,12.20,R,Aldi Stores,Yes
Http://opendatacommunities.org/id/metropolitan-district-council/leeds,Leeds City Council,31/01/2022,Communities and Environment,Customer Access,Supplies and Services,Food & Drink,231,09/12/2021,2201-00676,0.00,33.41,R,Aldi Stores,Yes
Http://opendatacommunities.org/id/metropolitan-district-council/leeds,Leeds City Council,31/01/2022,City Development,Recreation,Supplies and Services,Hospitality,255,10/12/2021,2201-00677,0.00,9.45,R,Aldi Stores,Yes
Http://opendatacommunities.org/id/metropolitan-district-council/leeds,Leeds City Council,31/01/2022,Adults and Health,Other Generic Services,Supplies and Services,Food & Drink,231,15/12/2021,2201-00678,0.00,42.89,R,Aldi Stores,Yes
Http://opendatacommunities.org/id/metropolitan-district-council/leeds,Leeds City Council,31/01/2022,Adults and Health,Services For Older People - 65 And Over,Supplies and Services,General Amenity For Clients/Residents,285,21/12/2021,2201-00679,0.00,21.73,R,Aldi Stores,Yes
Http://opendatacommunities.org/id/metropolitan-district-council/leeds,Leeds City Council,31/01/2022,Communities and Environment,Benefits Welfare and Poverty,Supplies and Services,Grant Related Expenditure,298,25/01/2022,2201-00680,0.00,500.00,R,REDACTED PERSONAL DATA,No
Http://opendatacommunities.org/id/metropolitan-district-council/leeds,Leeds City Council,31/01/2022,Communities and Environment,Benefits Welfare and Poverty,Supplies and Services,Grant Related Expenditure,298,13/01/2022,2201-00681,0.00,500.00,R,REDACTED PERSONAL DATA,No
Http://opendatacommunities.org/id/metropolitan-district-council/leeds,Leeds City Council,31/01/2022,Communities and Environment,Benefits Welfare and Poverty,Supplies and Services,Grant Related Expenditure,298,21/01/2022,2201-00682,0.00,500.00,R,REDACTED PERSONAL DATA,No
Http://opendatacommunities.org/id/metropolitan-district-council/leeds,Leeds City Council,31/01/2022,Children and Families,Social Care,Agency Payments,Section 17,551,07/01/2022,2201-00683,0.00,150.00,R,REDACTED PERSONAL DATA,No
Http://opendatacommunities.org/id/metropolitan-district-council/leeds,Leeds City Council,31/01/2022,Children and Families,Social Care,Agency Payments,Section 17,551,21/01/2022,2201-00684,0.00,50.00,R,REDACTED PERSONAL DATA,No
Http://opendatacommunities.org/id/metropolitan-district-council/leeds,Leeds City Council,31/01/2022,Children and Families,Social Care,Agency Payments,Section 17,551,28/01/2022,2201-00685,0.00,50.00,R,REDACTED PERSONAL DATA,No
Http://opendatacommunities.org/id/metropolitan-district-council/leeds,Leeds City Council,31/01/2022,Communities and Environment,Benefits Welfare and Poverty,Supplies and Services,Grant Related Expenditure,298,24/01/2022,2201-00686,0.00,500.00,R,REDACTED PERSONAL DATA,No
Http://opendatacommunities.org/id/metropolitan-district-council/leeds,Leeds City Council,31/01/2022,Communities and Environment,Parks and Countryside,Supplies and Services,Resaleable Materials,204,16/12/2021,2201-00687,0.00,222.00,R,Alex Clark Art Ltd,Yes
Http://opendatacommunities.org/id/metropolitan-district-council/leeds,Leeds City Council,31/01/2022,Children and Families,Social Care,Supplies and Services,General Amenity For Clients/Residents,285,13/01/2022,2201-00688,0.00,19.61,R,REDACTED PERSONAL DATA,No
Http://opendatacommunities.org/id/metropolitan-district-council/leeds,Leeds City Council,31/01/2022,Children and Families,Social Care,Transport,Public Transport Expenses,310,13/01/2022,2201-00689,0.00,4.24,R,REDACTED PERSONAL DATA,No
Http://opendatacommunities.org/id/metropolitan-district-council/leeds,Leeds City Council,31/01/2022,Communities and Environment,Benefits Welfare and Poverty,Supplies and Services,Grant Related Expenditure,298,13/01/2022,2201-00690,0.00,500.00,R,REDACTED PERSONAL DATA,No
Http://opendatacommunities.org/id/metropolitan-district-council/leeds,Leeds City Council,31/01/2022,Children and Families,Social Care,Internal Recharges,Legal Disbursements,411,07/01/2022,2201-00691,0.00,920.00,R,Alex Taylor,No
Http://opendatacommunities.org/id/metropolitan-district-council/leeds,Leeds City Council,31/01/2022,Resources and Housing,Commercial Services,Supplies and Services,Other Hired And Contracted Services,265,06/01/2022,2201-00692,0.00,80.00,R,ALEX WAGG,No
Http://opendatacommunities.org/id/metropolitan-district-council/leeds,Leeds City Council,31/01/2022,Resources and Housing,Commercial Services,Supplies and Services,Other Hired And Contracted Services,265,06/01/2022,2201-00693,0.00,80.00,R,ALEX WAGG,No
Http://opendatacommunities.org/id/metropolitan-district-council/leeds,Leeds City Council,31/01/2022,Resources and Housing,Commercial Services,Supplies and Services,Other Hired And Contracted Services,265,14/01/2022,2201-00694,0.00,200.00,R,ALEX WAGG,No
Http://opendatacommunities.org/id/metropolitan-district-council/leeds,Leeds City Council,31/01/2022,Resources and Housing,Commercial Services,Supplies and Services,Other Hired And Contracted Services,265,20/01/2022,2201-00695,0.00,245.00,R,ALEX WAGG,No
Http://opendatacommunities.org/id/metropolitan-district-council/leeds,Leeds City Council,31/01/2022,Resources and Housing,Commercial Services,Supplies and Services,Other Hired And Contracted Services,265,20/01/2022,2201-00696,0.00,60.00,R,ALEX WAGG,No
Http://opendatacommunities.org/id/metropolitan-district-council/leeds,Leeds City Council,31/01/2022,Resources and Housing,Commercial Services,Supplies and Services,Other Hired And Contracted Services,265,20/01/2022,2201-00697,0.00,60.00,R,ALEX WAGG,No
Http://opendatacommunities.org/id/metropolitan-district-council/leeds,Leeds City Council,31/01/2022,Resources and Housing,Commercial Services,Supplies and Services,Other Hired And Contracted Services,265,20/01/2022,2201-00698,0.00,60.00,R,ALEX WAGG,No
Http://opendatacommunities.org/id/metropolitan-district-council/leeds,Leeds City Council,31/01/2022,Resources and Housing,Commercial Services,Supplies and Services,Other Hired And Contracted Services,265,20/01/2022,2201-00699,0.00,477.00,R,ALEX WAGG,No
Http://opendatacommunities.org/id/metropolitan-district-council/leeds,Leeds City Council,31/01/2022,Communities and Environment,Benefits Welfare and Poverty,Supplies and Services,Grant Related Expenditure,290,26/01/2022,2201-00700,0.00,500.00,R,REDACTED PERSONAL DATA,No
Http://opendatacommunities.org/id/metropolitan-district-council/leeds,Leeds City Council,31/01/2022,City Development,Libraries Arts & Heritage,Supplies and Services,Other Hired And Contracted Services,265,21/01/2022,2201-00701,0.00,200.00,R,Alex Woodrow,No
Http://opendatacommunities.org/id/metropolitan-district-council/leeds,Leeds City Council,31/01/2022,Communities and Environment,Benefits Welfare and Poverty,Supplies and Services,Grant Related Expenditure,298,12/01/2022,2201-00702,0.00,500.00,R,REDACTED PERSONAL DATA,No
Http://opendatacommunities.org/id/metropolitan-district-council/leeds,Leeds City Council,31/01/2022,Communities and Environment,Benefits Welfare and Poverty,Supplies and Services,Grant Related Expenditure,298,11/01/2022,2201-00703,0.00,500.00,R,REDACTED PERSONAL DATA,No
Http://opendatacommunities.org/id/metropolitan-district-council/leeds,Leeds City Council,31/01/2022,Adults and Health,Services For Adults Under 65 Mental/Dis,Agency Payments,Residential Care Dementia,571,07/01/2022,2201-00704,0.00,9563.20,R,ALEXANDER RESIDENTIAL HOME,No
Http://opendatacommunities.org/id/metropolitan-district-council/leeds,Leeds City Council,31/01/2022,Adults and Health,Services For Older People - 65 And Over,Agency Payments,Residential Care Dementia,571,07/01/2022,2201-00705,0.00,15489.16,R,ALEXANDER RESIDENTIAL HOME,No
Http://opendatacommunities.org/id/metropolitan-district-council/leeds,Leeds City Council,31/01/2022,Adults and Health,Services For Older People - 65 And Over,Agency Payments,Residential,580,07/01/2022,2201-00706,0.00,34911.98,R,ALEXANDER RESIDENTIAL HOME,No
Http://opendatacommunities.org/id/metropolitan-district-council/leeds,Leeds City Council,31/01/2022,Children and Families,Social Care,Supplies and Services,General Amenity For Clients/Residents,285,11/01/2022,2201-00707,0.00,29.26,R,REDACTED PERSONAL DATA,No
Http://opendatacommunities.org/id/metropolitan-district-council/leeds,Leeds City Council,31/01/2022,Children and Families,Social Care,Transport,Public Transport Expenses,310,11/01/2022,2201-00708,0.00,32.80,R,REDACTED PERSONAL DATA,No
Http://opendatacommunities.org/id/metropolitan-district-council/leeds,Leeds City Council,31/01/2022,Children and Families,Social Care,Supplies and Services,City Centre Enhancement,295,11/01/2022,2201-00709,0.00,19.61,R,REDACTED PERSONAL DATA,No
Http://opendatacommunities.org/id/metropolitan-district-council/leeds,Leeds City Council,31/01/2022,Children and Families,Social Care,Transport,Public Transport Expenses,310,11/01/2022,2201-00710,0.00,32.00,R,REDACTED PERSONAL DATA,No
Http://opendatacommunities.org/id/metropolitan-district-council/leeds,Leeds City Council,31/01/2022,Children and Families,Social Care,Supplies and Services,Office Consumables,210,26/01/2022,2201-00711,0.00,9.95,R,REDACTED PERSONAL DATA,No
Http://opendatacommunities.org/id/metropolitan-district-council/leeds,Leeds City Council,31/01/2022,Children and Families,Social Care,Supplies and Services,Food & Drink,231,26/01/2022,2201-00712,0.00,7.12,R,REDACTED PERSONAL DATA,No
Http://opendatacommunities.org/id/metropolitan-district-council/leeds,Leeds City Council,31/01/2022,Communities and Environment,Customer Access,Supplies and Services,Bought In Professional Services,277,26/01/2022,2201-00713,0.00,54.00,R,Alexandra Costenco,No
Http://opendatacommunities.org/id/metropolitan-district-council/leeds,Leeds City Council,31/01/2022,Adults and Health,Services For Older People - 65 And Over,Agency Payments,Residential Care Dementia,571,07/01/2022,2201-00714,0.00,7640.24,R,ALEXANDRA COURT,No
Http://opendatacommunities.org/id/metropolitan-district-council/leeds,Leeds City Council,31/01/2022,Adults and Health,Services For Older People - 65 And Over,Agency Payments,Residential,580,07/01/2022,2201-00715,0.00,7070.60,R,ALEXANDRA COURT,No
Http://opendatacommunities.org/id/metropolitan-district-council/leeds,Leeds City Council,31/01/2022,Communities and Environment,Benefits Welfare and Poverty,Supplies and Services,Grant Related Expenditure,298,20/01/2022,2201-00716,0.00,500.00,R,REDACTED PERSONAL DATA,No
Http://opendatacommunities.org/id/metropolitan-district-council/leeds,Leeds City Council,31/01/2022,Communities and Environment,Benefits Welfare and Poverty,Supplies and Services,Grant Related Expenditure,298,24/01/2022,2201-00717,0.00,500.00,R,REDACTED PERSONAL DATA,No
Http://opendatacommunities.org/id/metropolitan-district-council/leeds,Leeds City Council,31/01/2022,Communities and Environment,Benefits Welfare and Poverty,Supplies and Services,Grant Related Expenditure,298,11/01/2022,2201-00718,0.00,500.00,R,REDACTED PERSONAL DATA,No
Http://opendatacommunities.org/id/metropolitan-district-council/leeds,Leeds City Council,31/01/2022,Communities and Environment,Benefits Welfare and Poverty,Supplies and Services,Grant Related Expenditure,298,20/01/2022,2201-00719,0.00,500.00,R,REDACTED PERSONAL DATA,No
Http://opendatacommunities.org/id/metropolitan-district-council/leeds,Leeds City Council,31/01/2022,Adults and Health,Services For Older People - 65 And Over,Supplies and Services,Clothing & Uniforms,241,02/12/2021,2201-00720,0.00,56.28,R,Alexandra Website,Yes
Http://opendatacommunities.org/id/metropolitan-district-council/leeds,Leeds City Council,31/01/2022,Adults and Health,Services For Older People - 65 And Over,Supplies and Services,Clothing & Uniforms,241,17/12/2021,2201-00721,0.00,-123.95,R,Alexandra Website,Yes
Http://opendatacommunities.org/id/metropolitan-district-council/leeds,Leeds City Council,31/01/2022,Communities and Environment,Benefits Welfare and Poverty,Supplies and Services,Grant Related Expenditure,298,14/01/2022,2201-00722,0.00,500.00,R,REDACTED PERSONAL DATA,No
Http://opendatacommunities.org/id/metropolitan-district-council/leeds,Leeds City Council,31/01/2022,Communities and Environment,Benefits Welfare and Poverty,Supplies and Services,Grant Related Expenditure,298,27/01/2022,2201-00723,0.00,500.00,R,REDACTED PERSONAL DATA,No
Http://opendatacommunities.org/id/metropolitan-district-council/leeds,Leeds City Council,31/01/2022,Children and Families,Social Care,Agency Payments,Contact,548,25/01/2022,2201-00724,0.00,20.00,R,REDACTED PERSONAL DATA,No
Http://opendatacommunities.org/id/metropolitan-district-council/leeds,Leeds City Council,31/01/2022,Children and Families,Social Care,Agency Payments,Contact,548,28/01/2022,2201-00725,0.00,20.00,R,REDACTED PERSONAL DATA,No
Http://opendatacommunities.org/id/metropolitan-district-council/leeds,Leeds City Council,31/01/2022,Resources and Housing,Leeds Building Services,Supplies and Services,Other Hired And Contracted Services,265,05/01/2022,2201-00726,0.00,2150.00,R,Alfred Bagnall & Sons (Leeds) Ltd,No
Http://opendatacommunities.org/id/metropolitan-district-council/leeds,Leeds City Council,31/01/2022,Resources and Housing,Leeds Building Services,Supplies and Services,Other Hired And Contracted Services,265,05/01/2022,2201-00727,0.00,8136.40,R,Alfred Bagnall & Sons (Leeds) Ltd,No
Http://opendatacommunities.org/id/metropolitan-district-council/leeds,Leeds City Council,31/01/2022,City Development,Libraries Arts & Heritage,Supplies and Services,Other Hired And Contracted Services,265,07/01/2022,2201-00728,0.00,1090.00,R,Alfred Bagnall & Sons (Leeds) Ltd,No
Http://opendatacommunities.org/id/metropolitan-district-council/leeds,Leeds City Council,31/01/2022,Resources and Housing,Corporate Property Management,Capital,CONSTRUCTION,3,10/01/2022,2201-00729,0.00,2300.00,C,Alfred Bagnall & Sons (Leeds) Ltd,No
Http://opendatacommunities.org/id/metropolitan-district-council/leeds,Leeds City Council,31/01/2022,Resources and Housing,Leeds Building Services,Supplies and Services,Other Hired And Contracted Services,265,20/01/2022,2201-00730,0.00,9200.00,R,Alfred Bagnall & Sons (Leeds) Ltd,No
Http://opendatacommunities.org/id/metropolitan-district-council/leeds,Leeds City Council,31/01/2022,Adults and Health,Public Health,Supplies and Services,Operational Materials,205,05/01/2022,2201-00731,0.00,341.50,R,ALG ID Cards,No
Http://opendatacommunities.org/id/metropolitan-district-council/leeds,Leeds City Council,31/01/2022,Communities and Environment,Elections Licensing and Registration,External Income,Admissions Booking Fees & Ticket Sales,933,25/01/2022,2201-00732,0.00,260.00,R,REDACTED PERSONAL DATA,No
Http://opendatacommunities.org/id/metropolitan-district-council/leeds,Leeds City Council,31/01/2022,Communities and Environment,Elections Licensing and Registration,External Income,Admissions Booking Fees & Ticket Sales,933,25/01/2022,2201-00733,0.00,260.00,R,REDACTED PERSONAL DATA,No
Http://opendatacommunities.org/id/metropolitan-district-council/leeds,Leeds City Council,31/01/2022,Children and Families,Social Care,Appropriations,Leaving Care Allowances,634,13/01/2022,2201-00734,0.00,120.00,R,REDACTED PERSONAL DATA,No
Http://opendatacommunities.org/id/metropolitan-district-council/leeds,Leeds City Council,31/01/2022,Communities and Environment,Benefits Welfare and Poverty,Supplies and Services,Grant Related Expenditure,290,26/01/2022,2201-00735,0.00,500.00,R,REDACTED PERSONAL DATA,No
Http://opendatacommunities.org/id/metropolitan-district-council/leeds,Leeds City Council,31/01/2022,Communities and Environment,Customer Access,Supplies and Services,Bought In Professional Services,277,07/01/2022,2201-00736,0.00,22.50,R,Ali Pourakaberian,No
Http://opendatacommunities.org/id/metropolitan-district-council/leeds,Leeds City Council,31/01/2022,Communities and Environment,Customer Access,Supplies and Services,Bought In Professional Services,277,07/01/2022,2201-00737,0.00,18.00,R,Ali Pourakaberian,No
Http://opendatacommunities.org/id/metropolitan-district-council/leeds,Leeds City Council,31/01/2022,Communities and Environment,Customer Access,Supplies and Services,Bought In Professional Services,277,07/01/2022,2201-00738,0.00,18.00,R,Ali Pourakaberian,No
Http://opendatacommunities.org/id/metropolitan-district-council/leeds,Leeds City Council,31/01/2022,Communities and Environment,Customer Access,Supplies and Services,Bought In Professional Services,277,12/01/2022,2201-00739,0.00,28.20,R,Ali Pourakaberian,No
Http://opendatacommunities.org/id/metropolitan-district-council/leeds,Leeds City Council,31/01/2022,Communities and Environment,Customer Access,Supplies and Services,Bought In Professional Services,277,12/01/2022,2201-00740,0.00,13.50,R,Ali Pourakaberian,No
Http://opendatacommunities.org/id/metropolitan-district-council/leeds,Leeds City Council,31/01/2022,Communities and Environment,Customer Access,Supplies and Services,Bought In Professional Services,277,12/01/2022,2201-00741,0.00,18.00,R,Ali Pourakaberian,No
Http://opendatacommunities.org/id/metropolitan-district-council/leeds,Leeds City Council,31/01/2022,Communities and Environment,Customer Access,Supplies and Services,Bought In Professional Services,277,19/01/2022,2201-00742,0.00,13.50,R,Ali Pourakaberian,No
Http://opendatacommunities.org/id/metropolitan-district-council/leeds,Leeds City Council,31/01/2022,Communities and Environment,Customer Access,Supplies and Services,Bought In Professional Services,277,19/01/2022,2201-00743,0.00,18.00,R,Ali Pourakaberian,No
Http://opendatacommunities.org/id/metropolitan-district-council/leeds,Leeds City Council,31/01/2022,Communities and Environment,Customer Access,Supplies and Services,Bought In Professional Services,277,19/01/2022,2201-00744,0.00,27.00,R,Ali Pourakaberian,No
Http://opendatacommunities.org/id/metropolitan-district-council/leeds,Leeds City Council,31/01/2022,Communities and Environment,Customer Access,Supplies and Services,Bought In Professional Services,277,26/01/2022,2201-00745,0.00,18.00,R,Ali Pourakaberian,No
Http://opendatacommunities.org/id/metropolitan-district-council/leeds,Leeds City Council,31/01/2022,Communities and Environment,Customer Access,Supplies and Services,Bought In Professional Services,277,26/01/2022,2201-00746,0.00,27.00,R,Ali Pourakaberian,No
Http://opendatacommunities.org/id/metropolitan-district-council/leeds,Leeds City Council,31/01/2022,Communities and Environment,Benefits Welfare and Poverty,Supplies and Services,Grant Related Expenditure,298,31/01/2022,2201-00747,0.00,500.00,R,REDACTED PERSONAL DATA,No
Http://opendatacommunities.org/id/metropolitan-district-council/leeds,Leeds City Council,31/01/2022,City Development,Recreation,Supplies and Services,Bought In Professional Services,277,17/01/2022,2201-00748,0.00,60.00,R,Alice M Richardson,No
Http://opendatacommunities.org/id/metropolitan-district-council/leeds,Leeds City Council,31/01/2022,City Development,Recreation,Supplies and Services,Bought In Professional Services,277,31/01/2022,2201-00749,0.00,80.00,R,Alice M Richardson,No
Http://opendatacommunities.org/id/metropolitan-district-council/leeds,Leeds City Council,31/01/2022,Communities and Environment,Benefits Welfare and Poverty,Supplies and Services,Grant Related Expenditure,298,19/01/2022,2201-00750,0.00,500.00,R,REDACTED PERSONAL DATA,No
Http://opendatacommunities.org/id/metropolitan-district-council/leeds,Leeds City Council,31/01/2022,Communities and Environment,Benefits Welfare and Poverty,Supplies and Services,Grant Related Expenditure,298,24/01/2022,2201-00751,0.00,500.00,R,REDACTED PERSONAL DATA,No
Http://opendatacommunities.org/id/metropolitan-district-council/leeds,Leeds City Council,31/01/2022,Communities and Environment,Benefits Welfare and Poverty,Supplies and Services,Grant Related Expenditure,298,13/01/2022,2201-00752,0.00,500.00,R,REDACTED PERSONAL DATA,No
Http://opendatacommunities.org/id/metropolitan-district-council/leeds,Leeds City Council,31/01/2022,Communities and Environment,Benefits Welfare and Poverty,Supplies and Services,Grant Related Expenditure,298,14/01/2022,2201-00753,0.00,500.00,R,REDACTED PERSONAL DATA,No
Http://opendatacommunities.org/id/metropolitan-district-council/leeds,Leeds City Council,31/01/2022,Communities and Environment,Benefits Welfare and Poverty,Supplies and Services,Grant Related Expenditure,298,19/01/2022,2201-00754,0.00,500.00,R,REDACTED PERSONAL DATA,No
Http://opendatacommunities.org/id/metropolitan-district-council/leeds,Leeds City Council,31/01/2022,Communities and Environment,Benefits Welfare and Poverty,Supplies and Services,Grant Related Expenditure,298,28/01/2022,2201-00755,0.00,500.00,R,REDACTED PERSONAL DATA,No
Http://opendatacommunities.org/id/metropolitan-district-council/leeds,Leeds City Council,31/01/2022,Children and Families,Social Care,Agency Payments,Contact,548,14/01/2022,2201-00756,0.00,9.40,R,REDACTED PERSONAL DATA,No
Http://opendatacommunities.org/id/metropolitan-district-council/leeds,Leeds City Council,31/01/2022,Children and Families,Social Care,Agency Payments,Contact,548,21/01/2022,2201-00757,0.00,9.40,R,REDACTED PERSONAL DATA,No
Http://opendatacommunities.org/id/metropolitan-district-council/leeds,Leeds City Council,31/01/2022,Children and Families,Social Care,Agency Payments,Contact,548,28/01/2022,2201-00758,0.00,9.40,R,REDACTED PERSONAL DATA,No
Http://opendatacommunities.org/id/metropolitan-district-council/leeds,Leeds City Council,31/01/2022,Children and Families,Social Care,Appropriations,Leaving Care Allowances,634,07/01/2022,2201-00759,0.00,20.00,R,REDACTED PERSONAL DATA,No
Http://opendatacommunities.org/id/metropolitan-district-council/leeds,Leeds City Council,31/01/2022,Communities and Environment,Benefits Welfare and Poverty,Supplies and Services,Grant Related Expenditure,298,28/01/2022,2201-00760,0.00,500.00,R,REDACTED PERSONAL DATA,No
Http://opendatacommunities.org/id/metropolitan-district-council/leeds,Leeds City Council,31/01/2022,Children and Families,Social Care,Appropriations,Leaving Care Allowances,634,14/01/2022,2201-00761,0.00,40.00,R,REDACTED PERSONAL DATA,No
Http://opendatacommunities.org/id/metropolitan-district-council/leeds,Leeds City Council,31/01/2022,Children and Families,Social Care,Appropriations,Leaving Care Allowances,634,21/01/2022,2201-00762,0.00,40.00,R,REDACTED PERSONAL DATA,No
Http://opendatacommunities.org/id/metropolitan-district-council/leeds,Leeds City Council,31/01/2022,Children and Families,Social Care,Appropriations,Leaving Care Allowances,634,28/01/2022,2201-00763,0.00,40.00,R,REDACTED PERSONAL DATA,No
Http://opendatacommunities.org/id/metropolitan-district-council/leeds,Leeds City Council,31/01/2022,Communities and Environment,Benefits Welfare and Poverty,Supplies and Services,Grant Related Expenditure,298,17/01/2022,2201-00764,0.00,500.00,R,REDACTED PERSONAL DATA,No
Http://opendatacommunities.org/id/metropolitan-district-council/leeds,Leeds City Council,31/01/2022,Children and Families,Social Care,Agency Payments,Services Rendered By Other Organisations,511,07/01/2022,2201-00765,0.00,535.20,R,REDACTED PERSONAL DATA,No
Http://opendatacommunities.org/id/metropolitan-district-council/leeds,Leeds City Council,31/01/2022,Communities and Environment,Benefits Welfare and Poverty,Supplies and Services,Grant Related Expenditure,290,17/01/2022,2201-00766,0.00,500.00,R,REDACTED PERSONAL DATA,No
Http://opendatacommunities.org/id/metropolitan-district-council/leeds,Leeds City Council,31/01/2022,City Development,Economic Development,Supplies and Services,Grant Related Expenditure,290,12/01/2022,2201-00767,0.00,2600.00,R,Alison Finburg,No
Http://opendatacommunities.org/id/metropolitan-district-council/leeds,Leeds City Council,31/01/2022,Communities and Environment,Benefits Welfare and Poverty,Supplies and Services,Grant Related Expenditure,298,24/01/2022,2201-00768,0.00,500.00,R,REDACTED PERSONAL DATA,No
Http://opendatacommunities.org/id/metropolitan-district-council/leeds,Leeds City Council,31/01/2022,City Development,Recreation,External Income,Swimming Bath Charges,923,13/01/2022,2201-00769,0.00,15.50,R,REDACTED PERSONAL DATA,No
Http://opendatacommunities.org/id/metropolitan-district-council/leeds,Leeds City Council,31/01/2022,Communities and Environment,Benefits Welfare and Poverty,Supplies and Services,Grant Related Expenditure,298,31/01/2022,2201-00770,0.00,500.00,R,REDACTED PERSONAL DATA,No
Http://opendatacommunities.org/id/metropolitan-district-council/leeds,Leeds City Council,31/01/2022,Communities and Environment,Benefits Welfare and Poverty,Supplies and Services,Grant Related Expenditure,298,27/01/2022,2201-00771,0.00,500.00,R,REDACTED PERSONAL DATA,No
Http://opendatacommunities.org/id/metropolitan-district-council/leeds,Leeds City Council,31/01/2022,City Development,Markets & City Centre Management,Supplies and Services,Publication And Promotion,267,07/01/2022,2201-00772,0.00,2250.00,R,ALIVE AND KICKING THEATRE COMPANY LTD,No
Http://opendatacommunities.org/id/metropolitan-district-council/leeds,Leeds City Council,31/01/2022,Communities and Environment,Benefits Welfare and Poverty,Supplies and Services,Grant Related Expenditure,298,28/01/2022,2201-00773,0.00,500.00,R,REDACTED PERSONAL DATA,No
Http://opendatacommunities.org/id/metropolitan-district-council/leeds,Leeds City Council,31/01/2022,City Development,Recreation,External Income,Sporting & Other Recreational Fees,928,17/01/2022,2201-00774,0.00,7.00,R,REDACTED PERSONAL DATA,No
Http://opendatacommunities.org/id/metropolitan-district-council/leeds,Leeds City Council,31/01/2022,City Development,Economic Development,Supplies and Services,Grant Related Expenditure,290,24/01/2022,2201-00775,0.00,15000.00,R,All Rounder Cricket Ltd,No
Http://opendatacommunities.org/id/metropolitan-district-council/leeds,Leeds City Council,31/01/2022,City Development,Economic Development,Supplies and Services,Grant Related Expenditure,290,27/01/2022,2201-00776,0.00,10000.00,R,All Rounder Cricket Ltd,No
